Workbook

Sheet About
A3: Environmental, Social and Governance (ESG) Performance Trend Data
A5: Date Updated: | B5: 2024-04-25
A6: Freeport-McMoRan Inc. (FCX) is committed to communicating on our ESG performance regularly and transparently. We have been reporting on our sustainability performance since 2001. The data provided herein reflect our historical performance for the past five years on key ESG topics. These data are intended to be a companion to the 2023 Annual Report on Sustainability. Environmental data cover FCX’s operating sites: Atlantic Copper, Bagdad, Cerro Verde, Chino/Cobre, Climax, El Abra, El Paso, Fort Madison, Henderson, Miami, Morenci, Grasberg, Rotterdam, Safford/Lone Star, Sierrita, Stowmarket and Tyrone. Unless noted otherwise, workforce, health and safety, communities and governance information cover operating and non-operating sites, exploration activities, projects and divested or closed assets until the year of divestiture or closure. Most of FCX’s ESG performance data are recorded in online data entry systems, maintained in a centralized database, and undergo annual internal data validation and external assurance. As a result of methodology changes, corrections, or ongoing improvements to our data collection processes and quality, reported data may be adjusted in future years. Non-financial data have been assured by Ernst & Young LLP. Refer to their assurance statements for standards used. GHG emissions data have been prepared using the operational control approach in accordance with the GHG Protocol. Historical results are not indicative of future performance. Financial figures are reported in U.S. dollars, unless otherwise noted. Due to rounding, some figures and percentages may not add up to the total figure or 100%. Unless otherwise noted, data presented cover our performance for the years ending on December 31st, which corresponds to our fiscal year. Additional information about FCX is available on our website at fcx.com. For details on our financial performance and governance structure, please refer to our Annual Report on Form 10-K for the year ended December 31, 2023, (2023 Form 10-K), filed with the U.S. Securities and Exchange Commission (SEC), which is available on our website at fcx.com.
A7: CAUTIONARY STATEMENT: This file contains forward-looking statements. Forward-looking statements are all statements other than statements of historical facts, such as plans, projections, expectations, targets, objectives, strategies or goals relating to environmental, social, safety and governance performance, including expectations regarding execution of our energy and climate strategies, and the underlying assumptions and estimated impacts on our business and stakeholders related thereto; our approach to lower carbon and reduced emissions; our plans and expectations in relation to our future clean energy transition, including targeted reductions of GHG emissions, implementation of technologies and emissions reduction projects, achievement of our 2030 climate targets and our 2050 net zero aspiration; our operational resiliency and climate scenarios; our expectations regarding climate-related risks; future risk mitigation; regulatory developments; our continuing commitment to safe and reliable operations; our commitment to human rights and creating an inclusive and diverse workplace; our biodiversity and nature-related commitments; our overarching commitment to deliver responsibly produced copper and molybdenum, including plans to implement, validate and maintain validation of our operating sites under specific frameworks. The words “anticipates,” “may,” “can,” “commitments,” “plans,” “pursues,” “believes,” “efforts,” “estimates,” “expects,” “endeavors,” “seeks,” “goals,” “predicts,” “strategy,” “objectives,” “projects,” “targets,” “intends,” “aspires,” “likely,” “will,” “should,” “could,” “to be,” “potential,” “opportunities,” “assumptions,” “guidance,” “forecasts,” “future,” “initiatives,” and any similar expressions are intended to identify those assertions as forward-looking statements. We caution readers that forward-looking statements are not guarantees of future performance and actual results may differ materially from those anticipated, expected, projected or assumed in the forward-looking statements. Important factors that can cause our actual results to differ materially from those anticipated in the forward-looking statements include, but are not limited to, the factors described under the heading “Risk Factors” in our Annual Report on Form 10-K for the year ended December 31, 2023, filed with the SEC, as updated by our subsequent filings with the SEC, and available on our website at fcx.com. Many of the assumptions upon which our forward-looking statements are based are likely to change after the forward-looking statements are made. Further, we may make changes to our business plans that could affect our results. We undertake no obligation to update any forward-looking statements, which speak only as of the date made, notwithstanding any changes in our assumptions, changes in business plans, actual experience or other changes. This file contains statements based on hypothetical scenarios and assumptions, and these statements should not be viewed as representative of current risks or forecasts of expected risks. Third-party scenarios discussed in this file reflect the modeling assumptions and outputs of their respective authors, and their use or inclusion herein is not an endorsement of their underlying assumptions, likelihood or probability. While certain matters discussed in this file may be significant and relevant to our investors, any significance should not be read as rising to the level of materiality for purposes of complying with the U.S. federal securities laws and regulations or the disclosure requirements of the SEC. The goals and projects described in this file are aspirational; as such, no guarantees or promises are made that these goals and projects will be met or successfully executed. Further, some of the data, statistics and metrics included in this file are estimates, are not prepared in accordance with U.S. GAAP, continue to evolve and may be based on assumptions believed to be reasonable at the time of preparation, but should not be considered guarantees and are subject to future revision.

Sheet Index
A1: INDEX
A2: =HYPERLINK("#'"&J2&"'!A1",J2) -> About | I2: 1 | J2: =INDEX(SheetNames,I2) -> About
A3: =HYPERLINK("#'"&J3&"'!A1",J3) -> References | I3: =I2+2 -> 3 | J3: =INDEX(SheetNames,I3) -> References
A4: PEOPLE
A5: =HYPERLINK("#'"&J5&"'!A1",J5) -> Health & Safety | I5: =I3+1 -> 4 | J5: =INDEX(SheetNames,I5) -> Health & Safety
A6: Workforce | I6: =I5+1 -> 5 | J6: =INDEX(SheetNames,I6) -> Workforce
A7: U.S. Employee Data EEO-1 | I7: =I6+1 -> 6 | J7: =INDEX(SheetNames,I7) -> U.S. Employee Data EEO-1
A8: Benefits Offered | I8: 7 | J8: =INDEX(SheetNames,I8) -> Benefits Offered
A9: Remuneration | I9: 8 | J9: =INDEX(SheetNames,I9) -> Remuneration
A10: Community Grievances | I10: 9 | J10: =INDEX(SheetNames,I10) -> Community Grievances
A11: Community Investments | I11: 10 | J11: =INDEX(SheetNames,I11) -> Community Investments
A12: Economic Value Contributed | I12: =I11+1 -> 11 | J12: =INDEX(SheetNames,I12) -> Economic Value Contributed
A13: Key Economic Contributions | I13: =I12+1 -> 12 | J13: =INDEX(SheetNames,I13) -> Key Economic Contributions
A14: Cash Payments to Governments | I14: =I13+1 -> 13 | J14: =INDEX(SheetNames,I14) -> Cash Payments to Governments
A15: GOVERNANCE
A16: Human Rights | I16: =I14+1 -> 14 | J16: =INDEX(SheetNames,I16) -> Human Rights
A17: Business Ethics | I17: =I16+1 -> 15 | J17: =INDEX(SheetNames,I17) -> Business Ethics
A18: Procurement Spend Distribution | I18: =I17+1 -> 16 | J18: =INDEX(SheetNames,I18) -> Procurement Spend Distribution
A19: =HYPERLINK("#'"&J19&"'!A1",J19) -> Procurement - by site | I19: =I18+1 -> 17 | J19: =INDEX(SheetNames,I19) -> Procurement - by site
A20: =HYPERLINK("#'"&J20&"'!A1",J20) -> Supply Chain | I20: =I19+1 -> 18 | J20: =INDEX(SheetNames,I20) -> Supply Chain
A21: ENVIRONMENT
A22: =HYPERLINK("#'"&J22&"'!A1",J22) -> GHG Emissions | I22: =I20+1 -> 19 | J22: =INDEX(SheetNames,I22) -> GHG Emissions
A23: =HYPERLINK("#'"&J23&"'!A1",J23) -> GHG Emissions - 2030 Targets | I23: =I22+1 -> 20 | J23: =INDEX(SheetNames,I23) -> GHG Emissions - 2030 Targets
A24: =HYPERLINK("#'"&J24&"'!A1",J24) -> Dual Reporting | I24: =I23+1 -> 21 | J24: =INDEX(SheetNames,I24) -> Dual Reporting
A25: Scope 3 GHG Emissions | I25: 22 | J25: =INDEX(SheetNames,I25) -> Scope 3 GHG Emissions
A26: Air Emissions | I26: 23 | J26: =INDEX(SheetNames,I26) -> Air Emissions
A27: Energy Consumption | I27: 24 | J27: =INDEX(SheetNames,I27) -> Energy Consumption
A28: Energy Consumption (by type) | I28: 25 | J28: =INDEX(SheetNames,I28) -> Energy Consumption (by type)
A29: Indirect Energy (by source) | I29: 26 | J29: =INDEX(SheetNames,I29) -> Indirect Energy (by source)
A30: Direct Energy (by source) | I30: 27 | J30: =INDEX(SheetNames,I30) -> Direct Energy (by source)
A31: Water (FCX Global) | I31: 28 | J31: =INDEX(SheetNames,I31) -> Water (FCX Global)
A32: Water (stressed areas) | I32: 29 | J32: =INDEX(SheetNames,I32) -> Water (stressed areas)
A33: Water Supply Risks | I33: 30 | J33: =INDEX(SheetNames,I33) -> Water Supply Risks
A34: Water (by region) | I34: 31 | J34: =INDEX(SheetNames,I34) -> Water (by region)
A35: Mining.Mineral Processing Waste | I35: 32 | J35: =INDEX(SheetNames,I35) -> Mining.Mineral Processing Waste
A36: Non-Mineral Waste.Recycled | I36: 33 | J36: =INDEX(SheetNames,I36) -> Non-Mineral Waste.Recycled
A37: Tailings Impoundments | I37: 34 | J37: =INDEX(SheetNames,I37) -> Tailings Impoundments
A38: Biodiversity and Land | I38: 35 | J38: =INDEX(SheetNames,I38) -> Biodiversity and Land
A39: Environmental Compliance | I39: 36 | J39: =INDEX(SheetNames,I39) -> Environmental Compliance
A40: REPORTING FRAMEWORKS
A41: =HYPERLINK("#'"&J41&"'!A1",J41) -> GRI Index; SDGs | I41: =I39+1 -> 37 | J41: =INDEX(SheetNames,I41) -> GRI Index; SDGs
A42: =HYPERLINK("#'"&J42&"'!A1",J42) -> ICMM | I42: =I41+1 -> 38 | J42: =INDEX(SheetNames,I42) -> ICMM
A43: =HYPERLINK("#'"&J43&"'!A1",J43) -> ICMM S&E Framework | I43: =I42+1 -> 39 | J43: =INDEX(SheetNames,I43) -> ICMM S&E Framework
A44: =HYPERLINK("#'"&J44&"'!A1",J44) -> SASB | I44: =I43+1 -> 40 | J44: =INDEX(SheetNames,I44) -> SASB

Sheet References
A1: REFERENCES
A4: Below is a list of documents and webpages mentioned in this databook.
A5: DOCUMENT NAME | B5: LINK TO FCX DOCUMENT
A6: Annual Report on Sustainability | B6: 2023 Annual Report on Sustainability
A7: Sustainability Reports and Documents | B7: Sustainability Reports and Documents
A8: Audits, Assessments, Assurance | B8: Audits, Assessments, Assurance
A9: Governance: Form 10-K | B9: 2023 Form 10-K
A10: Governance: Proxy Statement | B10: 2024 Proxy Statement
A11: Governance: Corporate Governance Guidelines | B11: Corporate Governance Guidelines
A12: Governance: Corporate Responsibility Committee Charter | B12: Corporate Responsibility Committee Charter
A13: Governance: Political Activity and Spending Practices | B13: Political Activity and Spending Practices
A14: Governance: Principles of Business Conduct | B14: Principles of Business Conduct
A15: Governance: Anti-Corruption Policy | B15: Anti-Corruption Policy
A16: Supply Chain: Business Partner Code of Conduct | B16: Business Partner Code of Conduct
A17: Supply Chain: Global Supply Chain | B17: Global Suppy Chain
A18: Supply Chain: Commodity Management | B18: Commodity Management
A19: Supply Chain: Responsible Sourcing of Minerals Policy | B19: Responsible Sourcing of Minerals Policy
A20: Human Rights: Embedding Respect > HRIA Methodology | B20: HRIA Methodology
A21: Human Rights: Embedding Respect | B21: Embedding Respect
A22: Human Rights: Security | B22: Security & Human Rights
A23: Human Rights: UK Modern Slavery Act Statement | B23: 2021 UK Modern Slavery Act Statement
A24: Human Rights: Voluntary Principles Report | B24: Voluntary Principles on Security and Human Rights: 2022 Report
A25: Human Rights: Human Rights Policy | B25: Human Rights Policy
A26: Workforce: Careers | B26: FM Jobs
A27: Workforce: North America Employee Benefits Overview | B27: 2023 North America Benefits Overview
A28: Workforce Health & Safety: Working Hours Policy | B28: Working Hours Policy
A29: Communities & Indigenous Peoples: Grievance Mechanism | B29: Community Grievance Mechanism
A30: Communities & Indigenous Peoples: Land Use and Customary Rights at PT-FI | B30: Land Use and Customary Rights at Grasberg
A31: Communities & Indigenous Peoples: Freeport in my Community | B31: Freeport in my Community
A32: Communities & Indigenous Peoples: Economic Impact | B32: Economic Impact Reports
A33: Communities & Indigenous Peoples: Social Performance Policy | B33: Social Performance Policy
A34: Environment: Climate Report | B34: 2022 Climate Report
A35: Environment: Water Report | B35: 2019 Water Report
A36: Environment: Biodiversity Management at FCX | B36: Biodiversity Management at FCX
A37: Environment: Tailings — Americas operations | B37: Tailings - Americas operations
A38: Environment: Site-Specific Tailings Management and Information | B38: Site-Specific Tailings Management and Information
A39: Environment: Tailings — Indonesia operations | B39: Tailings - Indonesia operations
A40: Environment: PT-FI External Audits at Grasberg | B40: PT-FI External Audits at Grasberg
A41: Environment: Tailings Management Policy | B41: Tailings Management Policy
A42: Environment: Environmental Policy | B42: Environmental Policy

Sheet Health & Safety
A1: FCX—ESG PERFORMANCE DATA
A2: HEALTH AND SAFETY1
A3: Years Ended December 31 | B3: 2019 | C3: 2020 | D3: 2021 | E3: 2022 | F3: 2023
A4: Total Number of Recordable Events | B4: 528 | C4: 419 | D4: 457 | E4: 590 | F4: 605
A5: % High Risk2 | B5: 0.107 | C5: 0.067 | D5: 0.07 | E5: 0.07 | F5: 0.09
A7: Number of Workforce Fatalities3
A8: Employees | B8: 1 | C8: 1 | D8: 0 | E8: 0 | F8: 0
A9: Contract Personnel | B9: 2 | C9: 4 | D9: 2 | E9: 1 | F9: 1
A10: Total Workforce Fatalities | B10: 3 | C10: 5 | D10: 2 | E10: 1 | F10: 1
A12: Total Recordable Incident Rate (TRIR)4
A13: Employees | B13: 0.81 | C13: 0.77 | D13: 0.75 | E13: 0.93 | F13: 1.03
A14: Contract Personnel | B14: 0.63 | C14: 0.57 | D14: 0.62 | E14: 0.6 | F14: 0.35
A15: Total Workforce - TRIR | B15: 0.74 | C15: 0.69 | D15: 0.7 | E15: 0.77 | F15: 0.6
A17: Fatality Rate5
A18: Employees | B18: 0.002 | C18: 0.003 | D18: 0 | E18: 0 | F18: 0
A19: Contract Personnel | B19: 0.007 | C19: 0.018 | D19: 0.007 | E19: 0.003 | F19: 0.002
A20: Total Workforce - Fatality Rate | B20: 0.004 | C20: 0.008 | D20: 0.003 | E20: 0.001 | F20: 0.001
A22: Near Miss Frequency Rate (NMFR)6
A23: Employees | B23: 1.71 | C23: 1.27 | D23: 1.15 | E23: 1.03 | F23: 0.79
A24: Contract Personnel | B24: 1.16 | C24: 0.93 | D24: 0.88 | E24: 0.64 | F24: 0.15
A25: Total Workforce - NMFR | B25: 2.07 | C25: 1.61 | D25: 1.78 | E25: 1.17 | F25: 0.93
A27: Lost Time Injury Frequency Rate (LTIR)7
A28: Employees | B28: 0.36 | C28: 0.33 | D28: 0.31 | E28: 0.43 | F28: 0.43
A29: Contract Personnel | B29: 0.28 | C29: 0.24 | D29: 0.32 | E29: 0.31 | F29: 0.13
A30: Total Workforce - LTIR | B30: 0.33 | C30: 0.3 | D30: 0.31 | E30: 0.37 | F30: 0.24
A32: 1. Reported health and safety performance is based on Mine Safety and Health Administration (MSHA) reporting criteria. Data include employees (full-time and part-time employees on a full-time equivalent basis) and contractors. This table reflects incidents incurred at operating and non-operating sites, exploration activities, projects and divested or closed assets until the year of divestiture or closure. Certain data from 2019, 2020 and 2021 have been adjusted to include divested or closed assets, which had previously been excluded from health and safety performance data. Rates are calculated per 200,000 hours worked, except where indicated. Metrics within this table are calculated based on employee and contractor reporting of injuries, illness and near misses.
A38: 2. % High-Risk = (High Risk Incidents / Total Recordable Events). Our risk matrix defines "high risk" events as incidents that have the potential to result in permanent disabilities or fatalities.
A39: 3. In FCX's 2022 Form 10-K published on February 15, 2023, FCX reported 3 on-site fatalities in 2022. All 3 fatalities have since been classified by MSHA as independent medical episodes.
A41: 4. TRIR = ((Fatalities + Lost-time Incidents + Restricted-duty Incidents + Medical Treatment) x 200,000) / Total Hours Worked. TRIR is equivalent to MSHA All-Incidence Rate (AIR).
A43: 5. Fatality Rate = (Number of Fatalities x 200,000) / Total Hours Worked.
A44: 6. NMFR = (Number of Near Miss Events x 200,000) / Total Hours Worked. Anonymously reported near miss events are accounted for in the total rate only.
A46: 7. LTIR = (Number of Lost Time Injuries x 200,000) / Total Hours Worked.

Sheet Workforce
A1: FCX—ESG PERFORMANCE DATA
A2: WORKFORCE
A3: Years Ended December 31 | B3: 2019 | C3: 2020 | D3: 2021 | E3: 2022 | F3: 2023
A4: Number of Employees
A5: North America | B5: 12750 | C5: 11178 | D5: 11581 | E5: 12354 | F5: 12943
A6: Indonesia | B6: 6877 | C6: 6578 | D6: 6130 | E6: 5897 | F6: 6444
A7: South America | B7: 6585 | C7: 5734 | D7: 6024 | E7: 6327 | F7: 6718
A8: Europe/Other | B8: 1242 | C8: 1159 | D8: 968 | E8: 1000 | F8: 1057
A9: Total Number of Employees | B9: 27454 | C9: 24649 | D9: 24703 | E9: 25578 | F9: 27162
A10: Number of Contract Personnel1
A11: North America | B11: 11661 | C11: 8830 | D11: 13540 | E11: 16597 | F11: 20088
A12: Indonesia | B12: 22224 | C12: 20777 | D12: 22113 | E12: 23467 | F12: 55,967 2
A13: South America | B13: 5908 | C13: 3428 | D13: 6125 | E13: 6447 | F13: 6756
A14: Europe/Other | B14: 2447 | C14: 2235 | D14: 2141 | E14: 2355 | F14: 2512
A15: Total Number of Contract Personnel | B15: 42240 | C15: 35270 | D15: 43919 | E15: 48866 | F15: 85323
A17: Employees Covered Under Collective Labor Agreements (CLA)3
A18: North America | B18: 0 | C18: 0 | D18: 0 | E18: 0 | F18: 0
A19: Indonesia | B19: 0.51 | C19: 0.508 | D19: 0.487 | E19: 0.468 | F19: 0.467
A20: South America | B20: 0.653 | C20: 0.661 | D20: 0.659 | E20: 0.665 | F20: 0.65
A21: Europe/Other | B21: 0.664 | C21: 0.667 | D21: 0.632 | E21: 0.603 | F21: 0.581
A22: Global Employees Under CLA | B22: 0.314 | C22: 0.321 | D22: 0.306 | E22: 0.296 | F22: 0.294
A24: Employee Demographics
A25: Employees by Employee Status
A26: Full Time Employees | B26: 27343 | C26: 24563 | D26: 24622 | E26: 25463 | F26: 27043
A27: Part Time Employees | B27: 111 | C27: 86 | D27: 81 | E27: 115 | F27: 119
A28: Employees by Job Category
A29: Executive Management | B29: 29 | C29: 31 | D29: 33 | E29: 36 | F29: 37
A30: Management | B30: 2701 | C30: 2403 | D30: 2449 | E30: 2598 | F30: 2726
A31: Non-Management | B31: 24724 | C31: 22215 | D31: 22221 | E31: 22944 | F31: 24399
A32: Employees by Age Group
A33: <30 Years | B33: 0.1385226197 | C33: 0.1179358189 | D33: 0.1197830223 | E33: 0.1254593792 | F33: 0.15
A34: 30-50 Years | B34: 0.6438041815 | C34: 0.664448862 | D34: 0.6539286726 | E34: 0.6431699116 | F34: 0.62
A35: >50 Years | B35: 0.2176731988 | C35: 0.2176153191 | D35: 0.2262883051 | E35: 0.2313707092 | F35: 0.23
A36: Employees by Nationality
A37: Local Country Nationals | B37: 0.9902382167 | C37: 0.9901821575 | D37: 0.9909322754 | E37: 0.9905387442 | F37: 0.989
A38: Expatriates/Third-Country Nationals | B38: 0.009761783347 | C38: 0.009817842509 | D38: 0.009067724568 | E38: 0.009461255767 | F38: 0.011
A39: North America Consolidated Demographic Info4
A40: White | B40: 0.545 | C40: 0.534 | D40: 0.524 | E40: 0.512 | F40: 0.498
A41: Hispanic/Latino | B41: 0.384 | C41: 0.395 | D41: 0.4 | E41: 0.407 | F41: 0.415
A42: American Indian/Alaskan Native | B42: 0.035 | C42: 0.038 | D42: 0.04 | E42: 0.042 | F42: 0.042
A43: Asian | B43: 0.015 | C43: 0.014 | D43: 0.014 | E43: 0.013 | F43: 0.014
A44: Black or African American | B44: 0.016 | C44: 0.014 | D44: 0.014 | E44: 0.015 | F44: 0.017
A45: Native Hawaiian or Other Pacific Islander | B45: 0.002 | C45: 0.003 | D45: 0.002 | E45: 0.002 | F45: 0.003
A46: Two or more races | B46: 0.003 | C46: 0.003 | D46: 0.005 | E46: 0.008 | F46: 0.009
A47: Undisclosed | B47: 0 | C47: 0 | D47: 0 | E47: 0 | F47: 0.001
A48: PT-FI Demographic Info
A49: Indonesian Representation | B49: 0.974 | C49: 0.974 | D49: 0.973 | E49: 0.971 | F49: 0.968
A50: Indigenous Papuan Representation | B50: 0.4 | C50: 0.401 | D50: 0.412 | E50: 0.414 | F50: 0.439
A51: Women Employed by Location
A52: United States | B52: 0.189254902 | C52: 0.1828591877 | D52: 0.1917796391 | E52: 0.2019588797 | F52: 0.206
A53: Indonesia | B53: 0.07154282391 | C53: 0.07251444208 | D53: 0.07536704731 | E53: 0.0791928099 | F53: 0.089
A54: Peru | B54: 0.066741447 | C54: 0.05833333333 | D54: 0.05981308411 | E54: 0.05938580435 | F54: 0.064
A55: Chile | B55: 0.1165048544 | C55: 0.1092077088 | D55: 0.1406120761 | E55: 0.1361702128 | F55: 0.169
A56: Europe/Other | B56: 0.1763285024 | C56: 0.1855047455 | D56: 0.1704545455 | E56: 0.174 | F56: 0.184
A57: Total Women Employed by Location | B57: 0.1320390471 | C57: 0.1264960039 | D57: 0.1338298992 | E57: 0.1415278755 | F57: 0.148
A58: Women Employed by Job Category
A59: Board of Directors5 | B59: 0.3333333333 | C59: 0.3333333333 | D59: 0.3636363636 | E59: 0.364 | F59: 0.417
A60: Executive Management | B60: 0.1379310345 | C60: 0.1935483871 | D60: 0.2121212121 | E60: 0.2222222222 | F60: 0.189
A61: Management | B61: 0.1240281377 | C61: 0.1244277986 | D61: 0.1212739894 | E61: 0.1216320246 | F61: 0.123
A62: Non-Management | B62: 0.1327758927 | C62: 0.1265794325 | D62: 0.1356641469 | E62: 0.1436541144 | F62: 0.15
A63: Total Women by Job Category | B63: 0.1320390471 | C63: 0.1264960039 | D63: 0.1338298992 | E63: 0.1415278755 | F63: 0.148
A65: Talent Attraction and Retention
A66: New Employee Hires by Location
A67: United States | B67: 1910 | C67: 849 | D67: 1934 | E67: 2338 | F67: 2251
A68: Indonesia | B68: 38 | C68: 23 | D68: 21 | E68: 35 | F68: 867
A69: Peru | B69: 474 | C69: 194 | D69: 135 | E69: 267 | F69: 440
A70: Chile | B70: 30 | C70: 18 | D70: 53 | E70: 207 | F70: 26
A71: Europe/Other | B71: 60 | C71: 20 | D71: 33 | E71: 51 | F71: 51
A72: Total New Employee Hires | B72: 2512 | C72: 1104 | D72: 2176 | E72: 2898 | F72: 3635
A73: New Employee Hires by Age Group
A74: <30 Years | B74: 1146 | C74: 539 | D74: 1016 | E74: 1180 | F74: 1642
A75: 30-50 Years | B75: 1133 | C75: 455 | D75: 942 | E75: 1420 | F75: 1738
A76: >50 Years | B76: 233 | C76: 110 | D76: 218 | E76: 298 | F76: 255
A77: Total New Employee Hires | B77: 2512 | C77: 1104 | D77: 2176 | E77: 2898 | F77: 3635
A78: New Employee Hires by Gender
A79: Men | B79: 1990 | C79: 860 | D79: 1697 | E79: 2238 | F79: 2923
A80: Women | B80: 522 | C80: 244 | D80: 479 | E80: 660 | F80: 710
A81: Total New Employee Hires | B81: 2512 | C81: 1104 | D81: 2176 | E81: 2898 | F81: 3633
A83: Employee Turnover Rate by Location
A84: United States | B84: 0.11 | C84: 0.2 | D84: 0.14 | E84: 0.14 | F84: 0.14
A85: Indonesia | B85: 0.04 | C85: 0.05 | D85: 0.07 | E85: 0.07 | F85: 0.07
A86: Peru | B86: 0.05 | C86: 0.13 | D86: 0.03 | E86: 0.02 | F86: 0.03
A87: Chile | B87: 0.04 | C87: 0.24 | D87: 0.06 | E87: 0.08 | F87: 0.12
A88: Europe/Other | B88: 0.24 | C88: 0.13 | D88: 0.07 | E88: 0.03 | F88: 0.04
A89: Total Employee Turnover Rate | B89: 0.08 | C89: 0.15 | D89: 0.09 | E89: 0.09 | F89: 0.1
A90: Employee Turnover Rate by Age Group
A91: <30 Years | B91: 0.16 | C91: 0.22 | D91: 0.2 | E91: 0.2 | F91: 0.21
A92: 30-50 Years | B92: 0.06 | C92: 0.09 | D92: 0.07 | E92: 0.06 | F92: 0.06
A93: >50 Years | B93: 0.11 | C93: 0.26 | D93: 0.12 | E93: 0.13 | F93: 0.13
A94: Total Employee Turnover Rate | B94: 0.08 | C94: 0.15 | D94: 0.09 | E94: 0.09 | F94: 0.1
A95: Employee Turnover Rate - Men
A96: Company-initiated Rate | B96: 0.03 | C96: 0.05 | D96: 0.04 | E96: 0.02 | F96: 0.03
A97: Employee-initiated (Voluntary) Rate | B97: 0.05 | C97: 0.08 | D97: 0.05 | E97: 0.07 | F97: 0.06
A98: Employee Turnover Rate - Men | B98: 0.08 | C98: 0.13 | D98: 0.09 | E98: 0.09 | F98: 0.09
A99: Employee Turnover Rate - Women
A100: Company-initiated Rate | B100: 0.04 | C100: 0.08 | D100: 0.03 | E100: 0.03 | F100: 0.04
A101: Employee-initiated (Voluntary) Rate | B101: 0.08 | C101: 0.14 | D101: 0.08 | E101: 0.09 | F101: 0.09
A102: Employee Turnover Rate - Women | B102: 0.12 | C102: 0.22 | D102: 0.11 | E102: 0.12 | F102: 0.13
A104: Total Employee Turnover Rate | B104: 0.08 | C104: 0.15 | D104: 0.09 | E104: 0.09 | F104: 0.1
A106: Voluntary Turnover Rate | B106: 0.05 | C106: 0.09 | D106: 0.06 | E106: 0.07 | F106: 0.07
A108: 1. Reflects contracted personnel who are employed at various times throughout the year. Certain contractors work on projects that are temporary in nature and fluctuate from year to year.
A110: 2. Includes contracted personnel at the Manyar smelter development project.
A111: 3. Data include only employees covered under CLA. In North America, our hourly employees continue to elect to work directly with company management rather than through union representation using our Guiding Principles contract, which adds value to the workforce and the company.
A113: 4. Reported consolidated North America diversity metrics relate to employees only and are in line with the categories set forth by U.S. Equal Employment Opportunity Commission. These metrics are based on employee data as of year end; however, employee data reported on the 2023 U.S. Employee Data EEO-1 tab of this performance data booklet are from dates of payroll from the period 12/1/2023 through 12/31/2023.
A116: 5. Figures are as of year end and therefore may differ from those reported in our annual proxy statements which reflect director nominees as of the record date for our annual meeting of stockholders for the respective year.
A118: Note: Employee demographics are self-reported. Turnover rates exclude seasonal, temporary hires and interns and represent turnover throughout the year.

Sheet U.S. Employee Data EEO-1
A1: FCX—ESG PERFORMANCE DATA
A2: U.S. EQUAL EMPLOYMENT OPPORTUNITY (EEO-1) DISCLOSURE
A3: Year Ended December 31, 2023
A4: EEO-1 data presented here is limited to representational reporting in U.S. federally mandated job categories that differ across our global operations. The data in the table does not include our approximately 14,200 employees who reside outside of the U.S., nor does this data include the approximately 85,400 contract personnel who comprise an integral part of our global workforce.
A6: JOB CATEGORIES | B6: Race/Ethnicity | P6: Overall Total
B7: Hispanic or Latino | D7: Not Hispanic or Latino
D8: Male | J8: Female
B9: Male | C9: Female | D9: White | E9: Black or African American | F9: Native Hawaiian or Other Pacific Islander | G9: Asian | H9: American Indian or Alaskan Native | I9: Two or More races | J9: White | K9: Black or African American | L9: Native Hawaiian or Other Pacific Islander | M9: Asian | N9: American Indian or Alaskan Native | O9: Two or more races
A10: Executive/Senior Level Officials and Managers | B10: 3 | C10: 0 | D10: 22 | E10: 0 | F10: 0 | G10: 1 | H10: 0 | I10: 0 | J10: 6 | K10: 0 | L10: 0 | M10: 0 | N10: 0 | O10: 0 | P10: 32
A11: First/Mid-Level Officials and Managers | B11: 470 | C11: 64 | D11: 869 | E11: 13 | F11: 4 | G11: 24 | H11: 13 | I11: 2 | J11: 157 | K11: 3 | L11: 0 | M11: 2 | N11: 1 | O11: 0 | P11: 1622
A12: Professionals | B12: 418 | C12: 217 | D12: 968 | E12: 74 | F12: 5 | G12: 93 | H12: 10 | I12: 21 | J12: 438 | K12: 22 | L12: 0 | M12: 38 | N12: 10 | O12: 4 | P12: 2318
A13: Technicians | B13: 202 | C13: 74 | D13: 185 | E13: 4 | F13: 2 | G13: 1 | H13: 6 | I13: 6 | J13: 89 | K13: 2 | L13: 0 | M13: 2 | N13: 9 | O13: 1 | P13: 583
A14: Sales Workers | B14: 0 | C14: 0 | D14: 1 | E14: 0 | F14: 0 | G14: 1 | H14: 0 | I14: 0 | J14: 1 | K14: 0 | L14: 0 | M14: 0 | N14: 0 | O14: 0 | P14: 3
A15: Administrative Support Workers | B15: 24 | C15: 122 | D15: 39 | E15: 3 | F15: 0 | G15: 2 | H15: 0 | I15: 0 | J15: 135 | K15: 12 | L15: 0 | M15: 5 | N15: 6 | O15: 4 | P15: 352
A16: Craft Workers | B16: 1160 | C16: 29 | D16: 1251 | E16: 23 | F16: 5 | G16: 7 | H16: 96 | I16: 18 | J16: 29 | K16: 0 | L16: 0 | M16: 0 | N16: 17 | O16: 2 | P16: 2637
A17: Operatives | B17: 1997 | C17: 393 | D17: 1669 | E17: 59 | F17: 15 | G17: 11 | H17: 235 | I17: 43 | J17: 452 | K17: 2 | L17: 5 | M17: 2 | N17: 130 | O17: 17 | P17: 5030
A18: Laborers and Helpers | B18: 73 | C18: 6 | D18: 30 | E18: 3 | F18: 0 | G18: 0 | H18: 4 | I18: 1 | J18: 7 | K18: 0 | L18: 0 | M18: 1 | N18: 4 | O18: 0 | P18: 129
A19: Service Workers | B19: 39 | C19: 82 | D19: 32 | E19: 1 | F19: 0 | G19: 0 | H19: 2 | I19: 0 | J19: 55 | K19: 2 | L19: 0 | M19: 0 | N19: 6 | O19: 0 | P19: 219
A20: 2023 REPORT TOTAL | B20: 4386 | C20: 987 | D20: 5066 | E20: 180 | F20: 31 | G20: 140 | H20: 366 | I20: 91 | J20: 1369 | K20: 43 | L20: 5 | M20: 50 | N20: 183 | O20: 28 | P20: 12925
A21: 2022 Report Total | B21: 4130 | C21: 925 | D21: 5033 | E21: 159 | F21: 24 | G21: 120 | H21: 355 | I21: 78 | J21: 1305 | K21: 31 | L21: 4 | M21: 40 | N21: 178 | O21: 22 | P21: 12404
A22: Note: This data includes employees on payroll during the period 12/1/2023 through 12/31/2023.

Sheet Benefits Offered
A1: FCX—ESG PERFORMANCE DATA
A2: BENEFITS OFFERED TO FULL TIME EMPLOYEES
A3: Year Ended December 31, 2023 | C3: Life Insurance | D3: Health Care | E3: Disability Coverage | F3: Parental Leave | G3: Retirement Provision | H3: Stock Ownership
A4: Copper Mining | B4: North America
B5: Bagdad | C5: yes | D5: yes | E5: yes | F5: yes | G5: yes | H5: no
B6: Chino/Cobre | C6: yes | D6: yes | E6: yes | F6: yes | G6: yes | H6: no
B7: Morenci | C7: yes | D7: yes | E7: yes | F7: yes | G7: yes | H7: no
B8: Safford/Lone Star | C8: yes | D8: yes | E8: yes | F8: yes | G8: yes | H8: no
B9: Sierrita | C9: yes | D9: yes | E9: yes | F9: yes | G9: yes | H9: no
B10: Tyrone | C10: yes | D10: yes | E10: yes | F10: yes | G10: yes | H10: no
B11: South America
B12: Cerro Verde | C12: yes | D12: yes | E12: yes | F12: yes | G12: yes | H12: no
B13: El Abra | C13: yes | D13: yes | E13: yes | F13: yes | G13: yes | H13: no
B14: Indonesia
B15: Grasberg | C15: yes | D15: yes | E15: yes | F15: yes | G15: yes | H15: no
A16: Molybdenum Mining | B16: North America
B17: Climax | C17: yes | D17: yes | E17: yes | F17: yes | G17: yes | H17: no
B18: Henderson | C18: yes | D18: yes | E18: yes | F18: yes | G18: yes | H18: no
A19: Smelting & Refining | B19: North America
B20: El Paso Refinery & Rod | C20: yes | D20: yes | E20: yes | F20: yes | G20: yes | H20: no
B21: Miami Smelter & Rod | C21: yes | D21: yes | E21: yes | F21: yes | G21: yes | H21: no
B22: Europe
B23: Atlantic Copper Smelter & Refinery | C23: yes | D23: yes | E23: yes | F23: yes | G23: yes | H23: no
A24: Other | B24: Other
B25: Fort Madison Moly Special Products | C25: yes | D25: yes | E25: yes | F25: yes | G25: yes | H25: no
B26: Rotterdam | C26: no1 | D26: no1 | E26: yes | F26: yes | G26: yes | H26: no
B27: Stowmarket | C27: yes | D27: yes | E27: yes | F27: yes | G27: yes | H27: no
B28: Corporate, Support & Administrative (U.S) | C28: yes | D28: yes | E28: yes | F28: yes | G28: yes | H28: no
A30: 1. Employees at our molybdenum conversion facility in Rotterdam, the Netherlands, have government-provided health care and life insurance.
A31: Note: Employees may be offered other benefits, such as access to an employee assistance program, not listed in this table.

Sheet Remuneration
A1: FCX—ESG PERFORMANCE DATA
A2: EMPLOYEE PAY EQUITY ANALYSIS1
A3: Year Ended December 31, 2023 | C3: Female to Male Employee Ratio | E3: Non-White to White U.S. Employee Ratio
C4: Basic Salary | D4: Total Compensation | E4: Basic Salary | F4: Total Compensation
A5: FCX Global | C5: >0.995 | D5: >0.995 | E5: >0.995 | F5: >0.995
A7: 1. A third-party compensation consultant confirmed compensation of the analyzed employee groups was near parity (a gap of less than 0.005 cents per U.S. dollar). More information on FCX's fair and equal remuneration practices can be found in FCX's 2023 Sustainability Report on fcx.com.
A9: Note: We are committed to providing equal pay for equal work regardless of gender, race, ethnicity or any other characteristic protected by applicable law. We periodically conduct internal compensation reviews to identify possible pay gaps, which cannot be explained through performance, distribution of jobs, experience, time in role and other legitimate business-related factors. To further our commitment to provide equal pay for equal work and to support our global inclusion and diversity efforts, we engage a third-party compensation consultant, Mercer, to evaluate our gender pay equity practices across our global operations.

Sheet Community Grievances
A1: FCX—ESG PERFORMANCE DATA
A2: SOCIAL PERFORMANCE: COMMUNITIES
A3: Years Ended December 31 | B3: 2019 | C3: 2020 | D3: 2021 | E3: 2022 | F3: 2023
A4: Community Grievances1 (count)
A5: Community Grievances by Geography
A6: United States | B6: 87 | C6: 59 | D6: 94 | E6: 81 | F6: 93
A7: Indonesia | B7: 60 | C7: 53 | D7: 60 | E7: 59 | F7: 49
A8: Peru | B8: 9 | C8: 10 | D8: 4 | E8: 6 | F8: 28
A9: Chile | B9: 29 | C9: 17 | D9: 10 | E9: 15 | F9: 7
A10: Europe | B10: 5 | C10: 1 | D10: 1 | E10: 0 | F10: 1
A11: Total Community Grievances | B11: 190 | C11: 140 | D11: 169 | E11: 161 | F11: 178
A13: Community Grievances by Type (%)
A14: Community Engagement | B14: 0.07 | C14: 0.11 | D14: 0.01 | E14: 0.01 | F14: 0.02259887006
A15: Community Investments | B15: 0.12 | C15: 0.15 | D15: 0.12 | E15: 0.12 | F15: 0.1016949153
A16: Cultural Heritage | B16: 0.05 | C16: 0.01 | D16: 0.02 | E16: 0.03 | F16: 0.01129943503
A17: Employment | B17: 0.03 | C17: 0.04 | D17: 0.03 | E17: 0.08 | F17: 0.06
A18: Environment | B18: 0.17 | C18: 0.16 | D18: 0.15 | E18: 0.15 | F18: 0.2033898305
A19: Health & Safety | B19: 0.12 | C19: 0.15 | D19: 0.14 | E19: 0.19 | F19: 0.2372881356
A20: Land Access | B20: 0.02 | C20: 0 | D20: 0.01 | E20: 0 | F20: 0.01694915254
A21: Land Rights | B21: 0.08 | C21: 0.1 | D21: 0.05 | E21: 0.03 | F21: 0.01694915254
A22: Livelihoods | B22: 0.02 | C22: 0.01 | D22: 0.01 | E22: 0.02 | F22: 0.01694915254
A23: Local Sourcing | B23: 0.06 | C23: 0.08 | D23: 0.08 | E23: 0.12 | F23: 0.06779661017
A24: Odor, Noise, Vibration | B24: 0.04 | C24: 0.03 | D24: 0.08 | E24: 0.08 | F24: 0.09039548023
A25: Other2 | B25: 0.11 | C25: 0.11 | D25: 0.13 | E25: 0.1 | F25: 0.09
A26: Property Damage | B26: 0.09 | C26: 0.04 | D26: 0.16 | E26: 0.06 | F26: 0.03389830508
A27: Resettlement | B27: 0 | C27: 0.01 | D27: 0 | E27: 0 | F27: 0
A28: Security | B28: 0 | C28: 0 | D28: 0.01 | E28: 0 | F28: 0.005649717514
A29: Workforce Behavior | B29: 0.02 | C29: 0 | D29: 0 | E29: 0.01 | F29: 0.02259887006
A31: 1. A "community grievance" is any self-reported issue/concern (perceived or actual) that an affected member or group of the communities within our area of direct or indirect operational impact and other stakeholders wants FCX or its business partners to address and resolve. Grievances reported here are managed via our community grievance mechanism, tracked within our incident management system and were received either anonymously or with attribution by community engagement team members through in-person engagements, in writing via physical drop boxes, or via local telephone hotlines. Grievances can relate to FCX's active mining operations, exploration projects, and reclaimed or remediated sites.
A36: 2. Other includes obstruction of view, light disturbance, blight, housing and other grievances not listed above.

Sheet Community Investments
A1: FCX—ESG PERFORMANCE DATA
A2: SOCIAL INVESTMENTS: FOCUS AREAS
A3: Year Ended December 31, 2023 | B3: Community Investments ($ in millions) | C3: Programs and Projects (count)
A4: Education & Skill-Building
A5: Community Education and Support | B5: 1.2
A6: Early Education | B6: 1.2
A7: Grades Kindergarten – 12 | B7: 7.7
A8: Higher Education | B8: 5.8
A9: Scholarships | B9: 3.9
A10: STEM | B10: 0.1
A11: Workforce Development | B11: 4.5
A12: Education & Skill-Building | B12: 24.4 | C12: 82
A13: Economic Opportunity
A14: Access to Food | B14: 0.6
A15: Community Infrastructure | B15: 8.4
A16: Cultural Heritage & Arts | B16: 2.8
A17: Economic Development | B17: 8.3
A18: Environmental | B18: 1.4
A19: Health | B19: 1.7
A20: Health Care Facility | B20: 11.6
A21: Housing | B21: 0.1
A22: Livelihoods | B22: 4
A23: Recreation | B23: 4
A24: Safety | B24: 4.7
A25: Small Business Support | B25: 1.1
A26: Economic Opportunity | B26: 48.7 | C26: 294
A27: Community-Level Leadership & Capacity Building
A28: Citizen Engagement & Participation | B28: 0.6
A29: Community & Emergency Planning | B29: 1.1
A30: Leadership Training & Skill-Building | B30: 1.8
A31: Organization Governance & Effectiveness | B31: 0.5
A32: Community-Level Leadership & Capacity Building | B32: 4 | C32: 12
A33: Community Trust Funds | B33: 84.4
A34: Other1 | B34: 25.6
A35: Total Social Investments | B35: 187.1 | C35: =+C26+C12+C32 -> 388
A37: 1. Includes investments in employee giving programs such as Matching Gifts and United Way, stakeholder engagement and administrative services.

Sheet Economic Value Contributed
A1: FCX—ESG PERFORMANCE DATA
A2: ECONOMIC VALUE CONTRIBUTED ($ millions)
A3: Years Ended December 31 | B3: 2019 | C3: 2020 | D3: 2021 | E3: 2022 | F3: 2023
A4: Direct Economic Contributions1,2 | B4: 13752 | C4: 11512 | D4: 15840 | E4: 19622 | F4: 18934
A5: Cash Payments to Governments1,3,4 | B5: 1572 | C5: 1108 | D5: 3150 | E5: 5551 | F5: ='Cash Payments to Governments'!G11 -> 4003
A6: Community Investments4 | B6: 100 | C6: 108 | D6: 164 | E6: 177 | F6: 187
A8: 1. For further information, please see our 2023 Annual Report on Sustainability and FCX’s 2023 Form 10-K.
A9: 2. Amounts have been revised to reflect export duties and net profit taxes in Indonesia.
A10: 3. Amounts presented reflect credits from prior years as applicable and do not reflect payments on assessments under dispute.
A11: 4. Cash payments to governments and community investments are subsets of direct economic contributions.

Sheet Key Economic Contributions
A1: FCX—ESG PERFORMANCE DATA
A2: KEY ECONOMIC CONTRIBUTIONS ($ millions)
A3: Year Ended December 31, 2023 | B3: United States1 | C3: Indonesia | D3: Peru | E3: Chile | F3: Europe/Other2 | G3: Total
A4: Payments to Suppliers | B4: 5038 | C4: 1538 | D4: 1331 | E4: 585 | F4: 2730 | G4: 11222
A5: Employee Wages and Benefits | B5: 1744 | C5: 372 | D5: 419 | E5: 120 | F5: 98 | G5: 2753
A6: Payments to Providers of Capital:
A7: Dividends and Distributions | B7: 863 | C7: 277 | D7: 348 | E7: 0 | F7: 0 | G7: 1488
A8: Interest | B8: 353 | C8: 255 | D8: 46 | E8: 0 | F8: 32 | G8: 686
A9: Payments to Governments3 | B9: 17 | C9: 1922 | D9: 633 | E9: 25 | F9: 1 | G9: 2598
A10: Community Investments | B10: 49 | C10: 123 | D10: 9 | E10: 5 | F10: 1 | G10: 187
A11: Total Direct Economic Contributions | B11: 8064 | C11: 4487 | D11: 2786 | E11: 735 | F11: 2862 | G11: 18934
A13: Total Capital Expenditures4 | B13: 968 | C13: 3411 | D13: 271 | E13: 97 | F13: 77 | G13: 4824
A15: 1. Includes parent company results.
A16: 2. Represents costs by FCX's other business groups that are located outside of the countries where FCX conducts its primary operations.
A17: 3. Excludes employee payroll taxes, property taxes, dividends, and other taxes and fees, which are included in payments to suppliers and dividends. A reconciliation to the 2023 Cash Payments to Governments table can be found on the Cash Payments to Governments tab in this performance data booklet.
A19: 4. Includes costs for capital projects, which includes additional payments to suppliers, employee wages and benefits, payments to providers of capital and payments to governments, not included in the table above.
A20: Note: These amounts were derived primarily from FCX’s publicly reported segment data. For disclosure of FCX’s segment data in accordance with U.S. GAAP, see FCX’s 2023 Form 10-K pages 169–173.

Sheet Cash Payments to Governments
A1: FCX—ESG PERFORMANCE DATA
A2: CASH PAYMENTS TO GOVERNMENTS1 ($ millions)
A3: Year Ended December 31, 2023 | B3: United States | C3: Indonesia | D3: Peru | E3: Chile | F3: Europe/Other2 | G3: Total
A4: Corporate Income Taxes, Net of Refunds | B4: 0 | C4: 940 | D4: 555 | E4: 18 | F4: 1 | G4: 1514
A5: Withholding Taxes on Foreign Dividends | B5: 0 | C5: 43 | D5: 24 | E5: 0 | F5: 0 | G5: 67
A6: Employee Payroll Taxes3 | B6: 457 | C6: 91 | D6: 75 | E6: 16 | F6: 33 | G6: 672
A7: Dividends | B7: 0 | C7: 277 | D7: 0 | E7: 0 | F7: 0 | G7: 277
A8: Royalties and Net Severance Taxes | B8: 17 | C8: 357 | D8: 54 | E8: 7 | F8: 0 | G8: 435
A9: Property Taxes | B9: 80 | C9: 69 | D9: 0 | E9: 0 | F9: 3 | G9: 152
A10: Other Taxes & Fees4 | B10: 39 | C10: 756 | D10: 69 | E10: 23 | F10: -1 | G10: 886
A11: Total Cash Payments to Governments | B11: 593 | C11: 2533 | D11: 777 | E11: 64 | F11: 36 | G11: 4003
A13: 1. This schedule reflects a voluntary effort by FCX to capture its cash payments to governments (net of refunds). Amounts presented do not reflect payments on assessment under dispute. Amounts presented reflect credits from prior years, as applicable. Jurisdictions listed primarily represent taxes and payments to governments at a project-level, except for the U.S. where country tax payments are levied at the entity level.
A15: 2. Represents cash payments to governments by FCX's other business groups that are located outside of the countries where FCX conducts its primary operations.
A16: 3. Includes payroll taxes collected on behalf of employees and paid to governments.
A17: 4. Includes customs and export duties, as well as withholding tax on foreign services.
A21: RECONCILIATION OF CASH PAYMENTS TO GOVERNMENTS ($ millions)
A22: Year Ended December 31, 2023 | B22: United States | C22: Indonesia | D22: Peru | E22: Chile | F22: Europe/Other | G22: Total
A23: Cash Payments to Governments | B23: 593 | C23: 2533 | D23: 777 | E23: 64 | F23: 36 | G23: 4003
A24: Less:
A25: Employee Payroll Taxes | B25: 457 | C25: 91 | D25: 75 | E25: 16 | F25: 33 | G25: 672
A26: Property Taxes | B26: 80 | C26: 69 | D26: 0 | E26: 0 | F26: 3 | G26: 152
A27: Dividends | B27: 0 | C27: 277 | D27: 0 | E27: 0 | F27: 0 | G27: 277
A28: Other Taxes and Fees1 | B28: 39 | C28: 174 | D28: 69 | E28: 23 | F28: -1 | G28: 304
A29: Total Payments to Governments2 | B29: 17 | C29: 1922 | D29: 633 | E29: 25 | F29: 1 | G29: 2598
A31: 1. Excludes $582 million at Indonesia for export duties and net profit taxes.
A32: 2. Employee payroll taxes, dividends, property taxes and certain other taxes are included in payments to suppliers, and dividends and distributions in the summary of key economic contributions by operating region table as that data is derived primarily from FCX’s publicly reported segment data. Therefore, these taxes are excluded from cash payments to governments for purposes of reporting direct economic contributions on the Key Economic Contributions tab of this performance data booklet.

Sheet Human Rights
A1: FCX—ESG PERFORMANCE DATA
A2: HUMAN RIGHTS (count)
A3: Years Ended December 31 | B3: 2019 | C3: 2020 | D3: 2021 | E3: 2022 | F3: 2023
A4: Gross Human Rights Violations1 | B4: 0 | C4: 0 | D4: 0 | E4: 2 2 | F4: 0
A6: 1. There is no uniform definition under international law; however, FCX’s ongoing data collection and review processes is guided by the United Nations Office of the High Commissioner report, “The Corporate Responsibility to Respect Human Rights – An Interpretive Guide,” to identify such types of violations. In addition, FCX uses specific interpretation guidance for certain types of violations from various international organizations such as the International Labour Organization.
A9: 2. Information on the incidents at the Manyar smelter project near Surabaya, Indonesia that were determined by FCX to be gross human rights violations can be found on page 33 in FCX's 2022 Annual Report on Sustainability.

Sheet Business Ethics
A1: FCX—ESG PERFORMANCE DATA
A2: BUSINESS ETHICS
A3: Years Ended December 31 | B3: 2019 | C3: 2020 | D3: 2021 | E3: 2022 | F3: 2023
A4: FCX's Principles of Business Conduct (PBC)1
A5: Training Completion Rate - FCX Non-Manager course | B5: 1 | C5: 0.58 | D5: 1 | E5: 1 | F5: 0.99
A6: Training Completion Rate - FCX Manager course | B6: 1 | C6: 0.82 | D6: 1 | E6: 1 | F6: 1
A7: Anti-Corruption Policy and Procedures
A8: Board Certification Rate | B8: 1 | C8: 1 | D8: 1 | E8: 1 | F8: 1
A9: Training Completion Rate2 | B9: 1 | C9: 0.82 | D9: 1 | E9: 1 | F9: 0.99
A10: Number of Employees Trained2 | B10: 3873 | C10: 3013 | D10: 3576 | E10: 3574 | F10: 3726
A12: Complaints Received
A13: Number of FCX Compliance Line Reports | B13: 285 | C13: 270 | D13: 205 | E13: 372 | F13: 457
A15: 1. PBC training is assigned to active and applicable employees and covers health & safety concepts, addressing harassment & discrimination, dealing with inappropriate behavior, preventing conflicts of interest and retaliation from co-workers, and reminds employees how to raise concerns via the Compliance Line.
A18: 2. Select employees receive anti-corruption training based on their job category. Anti-corruption policies and procedures are communicated during this training.
A19: Note: Because of operational challenges as a result of the COVID-19 pandemic, our 2020 business ethics and anti-corruption training were voluntary for employees.

Sheet Procurement Spend Distribution
A1: FCX—ESG PERFORMANCE DATA
A2: PROCUREMENT SPEND ($ millions)
A3: Years Ended December 31 | B3: 2019 | C3: 2020 | D3: 2021 | E3: 2022 | F3: 2023
A4: Local | B4: 3613 | C4: 2980 | D4: 3350 | E4: 4077 | F4: 4432
A5: National | B5: 5643 | C5: 4804 | D5: 5489 | E5: 8218 | F5: 9404
A6: Outside Home Country | B6: 2856 | C6: 2570 | D6: 2969 | E6: 2988 | F6: 3577
A7: Total Procurement Spend Distribution | B7: =B4+B5+B6 -> 12112 | C7: =C4+C5+C6 -> 10354 | D7: 11808 | E7: 15284 | F7: 17412
A8: % Local | B8: =B4/B7 -> 0.2982992074 | C8: =C4/C7 -> 0.2878114738 | D8: 0.2837059621 | E8: 0.27 | F8: 0.2545
A9: % National | B9: =B5/B7 -> 0.4659015852 | C9: =C5/C7 -> 0.4639752753 | D9: 0.464854336 | E9: 0.54 | F9: 0.5401
A10: % Outside Home Country | B10: =B6/B7 -> 0.2357992074 | C10: =C6/C7 -> 0.2482132509 | D10: 0.2514397019 | E10: 0.19 | F10: 0.2054
A12: Number of Local Suppliers | B12: 3902 | C12: 3631 | D12: 3145 | E12: 3376 | F12: 3659
A14: Note: For our operations in North America, the Netherlands and Chile, local suppliers are identified as those located in the state/region where we have operations. For our operations in Spain and Peru, local suppliers are identified as those located in the city in which we operate. For our operations in the United Kingdom and Indonesia, local suppliers are identified as those in the counties/provinces surrounding our operations. National suppliers are those located in the same country as the operation. Outside home country suppliers are located in countries other than the operation.

Sheet Procurement - by site
A1: FCX—ESG PERFORMANCE DATA
A2: PROCUREMENT SPEND ($ millions)
A3: Year Ended December 31, 2023 | C3: Spend on Goods | F3: Spend on Services1
C4: Local | D4: % of Total | E4: Total | F4: Local | G4: % of Total | H4: Total | I4: Total Procurement Spend
A5: Copper Mining | B5: North America
B6: Bagdad | C6: 149 | D6: 0.47 | E6: 313 | F6: 217 | G6: 0.71 | H6: 305 | I6: 618
B7: Chino/Cobre | C7: 90 | D7: 0.49 | E7: 185 | F7: 107 | G7: 0.76 | H7: 141 | I7: 326
B8: Morenci | C8: 605 | D8: 0.5 | E8: 1211 | F8: 424 | G8: 0.52 | H8: 809 | I8: 2020
B9: Safford/Lone Star | C9: 215 | D9: 0.48 | E9: 448 | F9: 94 | G9: 0.5 | H9: 188 | I9: 636
B10: Sierrita | C10: 218 | D10: 0.51 | E10: 425 | F10: 171 | G10: 0.81 | H10: 211 | I10: 636
B11: Tyrone | C11: 42 | D11: 0.48 | E11: 88 | F11: 28 | G11: 0.71 | H11: 40 | I11: 128
B12: South America
B13: Cerro Verde | C13: 211 | D13: 0.13 | E13: 1563 | F13: 238 | G13: 0.26 | H13: 901 | I13: 2464
B14: El Abra | C14: 48 | D14: 0.14 | E14: 348 | F14: 83 | G14: 0.22 | H14: 377 | I14: 725
B15: Indonesia
B16: Grasberg | C16: 212 | D16: 0.11 | E16: 1909 | F16: 243 | G16: 0.13 | H16: 1887 | I16: 3797
B17: Total Copper Mining | C17: 1790 | D17: 0.28 | E17: 6491 | F17: 1606 | G17: 0.33 | H17: 4859 | I17: 11350
A18: Molybdenum Mining | B18: North America
B19: Climax | C19: 66 | D19: 0.62 | E19: 107 | F19: 65 | G19: 0.39 | H19: 167 | I19: 274
B20: Henderson | C20: 24 | D20: 0.45 | E20: 53 | F20: 41 | G20: 0.6 | H20: 68 | I20: 121
B21: Total Molybdenum Mining | C21: 90 | D21: 0.56 | E21: 160 | F21: 106 | G21: 0.45 | H21: 235 | I21: 395
A22: Smelting & Refining | B22: North America
B23: El Paso Refinery & Rod | C23: 15 | D23: 0.41 | E23: 36 | F23: 55 | G23: 0.48 | H23: 116 | I23: 152
B24: Miami Smelter & Rod | C24: 49 | D24: 0.39 | E24: 127 | F24: 177 | G24: 0.68 | H24: 259 | I24: 385
B25: Europe
B26: Atlantic Copper Smelter & Refinery | C26: 10 | D26: 0.01 | E26: 1674 | F26: 44 | G26: 0.17 | H26: 259 | I26: 1933
B27: Total Smelting & Refining | C27: 74 | D27: 0.04 | E27: 1837 | F27: 276 | G27: 0.44 | H27: 634 | I27: 2470
A28: Other | B28: Other
B29: Fort Madison Moly Special Products | C29: 12 | D29: 0.49 | E29: 24 | F29: 22 | G29: 0.72 | H29: 30 | I29: 54
B30: Rotterdam | C30: 4 | D30: 0.37 | E30: 11 | F30: 12 | G30: 0.42 | H30: 28 | I30: 39
B31: Stowmarket | C31: 1 | D31: 0.07 | E31: 14 | F31: 4 | G31: 0.61 | H31: 6 | I31: 20
B32: Corporate, Support & Administrative2 | C32: 20 | D32: 0.02 | E32: 832 | F32: 416 | G32: 0.18 | H32: 2252 | I32: 3084
B33: Total Other | C33: 36 | D33: 0.04 | E33: 881 | F33: 453 | G33: 0.2 | H33: 2316 | I33: 3197
A34: FCX Global | C34: 1991 | D34: 0.21 | E34: 9368 | F34: 2441 | G34: 0.3 | H34: 8044 | I34: 17412
A36: Amount Spent Locally Across Specific Groups - FCX Global
A37: Small Businesses | C37: 382 | D37: 0.56 | E37: 682 | F37: 533 | G37: 0.68 | H37: 785 | I37: 1467
A38: Women and Minority Owned Businesses3 | C38: 114 | D38: 0.84 | E38: 135 | F38: 212 | G38: 0.64 | H38: 333 | I38: 468
A40: 1. Amounts include items such as software & IT services, construction and engineering services, consulting services, recruiting, utilities and unapplied credits.
A41: 2. Includes $1.6 billion of spend on Manyar smelter and precious metals refinery project in Indonesia.
A42: 3. Demographics are self-reported.
A43: Note: For our operations in North America, the Netherlands and Chile, local suppliers are identified as those located in the state/region where we have operations. For our operations in Spain and Peru, local suppliers are identified as those located in the city in which we operate. For our operations in the United Kingdom and Indonesia, local suppliers are identified as those in the counties/provinces surrounding our operations.

Sheet Supply Chain
A1: FCX—ESG PERFORMANCE DATA
A2: RESPONSIBLE SOURCING OF MINERALS & METALS: SOURCE REVIEW OUTCOMES
A3: Year Ended December 31, 2023 | B3: Internal Sources | C3: External Sources
B4: Copper Concentrates | C4: Copper Concentrates | D4: Copper Cathode | E4: Recycled Copper | F4: Molybdenum Concentrates | G4: Roasted Molybdenum Concentrates | H4: Others in Scope | I4: Total
A5: Risk Screening Results
A6: Red Flag | B6: 1 | C6: 1 | D6: 0 | E6: 0 | F6: 0 | G6: 0 | H6: 0 | I6: =SUM(B6:H6) -> 2
A7: Orange Flag | B7: 3 | C7: 19 | D7: 2 | E7: 1 | F7: 8 | G7: 4 | H7: 0 | I7: =SUM(B7:H7) -> 37
A8: Committee Review Results
A9: Acceptabe Risk | B9: 2 | C9: 4 | D9: 2 | E9: 0 | F9: 0 | G9: 3 | H9: 0 | I9: 11
A10: Moderate Risk | B10: 2 | C10: 3 | D10: 0 | E10: 1 | F10: 6 | G10: 1 | H10: 0 | I10: 13
A11: Unacceptable Risk | B11: 0 | C11: 3 | D11: 0 | E11: 0 | F11: 2 | G11: 0 | H11: 0 | I11: 5
A12: Pending | B12: 0 | C12: 10 | D12: 0 | E12: 0 | F12: 0 | G12: 0 | H12: 0 | I12: 10
A36: 1. Country groupings are based on the geographic regions defined under the Standard Country or Area Codes for Statistical Use (known as M49) of the United Nations Statistics Division, where Mexico is classified as Central America.
A37: 2. External copper concentrate was purchased only by our Atlantic Copper smelter in 2023. The copper originating from Western Asia is associated with the blending facility of a trader who supplies us with a blend that, in 2023, was comprised of sources from South America and Western Asia.
A39: 3. External copper cathode was purchased primarily by our El Paso rod mill in 2023; a smaller amount was purchased by our Miami rod mill.
A40: 4. External recycled copper was purchased primarily by our Atlantic Copper smelter in 2023; a smaller amount was purchased by our Miami smelter. The origin of recycled copper was determined based on the Joint Due Diligence Standard for Copper, Lead, Molybdenum, Nickel and Zinc definition, which is as follows: The point in the supply chain where the recycled material is returned to the immediate supplier of the recycler.
A42: 5. Tolled unroasted molybdenum concentrates were processed at our Fort Madison, Rotterdam, and Sierrita roasting facilities; tolled roasted molybdenum concentrates were processed at our Stowmarket ferromolybdenum plant. Tolling is an arrangement where materials are processed by a company on behalf of a client who retains ownership of the agreed to metals and/or volume of those materials.

Sheet GHG Emissions
A1: FCX—ESG PERFORMANCE DATA
A2: GHG EMISSIONS (CO2e metric tons)
A3: Years Ended December 31 | C3: 2019 | D3: 2020 | E3: 2021 | F3: 2022 | G3: 2023
A4: Scope 1 GHG Emissions
A5: Copper Mining | B5: North America
B6: Bagdad | C6: 160559 | D6: 162715 | E6: 163182 | F6: 179776 | G6: 185092
B7: Chino/Cobre | C7: 148576 | D7: 53111 | E7: 100331 | F7: 87190 | G7: 132467
B8: Morenci | C8: 677159 | D8: 627797 | E8: 620636 | F8: 656640 | G8: 641444
B9: Safford/Lone Star | C9: 217855 | D9: 225197 | E9: 185084 | F9: 202373 | G9: 244308
B10: Sierrita | C10: 151818 | D10: 119190 | E10: 154978 | F10: 145309 | G10: 151587
B11: Tyrone | C11: 37227 | D11: 41910 | E11: 40622 | F11: 46535 | G11: 51257
B12: South America
B13: Cerro Verde | C13: 638972 | D13: 564127 | E13: 644126 | F13: 664044 | G13: 731321
B14: El Abra | C14: 141452 | D14: 80540 | E14: 61937 | F14: 84379 | G14: 91456
B15: Indonesia
B16: Grasberg | C16: 2212265 | D16: 2034939 | E16: 2284467 | F16: 2504660 | G16: 2546198
B17: Total Copper Mining | C17: 4385885 | D17: 3909526 | E17: 4255365 | F17: 4570905 | G17: 4775130
A18: Molybdenum Mining | B18: North America
B19: Climax | C19: 51414 | D19: 34558 | E19: 29591 | F19: 57480 | G19: 70726
B20: Henderson | C20: 19966 | D20: 17232 | E20: 17817 | F20: 17159 | G20: 17425
B21: Total Molybdenum Mining | C21: 71380 | D21: 51790 | E21: 47408 | F21: 74639 | G21: 88151
A22: Smelting & Refining | B22: North America
B23: Bayway Rod & Wire1 | C23: 916 | D23: - | E23: - | F23: - | G23: -
B24: El Paso Refinery & Rod | C24: 71105 | D24: 85613 | E24: 100043 | F24: 110204 | G24: 88340
B25: Miami Smelter & Rod | C25: 93840 | D25: 98602 | E25: 93234 | F25: 97114 | G25: 100582
B26: Norwich Rod1 | C26: 17735 | D26: - | E26: - | F26: - | G26: -
B27: Europe
B28: Atlantic Copper Smelter & Refinery | C28: 59299 | D28: 60149 | E28: 53427 | F28: 47266 | G28: 57988
B29: Kokkola Cobalt Refinery1 | C29: 4277 | D29: 3184 | E29: - | F29: - | G29: -
B30: Total Smelting & Refining | C30: 247172 | D30: 247549 | E30: 246704 | F30: 254584 | G30: 246910
A31: Other | B31: Other
B32: Fort Madison Moly Special Products | C32: 16709 | D32: 17107 | E32: 16610 | F32: 19856 | G32: 21413
B33: Rotterdam | C33: 8404 | D33: 8238 | E33: 9365 | F33: 7752 | G33: 7802
B34: Stowmarket | C34: 119 | D34: 88 | E34: 107 | F34: 86 | G34: 116
B35: Total Other | C35: 25232 | D35: 25433 | E35: 26082 | F35: 27694 | G35: 29331
A36: Total Scope 1 - FCX Global | C36: 4729669 | D36: 4234298 | E36: 4575559 | F36: 4927823 | G36: 5139523
A38: Scope 22 GHG Emissions
A39: Copper Mining | B39: North America
B40: Bagdad | C40: 231111 | D40: 239608 | E40: 160233 | F40: 159923 | G40: 172192
B41: Chino/Cobre | C41: 226323 | D41: 100720 | E41: 130793 | F41: 145538 | G41: 133472
B42: Morenci | C42: 970178 | D42: 949081 | E42: 763267 | F42: 815734 | G42: 819272
B43: Safford/Lone Star | C43: 98252 | D43: 138629 | E43: 156798 | F43: 156530 | G43: 134364
B44: Sierrita | C44: 352222 | D44: 408617 | E44: 356594 | F44: 331758 | G44: 324665
B45: Tyrone | C45: 106392 | D45: 80071 | E45: 91194 | F45: 91193 | G45: 86821
B46: South America
B47: Cerro Verde | C47: 275539 | D47: 231339 | E47: 315557 | F47: 405710 | G47: 493411
B48: El Abra3 | C48: 238720 | D48: 224033 | E48: 222730 | F48: 189561 | G48: 0
B49: Indonesia
B50: Grasberg2 | C50: 0 | D50: 0 | E50: 0 | F50: 0 | G50: 0
B51: Total Copper Mining | C51: 2498737 | D51: 2372098 | E51: 2197166 | F51: 2295947 | G51: 2164198
A52: Molybdenum Mining | B52: North America
B53: Climax | C53: 96278 | D53: 66231 | E53: 62348 | F53: 74891 | G53: 79503
B54: Henderson | C54: 110116 | D54: 103584 | E54: 87557 | F54: 86794 | G54: 87917
B55: Total Molybdenum Mining | C55: 206395 | D55: 169815 | E55: 149905 | F55: 161685 | G55: 167419
A56: Smelting & Refining | B56: North America
B57: Bayway Rod & Wire1 | C57: 773 | D57: - | E57: - | F57: - | G57: -
B58: El Paso Refinery & Rod | C58: 13078 | D58: 18293 | E58: 15493 | F58: 18670 | G58: 14022
B59: Miami Smelter & Rod3 | C59: 204128 | D59: 207312 | E59: 183425 | F59: 227545 | G59: 221668
B60: Norwich Rod1 | C60: 4907 | D60: - | E60: - | F60: - | G60: -
B61: Europe
B62: Atlantic Copper Smelter & Refinery3 | C62: 86745 | D62: 65954 | E62: 59244 | F62: 42169 | G62: 44765
B63: Kokkola Cobalt Refinery1 | C63: 22513 | D63: 6675 | E63: - | F63: - | G63: -
B64: Total Smelting & Refining | C64: 332144 | D64: 298233 | E64: 258162 | F64: 288384 | G64: 280454
A65: Other | B65: Other
B66: Fort Madison Moly Special Products | C66: 22136 | D66: 15698 | E66: 8606 | F66: 11146 | G66: 12251
B67: Rotterdam3 | C67: 0 | D67: 0 | E67: 0 | F67: 0 | G67: 0
B68: Stowmarket | C68: 447 | D68: 286 | E68: 315 | F68: 300 | G68: 329
B69: Total Other | C69: 22584 | D69: 15984 | E69: 8921 | F69: 11446 | G69: 12580
A70: Total Scope 2 - FCX Global | C70: 3059859 | D70: 2856131 | E70: 2614155 | F70: 2757463 | G70: 2624651
A72: Scope 1 + 22 GHG Emissions
A73: Copper Mining | C73: 6884622 | D73: 6281624 | E73: 6452531 | F73: 6866853 | G73: 6939328
A74: Molybdenum Mining | C74: 277775 | D74: 221605 | E74: 197314 | F74: 236324 | G74: 255570
A75: Smelting & Refining | C75: 579316 | D75: 545782 | E75: 504866 | F75: 542969 | G75: 527365
A76: Other | C76: 47816 | D76: 41417 | E76: 35003 | F76: 39140 | G76: 41911
A77: Total Scope 1 and 2 - FCX Global | C77: 7789529 | D77: 7090429 | E77: 7189714 | F77: 7685286 | G77: 7764174
A79: Scope 3 GHG Emissions
A80: Total Scope 3 - FCX Global | C80: 692336 | D80: 1729251 | E80: 5179522 | F80: 5892373 | G80: 6428197
A82: 1. In 2020, FCX closed and decommissioned its Bayway rod & wire and Norwich rod facilities, and in September 2021, FCX completed the sale of its remaining cobalt business based in Kokkola, Finland.
A83: 2. Scope 2 emissions have been calculated using a market-based method, where available. The market-based calculation of Scope 2 emissions utilizes emission factors that are available at the time of inventory close. Therefore, certain emission factors used in market-based calculations may be up to one year in arrears due to lag time. As required by the WRI/WBCSD Greenhouse Gas Protocol (GHG Protocol), FCX’s location-based 2023 Scope 2 emissions are reported on the "Dual Reporting” tab. PT-FI generates its own electricity. As a result, there are no Scope 2 emissions associated with PT-FI's Grasberg operations.
A84: 3. At El Abra and Rotterdam, we purchase renewable energy certificates (RECs) for all electricity. At Atlantic Copper and Miami, we have purchased RECs for a portion of our electricity.
A85: Note: GHG emissions are consolidated (reported on 100% basis) at operations deemed under FCX's operational control per the GHG Protocol. FCX's GHG emissions assurance statement is in the 2023 Annual Report on Sustainability available at fcx.com/sustainability.

Sheet GHG Emissions - 2030 Targets
A1: FCX—ESG PERFORMANCE DATA
A2: GHG EMISSIONS: 2030 REDUCTION TARGET PERFORMANCE | C2: Years Ended December 31
B3: Baseline Year 2018 | C3: 2019 | D3: 2020 | E3: 2021 | F3: 2022 | G3: 2023 | H3: Target Year 2030
A4: Intensity Reduction Targets¹ (CO2e metric tons/metric ton copper)
A5: Americas Copper2 - 15% intensity reduction | B5: 3.72 | C5: 3.7 | D5: 3.81 | E5: 3.59 | F5: 3.63 | G5: 3.776406478 | H5: 3.17
A6: PT-FI Grasberg3 - 30% intensity reduction | B6: 4.76 | C6: 7.73 | D6: 5.4 | E6: 3.71 | F6: 3.52 | G6: 3.38 | H6: 3.34
A7: Absolute Reduction Targets4 (CO2e metric tons)
A8: Atlantic Copper Smelter & Refinery - 50% absolute reduction | B8: 176865 | C8: 146044 | D8: 126103 | E8: 112671 | F8: 89435 | G8: 102753 | H8: 88432
A9: Primary Molybdenum Sites5 - 35% absolute reduction | B9: 308136 | C9: 325591 | D9: 263023 | E9: 232317 | F9: 275464 | G9: 297481 | H9: 200288
A11: 1. Intensity reduction targets (CO2e metric tons / metric ton copper) include total (Scope 1 and 2) emissions and do not include by-products in the denominator.
A12: 2. Americas Copper (for target) includes Bagdad, Cerro Verde, Chino (including Cobre), El Abra, Morenci, Safford (including Lone Star), Sierrita and Tyrone mines as well as the Miami smelter and El Paso refinery. This target includes all payable copper, including payable copper in concentrate and cathode, but excludes rod and wire; GHG emissions associated with the production of by-product molybdenum are also included.
A14: 3. PT-FI Grasberg's intensity reduction target is based on payable copper produced in concentrate. In 2023, PT-FI concentrate was smelted and refined by PTS and third-party smelters/refineries whose emissions are currently accounted for as our Scope 3 emissions and therefore not included in this target. Completion of the PTS expansion and Manyar smelter project is currently anticipated to occur in mid-2024 with ramp-up completion scheduled through the end of 2024. Upon completion, we plan to review the GHG emissions categorizations for these operations. Certain of these emissions may be reclassified from Scope 3 to Scopes 1 or 2. Following this review, we may adjust our PT-FI target and baseline in line with the GHG Protocol.
A17: 4. Absolute targets include total (Scope 1 and 2) emissions.
A18: 5. Primary molybdenum sites target includes Climax and Henderson mines located in the U.S., and downstream molybdenum processing facilities located in the U.S., U.K. and the Netherlands (Fort Madison, Stowmarket and Rotterdam, respectively).
A20: Note: Where available and applicable, market-based emission factors were used to calculate Scope 2 emissions reflected in this table.

Sheet Dual Reporting
A1: FCX—ESG PERFORMANCE DATA
A2: GHG EMISSIONS: SCOPE 2 GHG EMISSIONS (CO2e metric tons)
A3: Year Ended December 31, 2023 | C3: Location-Based1 | D3: Market-Based2
A4: Copper Mining | B4: North America
B5: Bagdad | C5: 183768 | D5: 172192
B6: Chino/Cobre | C6: 146751 | D6: 133472
B7: Morenci | C7: 763393 | D7: 819272
B8: Safford/Lone Star | C8: 125145 | D8: 134364
B9: Sierrita | C9: 216940 | D9: 324665
B10: Tyrone | C10: 95648 | D10: 86821
B11: South America
B12: Cerro Verde | C12: 669781 | D12: 493411
B13: El Abra3 | C13: 161185 | D13: 0
B14: Indonesia
B15: Grasberg4 | C15: 0 | D15: 0
B16: Total Copper Mining | C16: 2362609 | D16: 2164198
A17: Molybdenum Mining | B17: North America
B18: Climax | C18: 94210 | D18: 79503
B19: Henderson | C19: 104181 | D19: 87917
B20: Total Molybdenum Mining | C20: 198391 | D20: 167419
A21: Smelting & Refining | B21: North America
B22: El Paso Refinery & Rod | C22: 23597 | D22: 14022
B23: Miami Smelter & Rod3 | C23: 160103 | D23: 221668
B24: Europe
B25: Atlantic Copper Smelter & Refinery3 | C25: 72323 | D25: 44765
B26: Total Smelting & Refining | C26: 256023 | D26: 280454
A27: Other | B27: Other
B28: Fort Madison Moly Special Products | C28: 9009 | D28: 12251
B29: Rotterdam3 | C29: 5392 | D29: 0
B30: Stowmarket | C30: 329 | D30: 329
B31: Total Other | C31: 14731 | D31: 12580
A32: Total Scope 2 - FCX Global | C32: 2831755 | D32: 2624651
A34: 1. Location-based emission factors were based on regional or national grid-average emission factors in regions where FCX operates.
A36: 2. Market-based emission factors were not applicable or available for certain markets were we operate, and therefore, location-based emission factors have been used in accordance with GHG Protocol - Scope 2 Guidance. The market-based calculation of Scope 2 emissions utilizes emission factors that are available at the time of inventory close. Therefore, certain emission factors used in market-based calculations may be up to one year in arrears due to lag time.
A41: 3. At El Abra and Rotterdam, we purchase renewable energy certificates (RECs) for all electricity. At Atlantic Copper and Miami, we have purchased RECs for a portion of our electricity.
A43: 4. PT-FI generates its own electricity at Grasberg. As a result, there are no Scope 2 emissions associated with Grasberg operations.
A44: Note: GHG emissions are consolidated (reported on 100% basis) at operations deemed under FCX's operational control per the GHG Protocol. FCX's GHG emissions assurance statement is in the 2023 Annual Report on Sustainability available at fcx.com/sustainability.

Sheet Scope 3 GHG Emissions
A1: FCX—ESG PERFORMANCE DATA
A2: GHG EMISSIONS: SCOPE 3 EMISSIONS (CO2e metric tons)
A3: Years Ended December 31 | B3: 2021 | C3: 2022 | D3: 2023
A4: Upstream
A5: Category 1: Purchased goods and services1 | B5: 2849703 | C5: 3087916 | D5: 3253891
A6: Category 2: Capital goods1 | B6: Included above | C6: Included above | D6: Included above
A7: Category 3: Fuel and energy-related activities2 | B7: 551616 | C7: 938832 | D7: 1549245
A8: Category 4: Upstream transportation and distribution3 | B8: 426360 | C8: 331996 | D8: 448220
A9: Category 5: Waste generated in operations | B9: 8665 | C9: 6254 | D9: Not relevant
A10: Category 6: Business travel | B10: 1315 | C10: 4667 | D10: Not relevant
A11: Category 7: Employee commuting | B11: 14485 | C11: 12764 | D11: Not relevant
A12: Category 8: Upstream leased assets | B12: Not relevant | C12: Not relevant | D12: Not relevant
A14: Downstream
A15: Category 9: Downstream transportation and distribution3 | B15: 442010 | C15: 399201 | D15: 10180
A16: Category 10: Processing of sold products | B16: 885367 | C16: 1110743 | D16: 1166660
A17: Category 11: Use of sold products | B17: Not relevant | C17: Not relevant | D17: Not relevant
A18: Category 12: End-of-life treatment of sold products | B18: Not relevant | C18: Not relevant | D18: Not relevant
A19: Category 13: Downstream leased assets | B19: Not relevant | C19: Not relevant | D19: Not relevant
A20: Category 14: Franchises | B20: Not relevant | C20: Not relevant | D20: Not relevant
A21: Category 15: Investments | B21: Not relevant | C21: Not relevant | D21: Not relevant
A22: Total Scope 3 Emissions | B22: 5179522 | C22: 5892373 | D22: 6428196.7
A24: 1. Amounts in 2023 include emissions associated with the construction of the Manyar smelter and the expansion of PT Smelting in Indonesia.
A25: 2. Amounts in 2023 were calculated based on activity data rather than on spend data as was done in prior years.
A26: 3. Certain emissions classified as Category 9 in 2020 - 2022 were reclassified as Category 4 in 2023 to better align with the GHG Protocol.
A27: Note: GHG emissions are consolidated (reported on 100% basis) at operations deemed under FCX's operational control and categories determined “not relevant” have been assessed based on the relevance test in accordance with the GHG Protocol. The completeness and quality of our Scope 3 GHG emissions inventory has improved since reporting year 2020, and therefore, data in this table begins with reporting year 2021. During 2023, we determined emissions associated with Categories 5, 6, 7, 11 and 15 are not relevant due to minor impacts whereas Categories 8, 13 and 14 are not applicable to FCX's operations. For boundaries, methodologies, and emission factors used, please see EY's Limited Assurance Report Management Schedule in the 2023 Annual Report on Sustainability available at fcx.com/sustainability.

Sheet Air Emissions
A1: FCX—ESG PERFORMANCE DATA
A2: AIR EMISSIONS (thousand metric tons)
A3: Years Ended December 31 | B3: 2019 | C3: 2020 | D3: 2021 | E3: 2022 | F3: 2023
A4: CO, carbon monoxide1 | B4: 117.6 | C4: 98.2 | D4: 96.1 | E4: 38.4 | F4: 39.5
A5: NOX (excluding N2O), oxides of nitrogen | B5: 47.9 | C5: 39.9 | D5: 47.5 | E5: 49.7 | F5: 43.2
A6: SOX, oxides of sulfur | B6: 7.2 | C6: 7.3 | D6: 7 | E6: 6.9 | F6: 6.7
A7: PM10, particulate matter | B7: 14.2 | C7: 13.1 | D7: 13 | E7: 14.6 | F7: 16.5
A8: Hg, mercury | B8: 0.0001 | C8: 0.0001 | D8: 0.0001 | E8: 0.0002 | F8: 0.0001
A9: Pb, lead | B9: 0.02 | C9: 0.02 | D9: 0.01 | E9: 0.01 | F9: 0.01
A10: VOCs, non-methane volatile organic compounds1 | B10: 10.1 | C10: 8.3 | D10: 8.5 | E10: 4.2 | F10: 4.6
A11: Ozone Depleting Substances, CFC-11 equivalent | B11: 2e-05 | C11: 2e-05 | D11: 2e-05 | E11: 1e-05 | F11: 5e-06
A13: 1. Emission factors for CO and VOC related to haul truck engines were updated to EPA Tier 1 standards in 2022 to better reflect the average age of FCX's haul truck fleet.

Sheet Energy Consumption
A1: FCX—ESG PERFORMANCE DATA
A2: ENERGY CONSUMPTION (terajoules)
A3: Years Ended December 31 | C3: 2019 | D3: 2020 | E3: 2021 | F3: 2022 | G3: 2023
C4: Direct Energy
A5: Copper Mining | B5: North America
B6: Bagdad | C6: 2031 | D6: 2077 | E6: 2024.4 | F6: 2235 | G6: 2294
B7: Chino/Cobre | C7: 1803 | D7: 706 | E7: 1473.7 | F7: 1108 | G7: 1951
B8: Morenci | C8: 8749 | D8: 8088 | E8: 7975.25 | F8: 8295 | G8: 8163
B9: Safford/Lone Star | C9: 1667 | D9: 2008 | E9: 2244.03 | F9: 2491 | G9: 2945
B10: Sierrita | C10: 1924 | D10: 1513 | E10: 1954.88 | F10: 1850 | G10: 1927
B11: Tyrone | C11: 456 | D11: 515 | E11: 501.65 | F11: 571 | G11: 634
B12: South America
B13: Cerro Verde | C13: 7946 | D13: 7093 | E13: 7980.66 | F13: 8339 | G13: 9168
B14: El Abra | C14: 1767 | D14: 1031 | E14: 756.89 | F14: 1031 | G14: 1121
B15: Indonesia
B16: Grasberg | C16: 26066 | D16: 24217 | E16: 26422.23 | F16: 28854.1 | G16: 30239
B17: Total Copper Mining | C17: =SUM(C6:C16) -> 52409 | D17: 47248 | E17: 51333.69 | F17: =SUM(F6:F16) -> 54774.1 | G17: =SUM(G6:G16) -> 58442
A18: Molybdenum Mining | B18: North America
B19: Climax | C19: 694 | D19: 497 | E19: 424.49 | F19: 779 | G19: 944
B20: Henderson | C20: 324 | D20: 325 | E20: 332.88 | F20: 319 | G20: 322
B21: Total Molybdenum Mining | C21: =SUM(C19:C20) -> 1018 | D21: 822 | E21: 757.37 | F21: =SUM(F19:F20) -> 1098 | G21: =SUM(G19:G20) -> 1266
A22: Smelting & Refining | B22: North America
B23: Bayway Rod & Wire1 | C23: 18 | D23: - | E23: - | F23: - | G23: -
B24: El Paso Refinery & Rod | C24: 1408 | D24: 1694 | E24: 1981.39 | F24: 2184 | G24: 1749
B25: Miami Smelter & Rod | C25: 1795 | D25: 1910 | E25: 1790.38 | F25: 1869 | G25: 1876
B26: Norwich Rod1 | C26: 351 | D26: - | E26: - | F26: - | G26: -
B27: Europe
B28: Atlantic Copper Smelter & Refinery | C28: 874 | D28: 895 | E28: 800.19 | F28: 725 | G28: 866
B29: Kokkola Cobalt Refinery1 | C29: 71 | D29: 53 | E29: - | F29: - | G29: -
B30: Total Smelting & Refining | C30: =SUM(C23:C29) -> 4517 | D30: =SUM(D23:D29) -> 4552 | E30: =SUM(E23:E29) -> 4571.96 | F30: =SUM(F23:F29) -> 4778 | G30: =SUM(G23:G29) -> 4491
A31: Other | B31: Other
B32: Fort Madison Moly Special Products | C32: 325 | D32: 339 | E32: 327.47 | F32: 393 | G32: 414
B33: Rotterdam | C33: 164 | D33: 163 | E33: 184.73 | F33: 153 | G33: 155
B34: Stowmarket | C34: 2 | D34: 1 | E34: 1.56 | F34: 1 | G34: 1
B35: Total Other | C35: =SUM(C32:C34) -> 491 | D35: 503 | E35: 513.76 | F35: =SUM(F32:F34) -> 547 | G35: =SUM(G32:G34) -> 570
A36: Total Direct Energy Consumption - FCX Global | C36: 58436 | D36: 53127 | E36: 57177 | F36: =F35+F30+F21+F17 -> 61197.1 | G36: =G35+G30+G21+G17 -> 64769
C37: Indirect Energy
A38: Copper Mining | B38: North America
B39: Bagdad | C39: 2080 | D39: 2088 | E39: 1852.77 | F39: 1871 | G39: 2044
B40: Chino/Cobre | C40: 1641 | D40: 886 | E40: 1067.86 | F40: 1225 | G40: 1172
B41: Morenci | C41: 8521 | D41: 8251 | E41: 7844.26 | F41: 8393 | G41: 8492
B42: Safford/Lone Star | C42: 863 | D42: 1203 | E42: 1610.82 | F42: 1611 | G42: 1392
B43: Sierrita | C43: 1996 | D43: 2315 | E43: 2178.98 | F43: 2297 | G43: 2413
B44: Tyrone | C44: 771 | D44: 715 | E44: 749.5 | F44: 767 | G44: 764
B45: South America
B46: Cerro Verde | C46: 12868 | D46: 11005 | E46: 12457.78 | F46: 13111 | G46: 13390
B47: El Abra | C47: 2119 | D47: 1988 | E47: 2052.29 | F47: 2270 | G47: 2398
B48: Indonesia
B49: Grasberg3 | C49: 0 | D49: 0 | E49: 0 | F49: 0 | G49: 0
B50: Total Copper Mining | C50: =SUM(C39:C49) -> 30859 | D50: 28451 | E50: 29814.26 | F50: =SUM(F39:F49) -> 31545 | G50: =SUM(G39:G49) -> 32065
A51: Molybdenum Mining | B51: North America
B52: Climax | C52: 674 | D52: 464 | E52: 472.53 | F52: 572 | G52: 636
B53: Henderson | C53: 771 | D53: 726 | E53: 663.59 | F53: 663 | G53: 703
B54: Total Molybdenum Mining | C54: =SUM(C52:C53) -> 1445 | D54: 1190 | E54: 1136.12 | F54: =SUM(F52:F53) -> 1235 | G54: =SUM(G52:G53) -> 1339
A55: Smelting & Refining | B55: North America
B56: Bayway Rod & Wire1 | C56: 12 | D56: - | E56: - | F56: - | G56: -
B57: El Paso Refinery & Rod | C57: 191 | D57: 269 | E57: 240.4 | F57: 286 | G57: 227
B58: Miami Smelter & Rod | C58: 1729 | D58: 1889 | E58: 1665.34 | F58: 1837 | G58: 1781
B59: Norwich Rod1 | C59: 76 | D59: - | E59: - | F59: - | G59: -
B60: Europe
B61: Atlantic Copper Smelter & Refinery | C61: 1007 | D61: 1032 | E61: 1015.61 | F61: 804 | G61: 960
B62: Kokkola Cobalt Refinery1 | C62: 331 | D62: 98 | E62: - | F62: - | G62: -
B63: Total Smelting & Refining | C63: =SUM(C56:C62) -> 3346 | D63: =SUM(D56:D62) -> 3288 | E63: =SUM(E56:E62) -> 2921.35 | F63: =SUM(F56:F62) -> 2927 | G63: =SUM(G56:G62) -> 2968
A64: Other | B64: Other
B65: Fort Madison Moly Special Products | C65: 163 | D65: 145 | E65: 110.79 | F65: 114 | G65: 115
B66: Rotterdam | C66: 61 | D66: 46 | E66: 47.07 | F66: 49 | G66: 53
B67: Stowmarket | C67: 6 | D67: 4 | E67: 5.34 | F67: 5 | G67: 6
B68: Total Other | C68: =SUM(C65:C67) -> 230 | D68: 195 | E68: 163.2 | F68: =SUM(F65:F67) -> 168 | G68: =SUM(G65:G67) -> 174
A69: Total Indirect Energy Consumption - FCX Global | C69: 35881 | D69: 33125 | E69: 34034.93 | F69: =SUM(F68+F63+F54+F50) -> 35875 | G69: 36548
C70: Total Energy
A71: Copper Mining | C71: =+C17+C50 -> 83268 | D71: =+D17+D50 -> 75699 | E71: =+E17+E50 -> 81147.95 | F71: =F50+F17 -> 86319.1 | G71: =G50+G17 -> 90507
A72: Molybdenum Mining | C72: =+C21+C54 -> 2463 | D72: =+D21+D54 -> 2012 | E72: =+E21+E54 -> 1893.49 | F72: =F54+F21 -> 2333 | G72: =G54+G21 -> 2605
A73: Smelting & Refining | C73: =+C30+C63 -> 7863 | D73: =+D30+D63 -> 7840 | E73: =+E30+E63 -> 7493.31 | F73: =F63+F30 -> 7705 | G73: 7461
A74: Other | C74: =+C35+C68 -> 721 | D74: =+D35+D68 -> 698 | E74: =+E35+E68 -> 676.96 | F74: =F68+F35 -> 715 | G74: =G68+G35 -> 744
A75: Total Energy Consumption - FCX Global | C75: =SUM(C71:C74) -> 94315 | D75: 86249 | E75: 91211.71 | F75: =SUM(F71:F74) -> 97072.1 | G75: =SUM(G71:G74) -> 101317
A77: 1. In 2020, FCX closed and decommissioned its Bayway rod & wire and Norwich rod facilities, and in September 2021, FCX completed the sale of its remaining cobalt business based in Kokkola, Finland.
A79: 2. PT-FI generates its own electricity at Grasberg; as a result, there is no indirect energy associated with Grasberg operations.

Sheet Energy Consumption (by type)
A1: FCX—ESG PERFORMANCE DATA
A2: ENERGY CONSUMPTION (terajoules, except percentages)
C3: Direct Energy | F3: Indirect Energy | I3: Total Energy | L3: % Renewable
A4: Year Ended December 31, 2023 | C4: Renewable | D4: Nonrenewable | E4: Total | F4: Renewable | G4: Nonrenewable | H4: Total | I4: Renewable | J4: Nonrenewable | K4: Total
A5: Copper Mining | B5: North America
B6: Bagdad | C6: 0 | D6: 2294 | E6: 2294 | F6: 530 | G6: 1514 | H6: 2044 | I6: 530 | J6: 3808 | K6: 4338 | L6: 0.12
B7: Chino/Cobre | C7: 0 | D7: 1951 | E7: 1951 | F7: 85 | G7: 1087 | H7: 1172 | I7: 85 | J7: 3037 | K7: 3123 | L7: 0.03
B8: Morenci | C8: 0 | D8: 8163 | E8: 8163 | F8: 1112 | G8: 7381 | H8: 8492 | I8: 1112 | J8: 15544 | K8: 16656 | L8: 0.07
B9: Safford/Lone Star | C9: 0 | D9: 2945 | E9: 2945 | F9: 183 | G9: 1209 | H9: 1392 | I9: 183 | J9: 4155 | K9: 4337 | L9: 0.04
B10: Sierrita | C10: 0 | D10: 1927 | E10: 1927 | F10: 332 | G10: 2081 | H10: 2413 | I10: 332 | J10: 4008 | K10: 4340 | L10: 0.08
B11: Tyrone | C11: 2 | D11: 632 | E11: 634 | F11: 50 | G11: 714 | H11: 764 | I11: 51 | J11: 1346 | K11: 1398 | L11: 0.04
B12: South America
B13: Cerro Verde | C13: 457 | D13: 8710 | E13: 9168 | F13: 8979 | G13: 4411 | H13: 13390 | I13: 9436 | J13: 13122 | K13: 22558 | L13: 0.42
B14: El Abra | C14: 0 | D14: 1121 | E14: 1121 | F14: 2398 | G14: 0 | H14: 2398 | I14: 2398 | J14: 1121 | K14: 3518 | L14: 0.68
B15: Indonesia
B16: Grasberg | C16: 1232 | D16: 29007 | E16: 30239 | F16: 0 | G16: 0 | H16: 0 | I16: 1232 | J16: 29007 | K16: 30239 | L16: 0.04
B17: Total Copper Mining | C17: =SUM(C6:C16) -> 1691 | D17: 56750 | E17: 58442 | F17: 13669 | G17: 18397 | H17: 32065 | I17: 15359 | J17: =SUM(J6:J16) -> 75148 | K17: 90507 | L17: =I17/K17 -> 0.1696995812
A18: Molybdenum Mining | B18: North America
B19: Climax | C19: 0 | D19: 944 | E19: 944 | F19: 228 | G19: 408 | H19: 636 | I19: 228 | J19: 1352 | K19: 1580 | L19: 0.14
B20: Henderson | C20: 11 | D20: 311 | E20: 322 | F20: 252 | G20: 451 | H20: 703 | I20: 264 | J20: 762 | K20: 1026 | L20: 0.26
B21: Total Molybdenum Mining | C21: =SUM(C19:C20) -> 11 | D21: =SUM(D19:D20) -> 1255 | E21: 1266 | F21: 480 | G21: 859 | H21: 1339 | I21: 492 | J21: 2114 | K21: 2605 | L21: 0.19
A22: Smelting & Refining | B22: North America
B23: El Paso Refinery & Rod | C23: 0 | D23: 1749 | E23: 1749 | F23: 6 | G23: 222 | H23: 227 | I23: 6 | J23: 1970 | K23: 1976 | L23: 0
B24: Miami Smelter & Rod | C24: 0 | D24: 1876 | E24: 1876 | F24: 214 | G24: 1567 | H24: 1781 | I24: 214 | J24: 3444 | K24: 3658 | L24: 0.06
B25: Europe
B26: Atlantic Copper Smelter & Refinery | C26: 0 | D26: 866 | E26: 866 | F26: 386 | G26: 574 | H26: 960 | I26: 386 | J26: 1441 | K26: 1827 | L26: 0.21
B27: Total Smelting & Refining | C27: =SUM(C23:C26) -> 0 | D27: =SUM(D23:D26) -> 4491 | E27: 4491 | F27: 606 | G27: 2363 | H27: 2968 | I27: 606 | J27: 6855 | K27: =SUM(K23:K26) -> 7461 | L27: 0.08
A28: Other | B28: Other
B29: Fort Madison Moly Special Products | C29: 0 | D29: 414 | E29: 414 | F29: 55 | G29: 60 | H29: 115 | I29: 55 | J29: 474 | K29: 529 | L29: 0.1
B30: Rotterdam | C30: 0 | D30: 155 | E30: 155 | F30: 53 | G30: 0 | H30: 53 | I30: 53 | J30: 155 | K30: 208 | L30: 0.25
B31: Stowmarket | C31: 0 | D31: 1 | E31: 1 | F31: 2 | G31: 3 | H31: 6 | I31: 2 | J31: 5 | K31: 7 | L31: 0.33
B32: Total Other | C32: =SUM(C29:C31) -> 0 | D32: =SUM(D29:D31) -> 570 | E32: 570 | F32: 110 | G32: 63 | H32: 174 | I32: 110 | J32: 634 | K32: 744 | L32: 0.15
A33: Total - FCX Global | C33: =C32+C27+C21+C17 -> 1702 | D33: 63067 | E33: =E32+E27+E21+E17 -> 64769 | F33: 14865 | G33: 21683 | H33: 36548 | I33: 16568 | J33: 84749 | K33: =K32+K27+K21+K17 -> 101317 | L33: 0.16
A35: Note: Renewable energy sources include wind, solar, hydro, biomass and geothermal contracts for energy consumption, and a percentage associated with biofuels used on-site.

Sheet Indirect Energy (by source)
A1: FCX—ESG PERFORMANCE DATA
A2: INDIRECT ENERGY CONSUMPTION (terajoules)
A3: Year Ended December 31, 2023 | C3: Geothermal | D3: Solar | E3: Wind | F3: Nuclear | G3: Hydro | H3: Biomass | I3: Other Fossil | J3: Natural Gas | K3: Oil | L3: Coal/Coke | M3: Other
A4: Copper Mining | B4: North America
B5: Bagdad | C5: 65.4 | D5: 135.3 | E5: 141.1 | F5: 360.6 | G5: 180.7 | H5: 7.8 | I5: 0 | J5: 850.5 | K5: 0.4 | L5: 302.6 | M5: 0
B6: Chino/Cobre | C6: 13.6 | D6: 28.1 | E6: 29.7 | F6: 74.8 | G6: 12.3 | H6: 1.6 | I6: 0 | J6: 949.6 | K6: 0.1 | L6: 62.2 | M6: 0
B7: Morenci | C7: 178.1 | D7: 367.4 | E7: 385.6 | F7: 977.5 | G7: 160.5 | H7: 20.4 | I7: 0 | J7: 5584.8 | K7: 1.3 | L7: 817 | M7: 0
B8: Safford/Lone Star | C8: 29.2 | D8: 60.3 | E8: 63.4 | F8: 160.5 | G8: 26.5 | H8: 3.4 | I8: 0 | J8: 915 | K8: 0.3 | L8: 133.7 | M8: 0
B9: Sierrita | C9: 0 | D9: 148.2 | E9: 184.1 | F9: 0 | G9: 0 | H9: 0 | I9: 0 | J9: 1138.9 | K9: 0 | L9: 731.3 | M9: 210.9
B10: Tyrone | C10: 7.9 | D10: 16.4 | E10: 17.2 | F10: 43.5 | G10: 7.2 | H10: 0.9 | I10: 0 | J10: 634.5 | K10: 0.1 | L10: 36.2 | M10: 0
B11: South America
B12: Cerro Verde | C12: 0 | D12: 84.1 | E12: 432.1 | F12: 0 | G12: 8449.3 | H12: 13.4 | I12: 0 | J12: 4167.8 | K12: 243.7 | L12: 0 | M12: 0
B13: El Abra1 | C13: 0 | D13: 887.2 | E13: 95.9 | F13: 0 | G13: 1414.7 | H13: 0 | I13: 0 | J13: 0 | K13: 0 | L13: 0 | M13: 0
B14: Indonesia
B15: Grasberg2 | C15: 0 | D15: 0 | E15: 0 | F15: 0 | G15: 0 | H15: 0 | I15: 0 | J15: 0 | K15: 0 | L15: 0 | M15: 0
B16: Total Copper Mining | C16: 294.3 | D16: 1726.9 | E16: 1349 | F16: 1617 | G16: 10251.2 | H16: 47.5 | I16: 0 | J16: 14241 | K16: 245.9 | L16: 2082.9 | M16: 210.9
A17: Molybdenum Mining | B17: North America
B18: Climax | C18: 0 | D18: 26.1 | E18: 185.7 | F18: 0 | G18: 14.6 | H18: 1.9 | I18: 0 | J18: 169.2 | K18: 0 | L18: 238.5 | M18: 0
B19: Henderson | C19: 0 | D19: 28.8 | E19: 205.4 | F19: 0 | G19: 16.2 | H19: 2.1 | I19: 0 | J19: 187.1 | K19: 0 | L19: 263.8 | M19: 0
B20: Total Molybdenum Mining | C20: 0 | D20: 54.9 | E20: 391.1 | F20: 0 | G20: 30.8 | H20: 4 | I20: 0 | J20: 356.3 | K20: 0 | L20: 502.3 | M20: 0
A21: Smelting & Refining | B21: North America
B22: El Paso Refinery & Rod | C22: 0 | D22: 5.9 | E22: 0 | F22: 101.3 | G22: 0 | H22: 0 | I22: 0 | J22: 90 | K22: 0 | L22: 0 | M22: 30.2
B23: Miami Smelter & Rod1 | C23: 50.8 | D23: 110.3 | E23: 11.9 | F23: 284.5 | G23: 35.6 | H23: 5.2 | I23: 0 | J23: 629.8 | K23: 0 | L23: 426.6 | M23: 226.6
B24: Europe
B25: Atlantic Copper Smelter & Refinery1 | C25: 0 | D25: 84.5 | E25: 94.1 | F25: 209.4 | G25: 140.2 | H25: 67.2 | I25: 51.9 | J25: 260.3 | K25: 11.5 | L25: 28.8 | M25: 12.5
B26: Total Smelting & Refining | C26: 50.8 | D26: 200.6 | E26: 106.1 | F26: 595.1 | G26: 175.8 | H26: 72.4 | I26: 51.9 | J26: 980.1 | K26: 11.5 | L26: 455.4 | M26: 269.3
A27: Other | B27: Other
B28: Fort Madison Moly Special Products | C28: 0 | D28: 0.3 | E28: 54.5 | F28: 0 | G28: 0.1 | H28: 0 | I28: 0 | J28: 31.7 | K28: 0 | L28: 22.7 | M28: 5.6
B29: Rotterdam1 | C29: 0 | D29: 2 | E29: 0 | F29: 0 | G29: 50.7 | H29: 0 | I29: 0 | J29: 0 | K29: 0 | L29: 0 | M29: 0
B30: Stowmarket | C30: 0 | D30: 0.8 | E30: 0.8 | F30: 0.8 | G30: 0.1 | H30: 0.6 | I30: 0 | J30: 2.2 | K30: 0.2 | L30: 0.1 | M30: 0
B31: Total Other | C31: 0 | D31: 3.1 | E31: 55.4 | F31: 0.8 | G31: 50.9 | H31: 0.6 | I31: 0 | J31: 33.9 | K31: 0.2 | L31: 22.8 | M31: 5.6
A32: Total - FCX Global | C32: 345.1 | D32: 1985.5 | E32: 1901.5 | F32: 2213 | G32: 10508.8 | H32: 124.5 | I32: 51.9 | J32: 15611.3 | K32: 257.6 | L32: 3063.3 | M32: 485.8
A35: 1. At El Abra and Rotterdam, we purchase RECs for all electricity. Since 2020, at Atlantic Copper and Miami, we have purchased RECs for a portion of our electricity.
A36: 2. PT-FI generates its own electricity at Grasberg; as a result, there is no indirect energy associated with Grasberg operations.
A37: Note: Indirect energy consumption is calculated using resource mix, which comes from supplier data, when available.

Sheet Direct Energy (by source)
A1: FCX—ESG PERFORMANCE DATA
A2: DIRECT ENERGY CONSUMPTION (terajoules)
A3: Year Ended December 31, 2023 | C3: Coal/Coke | D3: Diesel | E3: B5 Biodiesel | F3: B20 Biodiesel | G3: B30 Biodiesel | H3: Gasoline | I3: Natural Gas | J3: Propane/LPG | K3: Aviation Fuel | L3: Used Oil
A4: Copper Mining | B4: North America
B5: Bagdad | C5: 0 | D5: 2187.7 | E5: 0 | F5: 0 | G5: 0 | H5: 33.6 | I5: 71.8 | J5: 0.8 | K5: 0 | L5: 0
B6: Chino/Cobre | C6: 0 | D6: 1042.9 | E6: 0 | F6: 0 | G6: 0 | H6: 30.7 | I6: 873.3 | J6: 3.6 | K6: 0 | L6: 0
B7: Morenci | C7: 0 | D7: 7075 | E7: 0 | F7: 0 | G7: 0 | H7: 165.6 | I7: 921.5 | J7: 1 | K7: 0 | L7: 0
B8: Safford/Lone Star | C8: 0 | D8: 2857.1 | E8: 0 | F8: 0 | G8: 0 | H8: 59.9 | I8: 0 | J8: 28.2 | K8: 0 | L8: 0
B9: Sierrita | C9: 0 | D9: 1675 | E9: 0 | F9: 0 | G9: 0 | H9: 37.6 | I9: 209.6 | J9: 4.9 | K9: 0 | L9: 0
B10: Tyrone | C10: 0 | D10: 584 | E10: 0 | F10: 7.5 | G10: 0 | H10: 18.3 | I10: 21.1 | J10: 2.7 | K10: 0 | L10: 0
B11: South America
B12: Cerro Verde | C12: 0 | D12: 0 | E12: 9146.7 | F12: 0 | G12: 0 | H12: 21.1 | I12: 0 | J12: 0 | K12: 0 | L12: 0
B13: El Abra | C13: 0 | D13: 1110.6 | E13: 0 | F13: 0 | G13: 0 | H13: 5.8 | I13: 0 | J13: 4.2 | K13: 0 | L13: 0
B14: Indonesia
B15: Grasberg | C15: 17725.4 | D15: 8020.9 | E15: 0 | F15: 0 | G15: 4107 | H15: 36.9 | I15: 0 | J15: 0 | K15: 239.7 | L15: 109.3
B16: Total Copper Mining | C16: =SUM(C5:C15) -> 17725.4 | D16: =SUM(D5:D15) -> 24553.2 | E16: 9146.7 | F16: 7.5 | G16: 4107 | H16: 409.5 | I16: 2097.3 | J16: 45.4 | K16: 239.7 | L16: 109.3
A17: Molybdenum Mining | B17: North America
B18: Climax | C18: 0 | D18: 724 | E18: 0 | F18: 0 | G18: 0 | H18: 13.7 | I18: 206.2 | J18: 0.5 | K18: 0 | L18: 0
B19: Henderson | C19: 0 | D19: 12.3 | E19: 0 | F19: 0 | G19: 37.9 | H19: 3.9 | I19: 266 | J19: 2.2 | K19: 0 | L19: 0
B20: Total Molybdenum Mining | C20: =SUM(C18:C19) -> 0 | D20: =SUM(D18:D19) -> 736.3 | E20: 0 | F20: 0 | G20: 37.9 | H20: 17.6 | I20: 472.2 | J20: 2.7 | K20: 0 | L20: 0
A21: Smelting & Refining | B21: North America
B22: El Paso Refinery & Rod | C22: 0 | D22: 4.7 | E22: 0 | F22: 0 | G22: 0 | H22: 0.4 | I22: 1734.3 | J22: 9.2 | K22: 0 | L22: 0
B23: Miami Smelter & Rod | C23: 10.6 | D23: 56.6 | E23: 0 | F23: 0 | G23: 0 | H23: 15.2 | I23: 1791 | J23: 2.9 | K23: 0 | L23: 0
B24: Europe
B25: Atlantic Copper Smelter & Refinery | C25: 73.4 | D25: 220.8 | E25: 0 | F25: 0 | G25: 0 | H25: 0 | I25: 572.1 | J25: 0 | K25: 0 | L25: 0
B26: Total Smelting & Refining | C26: =SUM(C22:C25) -> 84 | D26: =SUM(D22:D25) -> 282.1 | E26: =SUM(E22:E25) -> 0 | F26: 0 | G26: 0 | H26: 15.6 | I26: 4097.4 | J26: 12.1 | K26: 0 | L26: 0
A27: Other | B27: Other
B28: Fort Madison Moly Special Products | C28: 0 | D28: 18.6 | E28: 0 | F28: 0 | G28: 0 | H28: 0.1 | I28: 393.2 | J28: 2 | K28: 0 | L28: 0
B29: Rotterdam | C29: 0 | D29: 0.2 | E29: 0 | F29: 0 | G29: 0 | H29: 0 | I29: 154.7 | J29: 0 | K29: 0 | L29: 0
B30: Stowmarket | C30: 0 | D30: 1 | E30: 0 | F30: 0 | G30: 0 | H30: 0 | I30: 0.4 | J30: 0 | K30: 0 | L30: 0
B31: Total Other | C31: =SUM(C28:C30) -> 0 | D31: =SUM(D28:D30) -> 19.8 | E31: 0 | F31: 0 | G31: 0 | H31: 0.1 | I31: 548.3 | J31: 2 | K31: 0 | L31: 0
A32: Total - FCX Global | C32: =C31+C26+C20+C16 -> 17809.4 | D32: =D31+D26+D20+D16 -> 25591.4 | E32: =E31+E26+E20+E16 -> 9146.7 | F32: 7.5 | G32: 4144.9 | H32: 442.7 | I32: 7215.2 | J32: 62.2 | K32: 239.7 | L32: 109.3

Sheet Water (FCX Global)
A1: FCX—ESG PERFORMANCE DATA
A2: WATER PERFORMANCE: FCX GLOBAL (thousand cubic meters)
A3: Years Ended December 31 | B3: 2019 | C3: 2020 | D3: 2021 | E3: 2022 | F3: 2023
A4: New Water Withdrawn
A5: Groundwater | B5: 99323 | C5: 96749 | D5: 112828 | E5: 102636 | F5: 126689
A6: Surface Water | B6: 60475 | C6: 49788 | D6: 56352 | E6: 67182 | F6: 59999
A7: Sea Water | B7: 48578 | C7: 49218 | D7: 43020 | E7: 34719 | F7: 44308
A8: Stormwater | B8: 57153 | C8: 41983 | D8: 53023 | E8: 54475 | F8: 47791
A9: Third-party Sources | B9: 37034 | C9: 23561 | D9: 31582 | E9: 32669 | F9: 35928
A10: Total New Water Withdrawn1 | B10: 302564 | C10: 261299 | D10: 296805 | E10: 291682 | F10: 314715
A11: Total Water Recycled/Reused | B11: 1408513 | C11: 1231053 | D11: 1325184 | E11: 1526886 | F11: 1565794
A12: Total Utilized Water (Withdrawn + Recycled/Reused) | B12: 1711077 | C12: 1492352 | D12: 1621989 | E12: 1818568 | F12: 1880509
A13: Water Recycle/Reuse Rate2 (%) | B13: 0.82 | C13: 0.82 | D13: 0.82 | E13: 0.84 | F13: 0.83
A14: Total Water Discharged3 | B14: 95885 | C14: 101963 | D14: 106127 | E14: 97347 | F14: 118295
A15: Total Water Consumption4 | B15: 192792 | C15: 166752 | D15: 184714 | E15: 197983 | F15: 200579
A17: Change in Water Storage Volume | B17: 13887 | C17: -7416 | D17: 5965 | E17: -3647 | F17: -4160
A19: Water Use Efficiency Rate5 (%) | B19: 0.87 | C19: 0.89 | D19: 0.87 | E19: 0.89 | F19: 0.89
A21: 1. New water withdrawal includes new water that is received or extracted by a site and used for the first time. This includes high-quality freshwater and lower-quality water and are categorized by type: groundwater, surface water, stormwater, sea water or third-party water. Water withdrawals exclude water diverted away from operational areas without use.
A23: 2. Water Recycle/Reuse Rate = (Total Water Recycled + Reused) / Total Water Utilized.
A24: 3. Water discharged is water removed from an operation and returned to the environment or a third party after meeting required treatment and discharge standards.
A25: 4. Consumption is water that is lost in operational activities and cannot be recovered due primarily to losses from evaporation and entrainment (water entrained in product or waste).
A26: 5. Water Use Efficiency Rate = (Total Water Recycled + Reused) / (Total Water Utilization – Discharged Water).
A27: Note: Reported surface water differs from ICMM's definition, which considers surface water to be surface water plus stormwater. FCX reports surface and stormwater separately due to water right requirements in the U.S. southwest. FCX does not report water volumes per the ICMM definition of "other managed water" because they are not significant.
A31: WATER QUALITY: FCX GLOBAL (thousand cubic meters)
A32: Year Ended December 31, 2023 | B32: High Quality1 | C32: Low Quality1 | D32: Total
A33: Water Withdrawals
A34: Groundwater | B34: 111061 | C34: 15628 | D34: 126689
A35: Surface Water | B35: 59999 | C35: 0 | D35: 59999
A36: Sea Water | B36: 0 | C36: 44308 | D36: 44308
A37: Stormwater | B37: 44867 | C37: 2924 | D37: 47791
A38: Third-party Sources | B38: 35442 | C38: 486 | D38: 35928
A39: Total New Water Withdrawn2 | B39: 251369 | C39: 63346 | D39: 314715
A40: Water Discharged Off-site3
A41: To Surface | B41: 12426 | C41: 22 | D41: 12448
A42: To Sea, Ocean, or Estuary4 | B42: 14911 | C42: 90922 | D42: 105832
A43: To Third-party | B43: 0 | C43: 15 | D43: 15
A44: Total Water Discharged Off-site | B44: 27337 | C44: 90958 | D44: 118295
A45: Water Consumption5
A46: Total Water Consumption | D46: 200579
A47: Stored Water
A48: Change in Water Storage Volume | D48: -4160
A49: Total Water Recycled/Reused | D49: 1565794
A50: Total Utilized Water (Withdrawn + Recycled/Reused) | D50: 1880509
A51: Water Recycle/Reuse Rate6 (%) | D51: 0.83
A52: Water Use Efficiency Rate7 (%) | D52: 0.89
A54: 1. Per ICMM guidance, we differentiate the quality of water withdrawn and discharged into high quality and low quality. See table below for more information.
A55: 2. New water withdrawal includes new water that is received or extracted by a site and used for the first time. This includes high quality freshwater and lower quality water and are categorized by type: groundwater, surface water, stormwater, sea water or third-party water. Water withdrawals exclude water diverted away from operational areas without use.
A57: 3. Approximately 36% of water quantities discharged were associated with our Atlantic Copper Smelter where estuarine water is used for cooling and then returned to its source, 51% associated with PT-FI’s controlled riverine tailings management system, and the remaining 12% is associated with our Climax and Henderson mines in Colorado.
A59: 4. Per ICMM guidelines, low quality discharged water to sea, ocean, or estuary is categorized as such due primarily to (a) the estuarine source water used at Atlantic Copper, which is already low quality due to salinity, and (b) the discharged water associated with the function of PT-FI Grasberg’s controlled riverine tailings system, which contains alkaline pH.
A61: 5. Water Consumption = Total Water Withdrawn - Discharged Water - Change in Water Storage Volume. Consumption is water that is lost in operational activities and cannot be recovered due primarily to losses from evaporation and entrainment (water entrained in product or waste).
A63: 6. Water Recycle/Reuse Rate = (Total Water Reused + Recycled) / Total Water Utilized.
A64: 7. Water Use Efficiency Rate = (Total Water Recycled + Reused) / (Total Water Utilization – Discharged Water).
A65: Note: Reported surface water differs from ICMM's definition, which considers surface water to be surface water plus stormwater. FCX reports surface and stormwater separately due to water right requirements in the U.S. southwest. FCX does not report water volumes per the ICMM definition of "other managed water" because they are not significant.
A69: ICMM WATER QUALITY CATEGORIES
A70: High Quality | B70: Category 1 High-quality water that may require minimal and inexpensive treatment to raise quality to appropriate drinking water standard (e.g., near potable water quality).
B71: Category 2 Medium-quality water that would require a moderate level of treatment to meet appropriate drinking water standard (e.g., agricultural use).
A72: Low Quality | B72: Category 3 Low-quality water that would require significant treatment to raise quality to appropriate drinking water standards (e.g., industrial and wastewater).

Sheet Water (stressed areas)
A1: FCX—ESG PERFORMANCE DATA
A2: WATER PERFORMANCE: OPERATIONS IN WATER STRESSED AREAS (thousand cubic meters)
A3: Years Ended December 31 | B3: 2019 | C3: 2020 | D3: 2021 | E3: 2022 | F3: 2023
A4: New Water Withdrawn
A5: Groundwater | B5: 6902 | C5: 5945 | D5: 6066 | E5: 6589 | F5: 5472
A6: Surface Water | B6: 26483 | C6: 24360 | D6: 29279 | E6: 31202 | F6: 33255
A7: Sea Water | B7: 0 | C7: 0 | D7: 0 | E7: 0 | F7: 0
A8: Stormwater | B8: 779 | C8: 1496 | D8: 208 | E8: 577 | F8: 1120
A9: Third-party Sources | B9: 26129 | C9: 17717 | D9: 27242 | E9: 28333 | F9: 31104
A10: Total New Water Withdrawn1 | B10: 60293 | C10: 49518 | D10: 62794 | E10: 66701 | F10: 70950
A11: Total Water Recycled/Reused | B11: 575891 | C11: 495863 | D11: 595596 | E11: 644344 | F11: 664094
A12: Total Utilized Water (Withdrawn + Recycled/Reused) | B12: 636183 | C12: 545381 | D12: 658390 | E12: 711046 | F12: 735044
A13: Water Recycle/Reuse Rate2 (%) | B13: 0.91 | C13: 0.91 | D13: 0.9 | E13: 0.91 | F13: 0.9
A14: Total Water Discharged3 | B14: 0 | C14: 0 | D14: 0 | E14: 0 | F14: 0
A15: Total Water Consumption4 | B15: 59801 | C15: 48879 | D15: 62540 | E15: 67321 | F15: 72886
A17: Change in Water Storage Volume | B17: 492 | C17: 639 | D17: 254 | E17: -620 | F17: -1936
A19: Water Use Efficiency Rate5 (%) | B19: 0.91 | C19: 0.91 | D19: 0.9 | E19: 0.91 | F19: 0.9
A21: 1. New water withdrawn includes new water that is received or extracted by a site and used for the first time. This includes high-quality freshwater and lower-quality water and are categorized by type: groundwater, surface water, stormwater, sea water or third-party water. Water withdrawals exclude water diverted away from operational areas without use.
A23: 2. Water Recycle/Reuse Rate = (Total Water Recycled + Reused) / Total Water Utilized.
A24: 3. Water discharged is water removed from an operation and returned to the environment or a third party after meeting required treatment and discharge standards.
A25: 4. Consumption is water that is lost in operational activities and cannot be recovered due primarily to losses from evaporation and entrainment (water entrained in product or waste).
A26: 5. Water Use Efficiency Rate = (Total Water Recycled + Reused) / (Total Water Utilization – Discharged Water).
A27: Note: Reported surface water differs from ICMM's definition, which considers surface water to be surface water plus stormwater. FCX reports surface and stormwater separately due to water right requirements in the U.S. southwest. FCX does not report water volumes per the ICMM definition of "other managed water" because they are not significant. This table reflects water utilization at mine sites determined by FCX to have a high or extremely high baseline water stress rating, which account for 2 (Cerro Verde and El Abra) out of 17 of FCX's mining and mineral processing sites.
A32: WATER QUALITY: OPERATIONS IN WATER STRESSED AREAS (thousand cubic meters)
A33: Year Ended December 31, 2023 | B33: High Quality1 | C33: Low Quality1 | D33: Total
A34: Water Withdrawals
A35: Groundwater | B35: 0 | C35: 5472 | D35: 5472
A36: Surface Water | B36: 33255 | C36: 0 | D36: 33255
A37: Sea Water | B37: 0 | C37: 0 | D37: 0
A38: Stormwater | B38: 1120 | C38: 0 | D38: 1120
A39: Third-party Sources | B39: 31104 | C39: 0 | D39: 31104
A40: Total New Water Withdrawn2 | B40: 65479 | C40: 5472 | D40: 70950
A41: Water Discharged Off-site
A42: To Surface | B42: 0 | C42: 0 | D42: 0
A43: To Sea, Ocean, or Estuary | B43: 0 | C43: 0 | D43: 0
A44: To Third-party | B44: 0 | C44: 0 | D44: 0
A45: Total Water Discharged Off-site | B45: 0 | C45: 0 | D45: 0
A46: Water Consumption3
A47: Total Water Consumption | D47: 72886
A48: Stored Water
A49: Change in Water Storage Volume | D49: -1936
A50: Total Water Recycled/Reused | D50: 664094
A51: Total Utilized Water (Withdrawn + Recycled/Reused) | D51: 735044
A52: Water Recycle/Reuse Rate4 (%) | D52: 0.9
A53: Water Use Efficiency Rate5 (%) | D53: 0.9
A55: 1. Per ICMM guidance, we differentiate the quality of water withdrawn and discharged into high quality and low quality. See table below for more information.
A56: 2. New water withdrawn includes new water that is received or extracted by a site and used for the first time. This includes high quality freshwater and lower quality water and are categorized by type: groundwater, surface water, stormwater, sea water or third-party water. Water withdrawals exclude water diverted away from operational areas without use.
A58: 3. Water Consumption = Total Water Withdrawn - Discharged Water - Change in Water Storage Volume. Consumption is water that is lost in operational activities and cannot be recovered due primarily to losses from evaporation and entrainment (water entrained in product or waste).
A60: 4. Water Recycle/Reuse Rate = (Total Water Reused + Recycled) / Total Water Utilized.
A61: 5. Water Use Efficiency Rate = (Total Water Recycled + Reused) / (Total Water Utilization – Discharged Water).
A62: Note: This table reflects water utilization at mine sites determined by FCX to have a high or extremely high baseline water stress rating, which account for 2 (Cerro Verde and El Abra) out of 17 of FCX's mining and mineral processing sites. Reported surface water differs from ICMM's definition, which considers surface water to be surface water plus stormwater. FCX reports surface and stormwater separately due to water right requirements in the U.S. southwest. FCX does not report water volumes per the ICMM definition of "other managed water" because they are not significant.
A67: ICMM WATER QUALITY CATEGORIES
A68: High Quality | B68: Category 1 High-quality water that may require minimal and inexpensive treatment to raise quality to appropriate drinking water standard (e.g., near potable water quality).
B69: Category 2 Medium-quality water that would require a moderate level of treatment to meet appropriate drinking water standard (e.g., agricultural use).
A70: Low Quality | B70: Category 3 Low-quality water that would require significant treatment to raise quality to appropriate drinking water standards (e.g., industrial and wastewater).

Sheet Water Supply Risks
A1: FCX—ESG PERFORMANCE DATA
A2: WATER SUPPLY RISKS | D2: Water Supply Risks
A3: Operation | B3: Climate Conditions1 | C3: Water Sources2 | D3: Water Stress3 | E3: Excess Water4 | F3: Access Challenges5
A4: Bagdad | B4: Arid; Semi-desert | C4: Groundwater | D4: Low-Med
A5: Arizona | C5: Surface water
C6: Stormwater
C7: Third Party
A8: Cerro Verde | B8: Arid; Desert | C8: Groundwater | D8: High | F8: X
A9: Arequipa, Peru | C9: Surface water
C10: Stormwater
C11: Third Party
A12: Chino | B12: Arid; Semi-desert | C12: Groundwater | D12: Low-Med
A13: New Mexico | C13: Stormwater
C14: Third Party
A16: Climax | B16: Snow; Fully humid | C16: Groundwater | D16: Low-Med
A17: Colorado | C17: Surface water
C18: Stormwater
A20: El Abra | B20: Arid; Desert | C20: Groundwater | D20: Extremely High | F20: X
A21: Calama, Chile | C21: Stormwater
A24: Henderson | B24: Snow; Fully humid | C24: Groundwater | D24: Med-High | E24: X
A25: Colorado | C25: Surface water
C26: Stormwater
A28: Miami | B28: Arid; Semi-desert | C28: Groundwater | D28: Med-High | E28: X | F28: X
A29: Arizona | C29: Surface water
C30: Stormwater
C31: Third Party
A32: Morenci | B32: Arid; Semi-desert | C32: Groundwater | D32: Med-High | F32: X
A33: Arizona | C33: Surface water
C34: Stormwater
C35: Third Party
A36: Grasberg | B36: Tropical; Fully humid | C36: Groundwater | D36: Low | E36: X
A37: Central Papua, Indonesia | C37: Surface water
C38: Stormwater
A40: Safford | B40: Arid; Semi-desert | C40: Groundwater | D40: Med-High | F40: X
A41: Arizona | C41: Stormwater
A44: Sierrita | B44: Arid; Semi-desert | C44: Groundwater | D44: Med-High | F44: X
A45: Arizona | C45: Stormwater
A48: Tyrone | B48: Arid; Semi-desert | C48: Groundwater | D48: Low-Med
A49: New Mexico | C49: Surface water
C50: Stormwater
A53: 1. Climate conditions based on the Köppen-Geiger climate classification terminology.
A54: 2. Water sources can include groundwater, surface water, stormwater, sea water, or third-party sources (including effluent). Third-party water sources are primarily sourced from wastewater effluent.
A56: 3. FCX determines baseline water stress ratings by referencing the World Resources Institute’s Aqueduct tool's baseline water stress classifications where our operations are located and considering site-specific circumstances of withdrawal at each operation, including the location of available water sources.
A58: 4. Excess water risk applies to sites which receive more stormwater through precipitation and/or snowmelt than can be used for operational purposes. This risk is mitigated through water management plans, including water balance forecasting, diversions, enhanced evaporation and water treatment.
A60: 5. Access challenges can include legal challenges or potential changes in law or regulations that could impact our access to certain water supplies.

Sheet Water (by region)
A1: FCX—ESG PERFORMANCE DATA
A2: WATER PERFORMANCE BY REGION (thousand cubic meters)
A3: Years Ended December 31 | D3: 2019 | E3: 2020 | F3: 2021 | G3: 2022 | H3: 2023
A4: COPPER MINING | B4: North America | C4: New Water Withdrawn
C5: Groundwater | D5: 67589 | E5: 65922 | F5: 71089 | G5: 60754 | H5: 72356
C6: Surface Water | D6: 20795 | E6: 16245 | F6: 18857 | G6: 27240 | H6: 17858
C7: Sea Water | D7: 0 | E7: 0 | F7: 0 | G7: 0 | H7: 0
C8: Stormwater | D8: 16218 | E8: 8945 | F8: 18575 | G8: 20980 | H8: 14371
C9: Third-party Sources | D9: 8472 | E9: 3540 | F9: 2054 | G9: 2378 | H9: 2496
C10: Total New Water Withdrawn1 | D10: 113074 | E10: 94652 | F10: 110575 | G10: 111352 | H10: 107080
C11: Total Water Recycled/Reused | D11: 685170 | E11: 613440 | F11: 574321 | G11: 711682 | H11: 734348
C12: Total Utilized Water (Withdrawn + Recycled/Reused) | D12: 798245 | E12: 708092 | F12: 684896 | G12: 823035 | H12: 841428
C13: Water Recycle/Reuse Rate2 (%) | D13: 0.86 | E13: 0.87 | F13: 0.84 | G13: 0.86 | H13: 0.87
C14: Total Water Discharged3 | D14: 0 | E14: 0 | F14: 191 | G14: 0 | H14: 0
C15: Total Water Consumption4 | D15: 113946 | E15: 100035 | F15: 104279 | G15: 112740 | H15: 109211
C16: Change in Water Storage Volume | D16: -872 | E16: -5383 | F16: 6105 | G16: -1387 | H16: -2130
C17: Water Use Efficiency Rate5 (%) | D17: 0.86 | E17: 0.87 | F17: 0.84 | G17: 0.86 | H17: 0.87
B18: South America | C18: New Water Withdrawn
C19: Groundwater | D19: 6902 | E19: 5945 | F19: 6066 | G19: 6589 | H19: 5472
C20: Surface Water | D20: 26483 | E20: 24360 | F20: 29279 | G20: 31202 | H20: 33255
C21: Sea Water | D21: 0 | E21: 0 | F21: 0 | G21: 0 | H21: 0
C22: Stormwater | D22: 779 | E22: 1496 | F22: 208 | G22: 577 | H22: 1120
C23: Third-party Sources | D23: 26129 | E23: 17717 | F23: 27242 | G23: 28333 | H23: 31104
C24: Total New Water Withdrawn1 | D24: 60293 | E24: 49518 | F24: 62794 | G24: 66701 | H24: 70950
C25: Total Water Recycled/Reused | D25: 575891 | E25: 495863 | F25: 595596 | G25: 644344 | H25: 664094
C26: Total Utilized Water (Withdrawn + Recycled/Reused) | D26: 636183 | E26: 545381 | F26: 658390 | G26: 711046 | H26: 735044
C27: Water Recycle/Reuse Rate2 (%) | D27: 0.91 | E27: 0.91 | F27: 0.9 | G27: 0.91 | H27: 0.9
C28: Total Water Discharged3 | D28: 0 | E28: 0 | F28: 0 | G28: 0 | H28: 0
C29: Total Water Consumption4 | D29: 59801 | E29: 48879 | F29: 62540 | G29: 67321 | H29: 72886
C30: Change in Water Storage Volume | D30: 492 | E30: 639 | F30: 254 | G30: -620 | H30: -1936
C31: Water Use Efficiency Rate5 (%) | D31: 0.91 | E31: 0.91 | F31: 0.9 | G31: 0.91 | H31: 0.9
B32: Indonesia | C32: New Water Withdrawn
C33: Groundwater | D33: 21123 | E33: 21036 | F33: 31984 | G33: 31526 | H33: 44608
C34: Surface Water | D34: 6710 | E34: 4734 | F34: 5960 | G34: 6529 | H34: 6896
C35: Sea Water | D35: 0 | E35: 0 | F35: 0 | G35: 0 | H35: 0
C36: Stormwater | D36: 17082 | E36: 16348 | F36: 16831 | G36: 16134 | H36: 13789
C37: Third-party Sources | D37: 0 | E37: 0 | F37: 0 | G37: 0 | H37: 0
C38: Total New Water Withdrawn1 | D38: 44915 | E38: 42119 | F38: 54775 | G38: 54188 | H38: 65293
C39: Total Water Recycled/Reused | D39: 77986 | E39: 64302 | F39: 101534 | G39: 118651 | H39: 108157
C40: Total Utilized Water (Withdrawn + Recycled/Reused) | D40: 122901 | E40: 106420 | F40: 156309 | G40: 172839 | H40: 173451
C41: Water Recycle/Reuse Rate2 (%) | D41: 0.63 | E41: 0.6 | F41: 0.65 | G41: 0.69 | H41: 0.62
C42: Total Water Discharged3 | D42: 28089 | E42: 38721 | F42: 51022 | G42: 49966 | H42: 61115
C43: Total Water Consumption4 | D43: 4259 | E43: 3339 | F43: 3751 | G43: 4216 | H43: 4186
C44: Change in Water Storage Volume | D44: 12567 | E44: 59 | F44: 2 | G44: 6 | H44: -8
C45: Water Use Efficiency Rate5 (%) | D45: 0.82 | E45: 0.95 | F45: 0.96 | G45: 0.97 | H45: 0.96
B46: TOTAL Copper Mining | C46: New Water Withdrawn
C47: Groundwater | D47: 95615 | E47: 92902 | F47: 109139 | G47: 98869 | H47: 122435
C48: Surface Water | D48: 53987 | E48: 45340 | F48: 54096 | G48: 64971 | H48: 58010
C49: Sea Water | D49: 0 | E49: 0 | F49: 0 | G49: 0 | H49: 0
C50: Stormwater | D50: 34079 | E50: 26790 | F50: 35613 | G50: 37691 | H50: 29279
C51: Third-party Sources | D51: 34602 | E51: 21257 | F51: 29296 | G51: 30711 | H51: 33600
C52: Total New Water Withdrawn1 | D52: 218283 | E52: 186288 | F52: 228144 | G52: 232242 | H52: 243324
C53: Total Water Recycled/Reused | D53: 1339047 | E53: 1173605 | F53: 1271451 | G53: 1474677 | H53: 1506599
C54: Total Utilized Water (Withdrawn + Recycled/Reused) | D54: 1557329 | E54: 1359893 | F54: 1499595 | G54: 1706919 | H54: 1749923
C55: Water Recycle/Reuse Rate2 (%) | D55: 0.86 | E55: 0.86 | F55: 0.85 | G55: 0.86 | H55: 0.86
C56: Total Water Discharged3 | D56: 28089 | E56: 38721 | F56: 51213 | G56: 49966 | H56: 61115
C57: Total Water Consumption4 | D57: 178007 | E57: 152253 | F57: 170570 | G57: 184276 | H57: 186282
C58: Change in Water Storage Volume | D58: 12187 | E58: -4686 | F58: 6361 | G58: -2000 | H58: -4074
C59: Water Use Efficiency Rate5 (%) | D59: 0.88 | E59: 0.89 | F59: 0.88 | G59: 0.89 | H59: 0.89
A60: MOLYBDENUM MINING | B60: North America | C60: New Water Withdrawn
C61: Groundwater | D61: 1462 | E61: 1256 | F61: 1150 | G61: 1256 | H61: 1210
C62: Surface Water | D62: 2663 | E62: 2470 | F62: 1213 | G62: 1270 | H62: 1167
C63: Sea Water | D63: 0 | E63: 0 | F63: 0 | G63: 0 | H63: 0
C64: Stormwater | D64: 19494 | E64: 13990 | F64: 13174 | G64: 14576 | H64: 15601
C65: Third-party Sources | D65: 0 | E65: 0 | F65: 0 | G65: 0 | H65: 0
C66: Total New Water Withdrawn1 | D66: 23619 | E66: 17716 | F66: 15537 | G66: 17101 | H66: 17978
C67: Total Water Recycled/Reused | D67: 26128 | E67: 20458 | F67: 20115 | G67: 20808 | H67: 23897
C68: Total Utilized Water (Withdrawn + Recycled/Reused) | D68: 49747 | E68: 38174 | F68: 35652 | G68: 37909 | H68: 41875
C69: Water Recycle/Reuse Rate2 (%) | D69: 0.53 | E69: 0.54 | F69: 0.56 | G69: 0.55 | H69: 0.57
C70: Total Water Discharged3 | D70: 15105 | E70: 11938 | F70: 10954 | G70: 11835 | H70: 11801
C71: Total Water Consumption4 | D71: 5747 | E71: 5025 | F71: 5210 | G71: 5727 | H71: 6003
C72: Change in Water Storage Volume | D72: 2768 | E72: 753 | F72: -627 | G72: -460 | H72: 174
C73: Water Use Efficiency Rate5 (%) | D73: 0.75 | E73: 0.78 | F73: 0.81 | G73: 0.8 | H73: 0.79
A74: SMELTING & REFINING | B74: North America | C74: New Water Withdrawn
C75: Groundwater | D75: 1855 | E75: 2067 | F75: 2040 | G75: 2043 | H75: 2274
C76: Surface Water | D76: 795 | E76: 999 | F76: 1043 | G76: 941 | H76: 822
C77: Sea Water | D77: 0 | E77: 0 | F77: 0 | G77: 0 | H77: 0
C78: Stormwater | D78: 3322 | E78: 1034 | F78: 4077 | G78: 2053 | H78: 2763
C79: Third-party Sources | D79: 87 | E79: 198 | F79: 258 | G79: 229 | H79: 272
C80: Total New Water Withdrawn1 | D80: 6059 | E80: 4298 | F80: 7418 | G80: 5266 | H80: 6131
C81: Total Water Recycled/Reused | D81: 26868 | E81: 29385 | F81: 30785 | G81: 29189 | H81: 32582
C82: Total Utilized Water (Withdrawn + Recycled/Reused) | D82: 32927 | E82: 33683 | F82: 38203 | G82: 34455 | H82: 38713
C83: Water Recycle/Reuse Rate2 (%) | D83: 0.82 | E83: 0.87 | F83: 0.81 | G83: 0.85 | H83: 0.84
C84: Total Water Discharged3 | D84: 1 | E84: 0 | F84: 0 | G84: 0 | H84: 0
C85: Total Water Consumption4 | D85: 7132 | E85: 7727 | F85: 7315 | G85: 6635 | H85: 6579
C86: Change in Water Storage Volume | D86: -1074 | E86: -3429 | F86: 103 | G86: -1369 | H86: -448
C87: Water Use Efficiency Rate5 (%) | D87: 0.82 | E87: 0.87 | F87: 0.81 | G87: 0.85 | H87: 0.84
B88: Europe | C88: New Water Withdrawn
C89: Groundwater | D89: 0 | E89: 0 | F89: 0 | G89: 0 | H89: 0
C90: Surface Water | D90: 3030 | E90: 980 | F90: 0 | G90: 0 | H90: 0
C91: Sea Water | D91: 48578 | E91: 49218 | F91: 43020 | G91: 34719 | H91: 44308
C92: Stormwater | D92: 79 | E92: 77 | F92: 42 | G92: 47 | H92: 21
C93: Third-party Sources | D93: 2200 | E93: 1986 | F93: 1928 | G93: 1608 | H93: 1893
C94: Total New Water Withdrawn1 | D94: 53887 | E94: 52261 | F94: 44990 | G94: 36374 | H94: 46223
C95: Total Water Recycled/Reused | D95: 16464 | E95: 7597 | F95: 2820 | G95: 2202 | H95: 2704
C96: Total Utilized Water (Withdrawn + Recycled/Reused) | D96: 70351 | E96: 59858 | F96: 47810 | G96: 38576 | H96: 48927
C97: Water Recycle/Reuse Rate2 (%) | D97: 0.23 | E97: 0.13 | F97: 0.06 | G97: 0.06 | H97: 0.06
C98: Total Water Discharged3 | D98: 52325 | E98: 50702 | F98: 43478 | G98: 35151 | H98: 44730
C99: Total Water Consumption4 | D99: 1668 | E99: 1533 | F99: 1511 | G99: 1223 | H99: 1492
C100: Change in Water Storage Volume | D100: -106 | E100: 25 | F100: 0 | G100: 0 | H100: 0
C101: Water Use Efficiency Rate5 (%) | D101: 0.91 | E101: 0.83 | F101: 0.65 | G101: 0.64 | H101: 0.64
B102: TOTAL Smelting & Refining | C102: New Water Withdrawn
C103: Groundwater | D103: 1855 | E103: 2067 | F103: 2040 | G103: 2043 | H103: 2274
C104: Surface Water | D104: 3825 | E104: 1978 | F104: 1043 | G104: 941 | H104: 822
C105: Sea Water | D105: 48578 | E105: 49218 | F105: 43020 | G105: 34719 | H105: 44308
C106: Stormwater | D106: 3401 | E106: 1111 | F106: 4119 | G106: 2100 | H106: 2784
C107: Third-party Sources | D107: 2287 | E107: 2184 | F107: 2186 | G107: 1837 | H107: 2165
C108: Total New Water Withdrawn1 | D108: 59946 | E108: 56559 | F108: 52408 | G108: 41640 | H108: 52354
C109: Total Water Recycled/Reused | D109: 43332 | E109: 36982 | F109: 33605 | G109: 31391 | H109: 35286
C110: Total Utilized Water (Withdrawn + Recycled/Reused) | D110: 103278 | E110: 93541 | F110: 86013 | G110: 73031 | H110: 87640
C111: Water Recycle/Reuse Rate2 (%) | D111: 0.42 | E111: 0.4 | F111: 0.39 | G111: 0.43 | H111: 0.4
C112: Total Water Discharged3 | D112: 52326 | E112: 50702 | F112: 43478 | G112: 35151 | H112: 44730
C113: Total Water Consumption4 | D113: 8800 | E113: 9260 | F113: 8826 | G113: 7857 | H113: 8071
C114: Change in Water Storage Volume | D114: -1180 | E114: -3404 | F114: 103 | G114: -1369 | H114: -448
C115: Water Use Efficiency Rate5 (%) | D115: 0.85 | E115: 0.86 | F115: 0.79 | G115: 0.83 | H115: 0.82
A116: OTHER | C116: New Water Withdrawn
C117: Groundwater | D117: 392 | E117: 524 | F117: 499 | G117: 469 | H117: 770
C118: Surface Water | D118: 0 | E118: 0 | F118: 0 | G118: 0 | H118: 0
C119: Sea Water | D119: 0 | E119: 0 | F119: 0 | G119: 0 | H119: 0
C120: Stormwater | D120: 179 | E120: 92 | F120: 117 | G120: 108 | H120: 126
C121: Third-party Sources | D121: 145 | E121: 119 | F121: 101 | G121: 122 | H121: 163
C122: Total New Water Withdrawn1 | D122: 716 | E122: 735 | F122: 717 | G122: 699 | H122: 1060
C123: Total Water Recycled/Reused | D123: 7 | E123: 8 | F123: 13 | G123: 10 | H123: 11
C124: Total Utilized Water (Withdrawn + Recycled/Reused) | D124: 723 | E124: 744 | F124: 730 | G124: 709 | H124: 1071
C125: Water Recycle/Reuse Rate2 (%) | D125: 0.01 | E125: 0.01 | F125: 0.02 | G125: 0.01 | H125: 0.01
C126: Total Water Discharged3 | D126: 365 | E126: 601 | F126: 482 | G126: 394 | H126: 649
C127: Total Water Consumption4 | D127: 239 | E127: 213 | F127: 107 | G127: 123 | H127: 222
C128: Change in Water Storage Volume | D128: 112 | E128: -79 | F128: 128 | G128: 182 | H128: 188
C129: Water Use Efficiency Rate5 (%) | D129: 0.02 | E129: 0.06 | F129: 0.05 | G129: 0.03 | H129: 0.03
A130: FCX Global | C130: New Water Withdrawn
C131: Groundwater | D131: 99323 | E131: 96749 | F131: 112828 | G131: 102636 | H131: 126689
C132: Surface Water | D132: 60475 | E132: 49788 | F132: 56352 | G132: 67182 | H132: 59999
C133: Sea Water | D133: 48578 | E133: 49218 | F133: 43020 | G133: 34719 | H133: 44308
C134: Stormwater | D134: 57153 | E134: 41983 | F134: 53023 | G134: 54475 | H134: 47791
C135: Third-party Sources | D135: 37034 | E135: 23561 | F135: 31582 | G135: 32669 | H135: 35928
C136: Total New Water Withdrawn1 | D136: 302564 | E136: 261299 | F136: 296805 | G136: 291682 | H136: 314715
C137: Total Water Recycled/Reused | D137: 1408513 | E137: 1231053 | F137: 1325184 | G137: 1526886 | H137: 1565794
C138: Total Utilized Water (Withdrawn + Recycled/Reused) | D138: 1711077 | E138: 1492352 | F138: 1621989 | G138: 1818568 | H138: 1880509
C139: Water Recycle/Reuse Rate2 (%) | D139: 0.82 | E139: 0.82 | F139: 0.82 | G139: 0.84 | H139: 0.83
C140: Total Water Discharged3 | D140: 95885 | E140: 101963 | F140: 106127 | G140: 97347 | H140: 118295
C141: Total Water Consumption4 | D141: 192792 | E141: 166752 | F141: 184714 | G141: 197983 | H141: 200579
C142: Change in Water Storage Volume | D142: 13887 | E142: -7416 | F142: 5965 | G142: -3647 | H142: -4160
C143: Water Use Efficiency Rate5 (%) | D143: 0.87 | E143: 0.89 | F143: 0.87 | G143: 0.89 | H143: 0.89
A145: 1. New water withdrawal includes new water that is received or extracted by a site and used for the first time. This includes high quality freshwater and lower quality water and are categorized by type: groundwater, surface water, stormwater, sea water or third-party water. Water withdrawals exclude water diverted away from operational areas without use.
A147: 2. Water Recycle/Reuse Rate = (Total Water Recycled + Reused) / Total Water Utilized.
A148: 3. Water discharged is water removed from an operation and returned to the environment or a third party after meeting required treatment and discharge standards.
A149: 4. Consumption is water that is lost in operational activities and cannot be recovered due primarily to losses from evaporation and entrainment (water entrained in product or waste).
A150: 5. Water Use Efficiency Rate = (Total Water Recycled + Reused) / (Total Water Utilization – Discharged Water).
A151: Note: Reported surface water differs from ICMM's definition, which considers surface water to be surface water plus stormwater. FCX reports surface and stormwater separately due to water right requirements in the U.S. southwest. FCX does not report water volumes per the ICMM definition of "other managed water" because they are not significant.

Sheet Mining.Mineral Processing Waste
A1: FCX—ESG PERFORMANCE DATA
A2: MINING AND MINERAL PROCESSING WASTE (million metric tons)
A3: Years Ended December 31 | B3: 2019 | C3: 2020 | D3: 2021 | E3: 2022 | F3: 2023
A4: Tailings Generated | B4: 309 | C4: 259 | D4: 295 | E4: 331 | F4: 341
A5: Overburden and Waste Rock | B5: 445 | C5: 349 | D5: 365 | E5: 414 | F5: 408
A6: Slags | B6: 0.5 | C6: 0.6 | D6: 0.6 | E6: 0.7 | F6: 0.7

Sheet Non-Mineral Waste.Recycled
A1: FCX—ESG PERFORMANCE DATA
A2: NON-MINERAL WASTE AND RECYCLABLE MATERIAL (thousand metric tons)
A3: Years Ended December 31 | B3: 2019 | C3: 2020 | D3: 2021 | E3: 2022 | F3: 2023
A4: Non-Hazardous Waste
A5: Recycled | B5: 92.1 | C5: 61.3 | D5: 118.3 | E5: 126.5 | F5: 127.5
A6: Disposed - Landfill | B6: 77.7 | C6: 52.7 | D6: 59.8 | E6: 62.7 | F6: 75.8
A7: Disposed - Other | B7: 4 | C7: 16.1 | D7: 23.1 | E7: 25.1 | F7: 34.9
A8: Disposed - On-site | B8: 61.4 | C8: 25 | D8: 30.9 | E8: 27.4 | F8: 29.5
A9: Total Non-Hazardous Waste and Recyclable Material | B9: 235.2 | C9: 155.1 | D9: 232.1 | E9: 241.8 | F9: 267.7
A10: Hazardous Waste
A11: Recycled | B11: 51.4 | C11: 52.7 | D11: 7.1 | E11: 7.4 | F11: 6.2
A12: Disposed - Landfill | B12: 26.6 | C12: 4 | D12: 4.5 | E12: 6.7 | F12: 5.2
A13: Stored - On-site | B13: 0 | C13: 0 | D13: 0 | E13: 0 | F13: 0
A14: Treated | B14: 25.7 | C14: 17.5 | D14: 17.9 | E14: 18.5 | F14: 18.1
A15: Total Hazardous Waste and Recyclable Material | B15: 103.7 | C15: 74.2 | D15: 29.4 | E15: 32.6 | F15: 29.5
A17: Total Non-Mineral Waste Generated | B17: 338.9 | C17: 229.3 | D17: 261.5 | E17: 274.3 | F17: 297.2
A18: % Recycled | B18: 0.42 | C18: 0.5 | D18: 0.48 | E18: 0.49 | F18: 0.45
A20: Note: We use national regulations to determine whether a material disposed or recycled is hazardous or non-hazardous waste at its point of generation.

Sheet Tailings Impoundments
A1: FCX—ESG PERFORMANCE DATA
A2: TAILINGS STORAGE FACILITIES1 (count)
B3: 2019 | C3: 2020 | D3: 2021 | E3: 2022 | F3: 2023
A4: Active | B4: 18 | C4: 17 | D4: 16 | E4: 15 | F4: 15
A5: Inactive or Closed | B5: 58 | C5: 56 | D5: 52 | E5: 48 | F5: 35
A6: Safely Closed2 | B6: 0 | C6: 0 | D6: 5 | E6: 9 | F6: 22
A7: Total Tailings Storage Facilities | B7: =B4+B5+B6 -> 76 | C7: 73 | D7: =D4+D5+D6 -> 73 | E7: 72 | F7: 72
A9: 1. Tailings storage facility counts include non-operating sites and are reviewed at least annually and updated according to construction of new facilities, changes in operating conditions, closure, business transactions and legal reviews. FCX provides additional disclosure of its tailings facilities, location, status, construction type and hazard categorization and descriptions of embankment types (upstream, centerline and downstream) on our website at fcx.com/sustainability/tailings-americas.
A12: 2. Safely Closed is defined by the Tailings Standard and requires confirmation by an external independent reviewer and an internal Accountable Executive. While many of our inactive/closed facilities have not yet gone through the specific review process to confirm the Safely Closed designation, we consistently apply our tailings management system to all facilities to support their safe management.
A15: Note: Information reported is as of January 31st of the following year as reported in each year's Form 10-K. FCX's tailings storage facilities are located in North America and South America. At our Grasberg operations in Indonesia, PT-FI operates a controlled riverine tailings management system, which is not represented in the table above.

Sheet Biodiversity and Land
A1: FCX—ESG PERFORMANCE DATA
A2: LAND (hectares)
A3: Years Ended December 31 | B3: 2019 | C3: 2020 | D3: 2021 | E3: 2022 | F3: 2023
A4: New Land Disturbed | B4: 1465 | C4: 587 | D4: 578 | E4: 976 | F4: 1415.5
A5: Land Rehabilitated | B5: 41 | C5: 35 | D5: 43 | E5: 103 | F5: 80.3
A6: Total Land Disturbed to be Rehabilitated | B6: 62388 | C6: 62913 | D6: 63444 | E6: 64318 | F6: =E6+F4-F5 -> 65653.2
A8: Note: Historical amounts may be adjusted as land surveys are conducted.
A11: BIODIVERSITY
A12: (count)
A13: Sites Adjacent to Globally or Nationally Important Biodiversity Areas | F13: 1
A14: Sites Adjacent to Globally or Nationally Important Biodiversity Areas with a Biodiversity Management Plan | F14: 1
A15: Note: PT-FI Grasberg's operations are adjacent to Lorentz National Park, however, we have not and will not conduct any mining or exploration activities in Lorentz National Park, which is a UNESCO World Heritage Site. PT-FI is in the process of fully implementing a biodiversity action plan.

Sheet Environmental Compliance
A1: FCX—ESG PERFORMANCE DATA
A2: ENVIRONMENTAL COMPLIANCE
B3: 2019 | C3: 2020 | D3: 2021 | E3: 2022 | F3: 2023
A4: Reportable Spills or Releases of Hazardous or Toxic Chemicals1 | B4: 33 | C4: 19 | D4: 20 | E4: 16 | F4: 34
A5: NOVs2 (related to permit exceedances, spills, releases or other compliance matters) | B5: 5 | C5: 6 | D5: 9 | E5: 12 | F5: 16
A6: Number of Significant Environmental Events3 | B6: 0 | C6: 0 | D6: 0 | E6: 1 | F6: 2
A7: Environmental Penalties Paid4 | B7: 124682 | C7: 67100 | D7: 18951 | E7: 24301 | F7: 10831
A9: 1. Reported figures are those reported to a national agency. Spills associated with pipeline sabotage at PT-FI's Grasberg operations are not reported in this table.
A10: 2. NOV is Notice of Violation. When NOVs are rescinded based on the legal appeals process, prior year data are updated.
A11: 3. Our risk assessment uses a likelihood and consequence matrix with a scale on each axis from 1 through 4, with 4 being the highest likelihood or consequence. Significant environmental events are defined as those with a rating of 3 or higher on the consequence scale. Information on the significant environmental events at our El Abra and Cerro Verde operations in 2023 can be found on page 115 in FCX's 2023 Annual Report on Sustainability, which is available at fcx.com/sustainability.
A14: 4. Fines paid during 2023 were associated with NOVs related to soil monitoring and reporting at Cerro Verde ($4,763), water monitoring and reporting programs at El Abra ($5,668), and wastewater discharge permit violations at the El Paso refinery and rod mill ($400).

Sheet GRI Index; SDGs
A1: GRI CONTENT INDEX
A3: The table below provides an overview of the relevant GRI Standards for our most material topics and where to find information in our Annual Report on Sustainability, website or from other sources. We are reporting in reference to the GRI Standards (2021) and the G4 Mining and Metals Sector Supplement. Websites and links can be found in the references tab.
A7: SERIES | B7: MATERIAL TOPIC | C7: DISCLOSURE | D7: DISCLOSURE DESCRIPTION | E7: FCX RESPONSE (Websites and links can be found in the references tab) | F7: Variance | G7: UN SDGs
A8: GRI 2 General Disclosures 2021 | C8: 2-1 | D8: Organizational details | E8: Freeport-McMoRan Inc. (NYSE: FCX) Phoenix, Arizona, USA Our operating mines are located in Chile, Indonesia, Peru and the United States. For further information on our operations, please see: About Us on fcx.com Form 10-K: Part I: General, Mining Operations Annual Report on Sustainability: About This Report
A9: GRI 2 General Disclosures 2021 | C9: 2-2 | D9: Entities included in the organization’s sustainability reporting | E9: Form 10-K: Part I, General Annual Report on Sustainability: About This Report
A10: GRI 2 General Disclosures 2021 | C10: 2-3 | D10: Reporting period, frequency and contact point | E10: Fiscal year ended December 31, 2023 (annual) The 2023 Annual Report on Sustainability is aligned with FCX's financial reporting period Published April 25, 2024 sustainability@fmi.com ir@fmi.com
A11: GRI 2 General Disclosures 2021 | C11: 2-4 | D11: Restatements of information | E11: As a result of methodology changes or corrections, prior year data may be adjusted or revised. Revisions are clearly noted in relevant footnotes if applicable. In the event that a revision is significant, its effect will be discussed in footnotes or the relevant section of the Sustainability Report. Data presentation and comparisons may not meet the direct needs of all stakeholders, and we encourage users of this information to contact our Sustainability Department with inquiries, sustainability@fmi.com.
A12: GRI 2 General Disclosures 2021 | C12: 2-5 | D12: External assurance | E12: Our Annual Reports on Sustainability have been independently verified since 2005. Limited assurance of the 2023 report was obtained from Ernst & Young (EY) LLP as indicated in the Report of Independent Accountants. External reasonable-level assurance reviews occur at each of our active mining and metals processing operations every three years for purposes of maintaining the Copper Mark and/or Molybdenum Mark and confirming the site is upholding ICMM Performance Expectations. Certain of our larger mining operations also undergo limited-level assurance more frequently to support our disclosures and overall responsible production performance. A combination of on-site and virtual assurance reviews were conducted in 2023. Annual Report on Sustainability: Assurance Statement External Assurance on fcx.com
A13: GRI 2 General Disclosures 2021 | C13: 2-6 | D13: Activities, value chain and other business relationships | E13: Freeport-McMoRan Inc. (Freeport-McMoRan, Freeport, FCX or the company) is a leading international mining company with headquarters in Phoenix, Arizona. FCX operates large, long-lived, geographically diverse assets with significant proven and probable reserves of copper, gold and molybdenum. FCX’s portfolio of assets includes the Grasberg minerals district in Indonesia (PT Freeport Indonesia or PT-FI), one of the world’s largest copper and gold deposits; and significant mining operations in North America and South America (Freeport Minerals Corporation or FMC), including the large-scale Morenci minerals district in Arizona and the Cerro Verde operation in Peru. About Us on fcx.com Form 10-K: Part I Products and Sales; General; Items 1. and 2. Business and Properties; Mining Production and Sales Data; Part I, Sources and Availability of Energy, Natural Resources and Raw Materials; Part II, Revenues; Part II, Management's Discussion and Analysis of Financial Condition and Results of Operations and Quantitative and Qualitative Disclosures About Market Risk Annual Report on Sustainability: Our Strategy in Action; Responsible Value Chains; Economic Contributions; Workforce; ESG Performance Data Global Supply Chain webpage on fcx.com Commodity Management webpage on fcx.com | G13: SDG 8: Decent Work and Economic Growth
A14: GRI 2 General Disclosures 2021 | C14: 2-7 | D14: Employees | E14: Form 10-K: Items 1 and 2. Business and Properties: Human Capital: Workforce Annual Report on Sustainability: Workforce; Performance Data: Workforce FCX does not have " non-guaranteed hours employees" | F14: We report the total number of employees by region and the percentage of women in each region. For the U.S., we report in line with EEO requirements. We also report the number of contractors in each region and what percent of them are covered under collective labor agreements. We also report the number of full time and part time employees, the number of employees in each job category, employees by age group and by nationality. At this time, we do not report: total of number of permanent and temporary employees by gender and region; temporary employees; methodologies and assumptions used to compile the data. | G14: SDG 8: Decent Work and Economic Growth SDG 10: Reduced Inequalities
A15: GRI 2 General Disclosures 2021 | C15: 2-8 | D15: Workers who are not employees | E15: Form 10-K: Items 1 and 2. Business and Properties: Human Capital: Workforce Annual Report on Sustainability: Workforce; ESG Performance Data | F15: We report the number of contractors employed; however, we do not discuss the most common types of contractor, the work they perform, their contractual relationship with the organization. | G15: SDG 8: Decent Work and Economic Growth SDG 10: Reduced Inequalities
A16: GRI 2 General Disclosures 2021 | C16: 2-9 | D16: Governance structure and composition | E16: Annual Report on Sustainability: Robust Governance Freeport-McMoRan Inc. Corporate Governance Guidelines Proxy Statement 2023: Corporate Governance; Board Composition and Refreshment | G16: SDG 5: Gender Equality SDG 16: Peace, Justice and Strong Institutions
A17: GRI 2 General Disclosures 2021 | C17: 2-10 | D17: Nominating and selecting the highest governance body | E17: Proxy Statement: Board and Corporate Governance Matters Freeport-McMoRan Inc. Corporate Governance Guidelines | G17: SDG 5: Gender Equality SDG 16: Peace, Justice and Strong Institutions
A18: GRI 2 General Disclosures 2021 | C18: 2-11 | D18: Chair of the highest governance body | E18: Richard C. Adkerson is the Chairman of the Board and CEO of Freeport-McMoRan Inc. Effective at the annual meeting of stockholders on June 11, 2024, Ms. Kathleen Quirk will become President and CEO. Proxy Statement: Board Leadership Structure | G18: SDG 16: Peace, Justice and Strong Institutions
A19: GRI 2 General Disclosures 2021 | C19: 2-12 | D19: Role of the highest governance body in overseeing the management of impacts | E19: Annual Report on Sustainability: Our Approach; Robust Governance; Stakeholder Engagement & Materiality; Business Conduct & Policies Proxy Statement 2023: ESG / Sustainability; Corporate Governance; Stakeholder Engagement Freeport-McMoRan Inc. Corporate Governance Guidelines Corporate Responsibility Committee Charter | G19: SDG 16: Peace, Justice and Strong Institutions SDG 17: Partnerships for the Goals
A20: GRI 2 General Disclosures 2021 | C20: 2-13 | D20: Delegation of responsibility for managing impacts | E20: Annual Report on Sustainability: Robust Governance Proxy Statement: ESG / Sustainability
A21: GRI 2 General Disclosures 2021 | C21: 2-14 | D21: Highest governance body’s role in sustainability reporting | E21: Our CEO has responsibility for the company’s sustainability performance, with active oversight from the Board. Our cross-functional Sustainability Leadership Team (SLT) includes members of the management team tasked with defining the sustainability strategy and implementing our sustainability policies, systems, and programs across the organization to achieve integrated decision-making for responsible production and performance. The SLT is sponsored by our Chief Administrative Officer and is led by our Chief Sustainability Officer, with active participation of the SLT, including our five business unit presidents and senior leadership from functional groups including health and safety, security, supply chain, human resources, sales, legal, compliance, sustainability and finance. Executive officers are held accountable for the company’s sustainability performance through the company’s performance-based annual incentive program (AIP). In 2023, ESG metrics collectively accounted for 25% of the AIP (15% safety and 10% sustainability). The results of the 2021 materiality assessment were presented to and approved by the SLT. The materiality matrix was reviewed and approved again in early 2023 to ensure that it still appropriately reflects the evolving sustainability landscape and our priority focus areas. Both the SLT and senior management also contributed directly to the development of our updated sustainability strategy in 2022, including our strategic focus areas. Annual Report on Sustainability: Letter to Stakeholders; Views from Our Corporate Responsibility Committee Chair; Robust Governance Proxy Statement 2023 GRI Content Index (this index)
A22: GRI 2 General Disclosures 2021 | C22: 2-15 | D22: Conflicts of interest | E22: Freeport-McMoRan maintains Conflicts of Interest Guidelines that are designed to provide guidance to directors, officers and employees so that conflicts of interest may be avoided. The guidelines establish procedures for disclosure of actual or potential conflicts of interest so that concerns may be addressed and any necessary corrective action may be taken. Annual Report on Sustainability: Robust Governance Freeport-McMoRan Inc. Corporate Governance Guidelines Proxy Statement 2023: Board Independence and Related Persons Transactions | G22: SDG 16: Peace, Justice and Strong Institutions
A23: GRI 2 General Disclosures 2021 | C23: 2-16 | D23: Communicating critical concerns | E23: Annual Report on Sustainability: Robust Governance Proxy Statement 2023: Communications with the Board Freeport-McMoRan Inc. Corporate Governance Guidelines | F23: We publicly report on key ESG topics communicated to the CRC, the Compensation Committee and Audit Committee. We do not report the total number of critical concerns that were communicated to the highest governance body during the reporting period.
A24: GRI 2 General Disclosures 2021 | C24: 2-17 | D24: Collective knowledge of highest governance body | E24: Annual Report on Sustainability: Robust Governance Proxy Statement 2023: Information About Director Nominees
A25: GRI 2 General Disclosures 2021 | C25: 2-18 | D25: Evaluating the highest governance body’s performance | E25: Freeport-McMoRan Inc. Corporate Governance Guidelines Proxy Statement: Board and Committee Evaluation Process; Executive Compensation Philosophy
A26: GRI 2 General Disclosures 2021 | C26: 2-19 | D26: Remuneration policies | E26: Annual Report on Sustainability: Robust Governance Proxy Statement 2023: Process of Setting Director Compensation
A27: GRI 2 General Disclosures 2021 | C27: 2-20 | D27: Process for determining remuneration | E27: We are committed to respecting the rights of our workforce, including paying fair and equal wages. Our approach to compensation and benefits is market-based, competitive and informed by annual benchmarking and analysis. This includes equal pay for equal work and compensation levels that support the acquisition of the goods and services necessary for an average-size family to meet their basic needs in the geographic locations where we operate – often referred to as a living wage. We are committed to providing equal pay for equal work regardless of gender, race, ethnicity or any area protected by law. We periodically conduct internal compensation reviews to identify possible pay gaps which cannot be explained through performance, distribution of jobs, experience, time in role and other legitimate business-related factors. Proxy Statement 2023: Process of Setting Director Compensation and Compensation Governance and Best Practices Annual Report on Sustainability: Workforce
A28: GRI 2 General Disclosures 2021 | C28: 2-21 | D28: Annual total compensation ratio | E28: Proxy Statement 2023: CEO Pay Ratio | F28: We report on CEO Pay Ratio. At this time we do not report the ratio of the percentage increase in annual total compensation for the organization’s highest-paid individual to the median percentage increase in annual total compensation for all employees (excluding the highest-paid individual).
A29: GRI 2 General Disclosures 2021 | C29: 2-22 | D29: Statement on sustainable development strategy | E29: Annual Report on Sustainability: Letter to Stakeholders; Views from Our Corporate Responsibility Committee Chair; Our Approach
A30: GRI 2 General Disclosures 2021 | C30: 2-23 | D30: Policy Commitments | E30: Freeport-McMoRan is a leading responsible copper producer. Our commitment to responsible copper production is visible in everything we do, driven by our core values of Safety, Respect, Integrity, Excellence and Commitment. Our values direct the decisions we make as a company and as individual employees. These values represent who we are and how we work – everyone, everywhere, every day. Our focus on responsible production is critical to establish and maintain acceptance from our local stakeholders through shared value creation and to meet society's responsible sourcing objectives necessary to supply the world with copper. Annual Report on Sustainability: Our Strategy; Business Conduct & Policies; Our Strategy in Action: Responsible Production; Empowered People & Resilient Communities; Thriving Environments ; Stakeholder Engagement & Materiality Freeport-McMoRan Human Rights Policy Freeport-McMoRan Business Partner Code of Conduct Freeport-McMoRan Corporate Governance | F30: We describe our policy commitments, how they are communicated, application and approach for responsible production, including due diligence and risk assessment. We disclose our policy commitments publicly and indicate the level at which each policy was approved. We do not describe whether the commitments stipulate applying the precautionary principle. | G30: SDG 16: Peace, Justice and Strong Institutions
A31: GRI 2 General Disclosures 2021 | C31: 2-24 | D31: Embedding policy commitments | E31: Annual Report on Sustainability: Business Conduct and Policies; Human Rights; Responsible Value Chains Freeport-McMoRan Principles of Business Conduct Freeport-McMoRan Business Partner Code of Conduct
A32: GRI 2 General Disclosures 2021 | C32: 2-25 | D32: Processes to remediate negative impacts | E32: Annual Report on Sustainability: Business Conduct and Policies; Human Rights; Responsible Value Chains https://secure.ethicspoint.com/domain/media/en/gui/76933/index.html
A33: GRI 2 General Disclosures 2021 | C33: 2-26 | D33: Mechanisms for seeking advice and raising concerns | E33: Annual Report on Sustainability: Business Conduct and Policies Principles of Business Conduct: FCX Compliance Line | G33: SDG 16: Peace, Justice and Strong Institutions
A34: GRI 2 General Disclosures 2021 | C34: 2-27 | D34: Compliance with laws and regulations | E34: Sustainability Report: Environmental Compliance; Human Rights Freeport-McMoRan Form 10-K: Governmental Regulations; Item 3: Legal Proceedings; Note: 12 Contingencies | F34: We disclose significant instances of non-compliance during the reporting period, as well as the total amount of environmental fines paid in the current reporting period and previous reporting periods. We do not currently disclose the total number and value for all fines incurred or paid for instances of non-compliance with laws or regulations. | G34: SDG 16: Peace, Justice and Strong Institutions
A35: GRI 2 General Disclosures 2021 | C35: 2-28 | D35: Membership of associations | E35: Annual Report on Sustainability: Stakeholder Engagement & Materiality | G35: SDG 17: Partnerships for the Goals
A36: GRI 2 General Disclosures 2021 | C36: 2-29 | D36: Approach to Stakeholder engagement | E36: FCX’s sustainability strategy relies upon, and is consistently informed by, engagement with our stakeholders. Our approach is characterized by transparency, collaboration, and meaningful dialogue with the primary goal of fostering mutual understanding, trust and cooperation with stakeholder groups. Annual Report on Sustainability: Stakeholder Engagement & Materiality; Communities & Indigenous Peoples; Human Rights; Workforce 2024 Proxy Statement: Stakeholder Engagement | G36: SDG 16: Peace, Justice and Strong Institutions SDG 17: Partnerships for the Goals
A37: GRI 2 General Disclosures 2021 | C37: 2-30 | D37: Collective bargaining agreements | E37: Annual Report on Sustainability: Workforce Form 10-K: Part I, Human Capital | G37: SDG 8: Decent Work and Economic Growth
A38: GRI 3 Material Topics 2021 | C38: 3-1 | D38: Process to determine material topics | E38: Annual Report on Sustainability: Our Approach; About this Report | F38: Our current approach to materiality is based on a formal materiality assessment, which was last conducted in 2021. It is not yet fully aligned with the GRI 2021 update.
A39: GRI 3 Material Topics 2021 | C39: 3-2 | D39: List of material topics | E39: Annual Report on Sustainability: Our Approach; About this Report
A40: GRI 200 ECONOMIC | B40: 201 Economic Performance 2016 | C40: 3-3 | D40: Management of material topics | E40: Form 10-K: Part II, Consolidated Results Annual Report on Sustainability: Our Approach; Economic Contributions; Business Conduct & Policies; Community Grievance Mechanism; Letter to Stakeholders; Message from our Corporate Responsibility Committee Chair Economic Impact on fcx.com
A41: GRI 200 ECONOMIC | B41: 201 Economic Performance 2016 | C41: 201-1 | D41: Direct economic value generated and distributed | E41: Form 10-K: Part II, Consolidated Results Annual Report on Sustainability: Community Resilience; Economic Contributions; ESG Performance Data Economic Impact on fcx.com | G41: SDG 1: No Poverty SDG 2: Zero Hunger SDG 5: Gender Equality SDG 7: Affordable and Clean Energy SDG 8: Decent Work and Economic Growth SDG 9: Industry, Innovation and Infrastructure
A42: GRI 200 ECONOMIC | B42: 201 Economic Performance 2016 | C42: 201-2 | D42: Financial implications and other risks and opportunities due to climate change | E42: Form 10-K: Environmental Risks Annual Report on Sustainability: Climate; Water Stewardship Climate Report Water Report | F42: We do disclose detailed information on risks and opportunities due to climate change. We do not report the financial implications of risks and opportunities or costs to manage them before action is taken. | G42: SDG 13: Climate Action
A43: GRI 200 ECONOMIC | B43: 201 Economic Performance 2016 | C43: 201-3 | D43: Defined benefit plan obligations and other retirement plans | E43: Form 10-K: Consolidated Statements of Cash Flows; Note 7 Accounts Payable and Accrued Liabilities; Note 9 Other Liabilities, including Employee Benefits 2024 FM Benefits Overview on fcx.com (page 8) - https://jobs.fcx.com/content/Benefits/?locale=en_US | F43: We provide information on our pension plan obligations and North American benefits package. We do not report the level of participation in retirement plans.
A44: GRI 200 ECONOMIC | B44: 203 Indirect Economic Impacts 2016 | C44: 3-3 | D44: Management of material topics | E44: Annual Report on Sustainability: Letter to Stakeholders; Views from Our Corporate Responsibility Committee Chair; Our Approach; Stakeholder Engagement & Materiality; Community Resilience; Economic Contributions; Communities & Indigenous Peoples; Business Conduct & Policies; ESG Performance Data Form 10-K: Part II, Consolidated Results Economic Impact; Assessing & Managing Impacts on fcx.com
A45: GRI 200 ECONOMIC | B45: 203 Indirect Economic Impacts 2016 | C45: 203-1 | D45: Infrastructure investments and services supported | E45: Annual Report on Sustainability: Stakeholder Engagement & Materiality; Health, Safety & Well-being; Communities & Indigenous Peoples; Economic Contributions; Environment Economic Impact on fcx.com Form 10-K: Community and Human Rights, pages 30 and 31 | G45: SDG 2: Zero Hunger SDG 5: Gender Equality SDG 7: Affordable and Clean Energy SDG 9: Industry Innovation and Infrastructure SDG 11: Sustainable Cities and Communities
A46: GRI 200 ECONOMIC | B46: 203 Indirect Economic Impacts 2016 | C46: 203-2 | D46: Significant indirect economic impacts | E46: Annual Report on Sustainability: Stakeholder Engagement & Materiality; Communities & Indigenous Peoples; Economic Contributions; ESG Performance Data Economic Impact on fcx.com | G46: SDG 1: No Poverty SDG 2: Zero Hunger SDG 3: Good Health and Well-Being SDG 8: Decent Work and Economic Growth SDG 10: Reduced Inequalities SDG 17: Partnerships for the Goals
A47: GRI 200 ECONOMIC | B47: 204 Procurement Practices 2016 | C47: 3-3 | D47: Management of material topics | E47: Annual Report on Sustainability: Our Approach; Stakeholder Engagement & Materiality; Business Conduct & Policies; Responsible Value Chains; Communities & Indigenous Peoples; Economic Contributions Economic Impact, Assessing & Managing Impacts on fcx.com Form 10-K: Part I, Sources and Availability of Energy, Natural Resources and Raw Materials
A48: GRI 200 ECONOMIC | B48: 204 Procurement Practices 2016 | C48: 204-1 | D48: Proportion of spending on local suppliers | E48: Annual Report on Sustainability: Responsible Value Chains > Local Procurement; Economic Contributions; ESG Performance Data Economic Impact > Local Procurement on fcx.com | G48: SDG 12: Responsible Consumption and Production
A49: GRI 200 ECONOMIC | B49: 205 Anti-Corruption 2016 | C49: 3-3 | D49: Management of material topics | E49: Annual Report on Sustainability: Our Approach; Business Conduct & Policies; Economic Contributions; Responsible Value Chains Economic Impact on fcx.com Form 10-K: Part I, Risk Factors
A50: GRI 200 ECONOMIC | B50: 205 Anti-Corruption 2016 | C50: 205-1 | D50: Operations assessed for risks related to corruption | E50: Every year, our internal audit firm performs a company-wide, global business risk assessment to assist in planning the next year’s audit projects. This overall risk assessment includes corruption as a risk factor. Annual Report on Sustainability: Our Approach; Business Conduct & Policies; Our Strategy in Action: Responsible Production | F50: We perform an annual company-wide, global business risk assessment; however, we do not disclose significant risks related to corruption identified through the risk assessment. | G50: SDG 16: Peace, Justice and Strong Institutions
A51: GRI 200 ECONOMIC | B51: 205 Anti-Corruption 2016 | C51: 205-2 | D51: Communication and training about anti-corruption policies and procedures | E51: Annual Report on Sustainability: Our Approach; Business Conduct & Policies; ESG Performance Data | F51: We report on our Principles of Business Conduct and Anti-corruption training; however, we do not provide a breakdown by employee category, business partners or region as requested by GRI. | G51: SDG 16: Peace, Justice and Strong Institutions
A52: GRI 200 ECONOMIC | B52: 205 Anti-Corruption 2016 | C52: 205-3 | D52: Confirmed incidents of corruption and actions taken | E52: Annual Report on Sustainability: Business Conduct & Policies> Anti-corruption | G52: SDG 16: Peace, Justice and Strong Institutions
A53: GRI 200 ECONOMIC | B53: 207 Tax 2019 | C53: 3-3 | D53: Management of material topics | E53: Annual Report on Sustainability: Economic Contributions Form 10-K: Item IA, Risk Factors
A54: GRI 200 ECONOMIC | B54: 207 Tax 2019 | C54: 207-2 | D54: Tax governance, control, and risk management | E54: Annual Report on Sustainability: Economic Contributions Form 10-K: Item IA, Risk Factors Audit Committee Charter
A55: GRI 200 ECONOMIC | B55: 207 Tax 2019 | C55: 207-4 | D55: Country-by-country reporting | E55: Annual Report on Sustainability: Economic Impacts; ESG Performance Data | F55: We disclose employee payroll taxes, property taxes, and other taxes in our performance data; however, we do not specify entity names, or other granular items requested by GRI.
A56: GRI 300 ENVIRONMENTAL | B56: 302 Energy 2016 | C56: 3-3 | D56: Management of material topics | E56: Annual Report on Sustainability: Letter to Stakeholders; Views from Our Corporate Responsibility Committee Chair; Climate; Our Approach; Thriving Environments > Climate; ESG Performance Data Climate Report Form 10-K: Part I, General
A57: GRI 300 ENVIRONMENTAL | B57: 302 Energy 2016 | C57: 302-1 | D57: Energy consumption within the organization | E57: Annual Report on Sustainability: Climate; ESG Performance Data Climate Report Form 10-K: Part I, General | F57: While we do report our energy consumption, we do not provide the methodology, assumptions, conversion factors, and/or calculation tools, related to these calculations. | G57: SDG 7: Affordable and Clean Energy SDG 8: Decent Work and Economic Growth SDG 12: Responsible Consumption and Production SDG 13: Climate Action
A58: GRI 300 ENVIRONMENTAL | B58: 302 Energy 2016 | C58: 302-2 | D58: Energy consumption outside of the organization | E58: Annual Report on Sustainability: Climate; ESG Performance Data Climate Report | F58: While we do report our Scope 3 GHG emissions per the GHG Protocol in line with this indicator we do not disclose the underlying third-party energy use or all of the methodologies related to these calculations.
A59: GRI 300 ENVIRONMENTAL | B59: 302 Energy 2016 | C59: 302-3 | D59: Energy Intensity | E59: Annual Report on Sustainability: Climate; ESG Performance Data Climate Report | F59: We disclose absolute energy consumption data by site and type; at this time, we do not report an energy intensity ratio. | G59: SDG 7: Affordable and Clean Energy SDG 8: Decent Work and Economic Growth SDG 13: Climate Action
A60: GRI 300 ENVIRONMENTAL | B60: 302 Energy 2016 | C60: 302-4 | D60: Reduction of energy consumption | E60: Annual Report on Sustainability: Climate Climate Report Freeport-McMoRan Inc. CDP - Climate Change 2023 (https://www.cdp.net/) | F60: Trend data and specific examples of reduction in energy consumption are available, however, we do not report a cumulative total for energy reductions achieved across the enterprise as a direct result of our initiatives. | G60: SDG 7: Affordable and Clean Energy SDG 8: Decent Work and Economic Growth SDG 12: Responsible Consumption and Production SDG 13: Climate Action
A61: GRI 300 ENVIRONMENTAL | B61: 302 Energy 2016 | C61: 302-5 | D61: Reductions in energy requirements of products and services | F61: Not applicable
A62: GRI 300 ENVIRONMENTAL | B62: 303 Water and Effluents 2018 | C62: 3-3 | D62: Management of material topics | E62: Annual Report on Sustainability: Our Approach; Letter to Stakeholders; Views from Our Corporate Responsibility Committee Chair; Business Conduct & Policies; Responsible Value Chains; Thriving Environments> Climate; Water Stewardship; ESG Performance Data Water Report Form 10-K: Part I, General
A63: GRI 300 ENVIRONMENTAL | B63: 303 Water and Effluents 2018 | C63: 303-1 | D63: Interactions with water as a shared resource | E63: Annual Report on Sustainability: Our Strategy in Action: Responsible Production; Water Stewardship; Environmental Compliance; ESG Performance Data Water Report | F63: We provide a description of how the organization interacts with water, our approach used to identify water-related impacts, a description of how water-related impacts are addressed. At this time we do not report on water impacts across our value chain. | G63: SDG 6: Clean Water and Sanitation
A64: GRI 300 ENVIRONMENTAL | B64: 303 Water and Effluents 2018 | C64: 303-2 | D64: Management of water discharge-related impacts | E64: Annual Report on Sustainability: Water Stewardship; ESG Performance Data | F64: We report total water discharged by quality and destination based on ICMM Water Quality Guidelines. We do not report the minimum standards set for the quality of water discharged. | G64: SDG 6: Clean Water and Sanitation
A65: GRI 300 ENVIRONMENTAL | B65: 303 Water and Effluents 2018 | C65: 303-3 | D65: Water Withdrawal | E65: Annual Report on Sustainability: Water Stewardship; ESG Performance Data | G65: SDG 6: Clean Water and Sanitation SDG 12: Responsible Consumption and Production
A66: GRI 300 ENVIRONMENTAL | B66: 303 Water and Effluents 2018 | C66: 303-4 | D66: Water Discharge | E66: Annual Report on Sustainability: Water Stewardship; ESG Performance Data | F66: Many of our sites are zero discharge for surface water. We report water discharge by source, region and areas of water stress. Discharge to groundwater is not included as it is not significant. We do not currently report priority substances of concern. | G66: SDG 6: Clean Water and Sanitation SDG 12: Responsible Consumption and Production
A67: GRI 300 ENVIRONMENTAL | B67: 303 Water and Effluents 2018 | C67: 303-5 | D67: Water consumption | E67: Annual Report on Sustainability: Water Stewardship; ESG Performance Data Water Report | G67: SDG 6: Clean Water and Sanitation SDG 12: Responsible Consumption and Production
A68: GRI 300 ENVIRONMENTAL | B68: 304 Biodiversity 2016 | C68: 3-3 | D68: Management of material topics | E68: Annual Report on Sustainability: Biodiversity Biodiversity Management Plan Summary on fcx.com | G68: SDG 13: Climate Action SDG 14: Life Below Water SDG 15: Life on Land
A69: GRI 300 ENVIRONMENTAL | B69: 304 Biodiversity 2016 | C69: 304-1 | D69: Operational sites owned, leased, managed in, or adjacent to, protected areas and areas of high biodiversity value outside protected areas | E69: Annual Report on Sustainability: Biodiversity SASB Index Biodiversity Management Plan Summary on fcx.com PT-FI's operations are adjacent to Lorentz National Park - we have not and will not conduct any mining or exploration activities in Lorentz National Park. | G69: SDG 13: Climate Action SDG 14: Life Below Water SDG 15: Life on Land
A70: GRI 300 ENVIRONMENTAL | B70: 304 Biodiversity 2016 | C70: 304-2 | D70: Significant impacts of activities, products, and services on biodiversity | E70: Annual Report on Sustainability: Biodiversity; Tailings Management Tailings Management on fcx.com Biodiversity Management Plan Summary on fcx.com | G70: SDG 13: Climate Action SDG 14: Life Below Water SDG 15: Life on Land
A71: GRI 300 ENVIRONMENTAL | B71: 304 Biodiversity 2016 | C71: 304-3 | D71: Habitats protected or restored | E71: Annual Report on Sustainability: Biodiversity; Mine Closure & Reclamation; ESG Performance Data | F71: We report examples of restoration, however we do not disclose the status of each site at the end of each reporting period. | G71: SDG 13: Climate Action SDG 14: Life Below Water SDG 15: Life on Land
A72: GRI 300 ENVIRONMENTAL | B72: 304 Biodiversity 2016 | C72: 304-4 | D72: IUCN Red List species and national conservation list species with habitats in areas affected by operations | E72: SASB Index Biodiversity Management Plan Summary on fcx.com | F72: We report biodiversity impacts relative to endangered species habitat based on SASB Metals & Mining standard, which include similar classifications to GRI 304 but are more relevant to mining.
A73: G4 | B73: M&M Sector: Biodiversity | C73: MM1 | D73: Amount of land (owned or leased, and managed for production activities or extractive use) disturbed or rehabilitated | E73: Annual Report on Sustainability: Biodiversity; Mine Closure & Reclamation; ESG Performance Data | G73: SDG 15: Life on Land
A74: G5 | B74: M&M Sector: Biodiversity | C74: MM2 | D74: The number and percentage of total sites identified as requiring biodiversity management plans according to stated criteria, and the number (percentage) of those sites with plans in place | E74: Annual Report on Sustainability: Biodiversity | G74: SDG 13: Climate Action SDG 14: Life Below Water SDG 15: Life on Land
A75: GRI 300 ENVIRONMENTAL | B75: 305 Emissions 2016 | C75: 3-3 | D75: Management of material topics | E75: Annual Report on Sustainability: Our Approach; Letter to Stakeholders; Views from Our Corporate Responsibility Committee Chair; Business Conduct & Policies; Climate Climate Report Form 10-K: Part I, Risk Factors
A76: GRI 300 ENVIRONMENTAL | B76: 305 Emissions 2016 | C76: 305-1 | D76: Direct (Scope I) GHG emissions | E76: Annual Report on Sustainability: Climate; Management's schedule of Scope 1 and 2 GHG emissions; ESG Performance Data Climate Report Freeport-McMoRan Inc. CDP - Climate Change 2023 (https://www.cdp.net/) | F76: We do not disclose global warming potential due to their lack of relevance. | G76: SDG 3: Good Health and Well-Being SDG 12: Responsible Consumption and Production SDG 13: Climate Action SDG 14: Life Below Water SDG 15: Life on Land
A77: GRI 300 ENVIRONMENTAL | B77: 305 Emissions 2016 | C77: 305-2 | D77: Energy Indirect (Scope II) GHG emissions | E77: Annual Report on Sustainability: Climate; Management's schedule of Scope 1 and 2 GHG emissions; ESG Performance Data Climate Report Freeport-McMoRan Inc. CDP - Climate Change 2023 (https://www.cdp.net/) | G77: SDG 3: Good Health and Well-Being SDG 12: Responsible Consumption and Production SDG 13: Climate Action SDG 14: Life Below Water SDG 15: Life on Land
A78: GRI 300 ENVIRONMENTAL | B78: 305 Emissions 2016 | C78: 305-3 | D78: Other indirect (Scope III) GHG emissions | E78: Annual Report on Sustainability: Climate; Management's schedule of Scope 3 GHG emissions; ESG Performance Data Climate Report Freeport-McMoRan Inc. CDP - Climate Change 2023 (https://www.cdp.net/) | F78: We provide a summary overview of our Scope 3 GHG emissions estimation methodology and Scope 3 emissions by category, but do not report our emissions by gas type. | G78: SDG 3: Good Health and Well-Being SDG 12: Responsible Consumption and Production SDG 13: Climate Action SDG 14: Life Below Water SDG 15: Life on Land
A79: GRI 300 ENVIRONMENTAL | B79: 305 Emissions 2016 | C79: 305-4 | D79: GHG emissions intensity | E79: Annual Report on Sustainability: Climate; ESG Performance Data Climate Report Freeport-McMoRan Inc. CDP - Climate Change 2023 (https://www.cdp.net/) | F79: We report GHG emissions intensity data for Americas Copper and PT-FI, which make up more than 90% of total Scope 1 & 2 GHG emissions. We do not report the GHG emissions intensity ratio for the organization as a whole. | G79: SDG 12: Responsible Consumption and Production SDG 13: Climate Action SDG 14: Life Below Water SDG 15: Life on Land
A80: GRI 300 ENVIRONMENTAL | B80: 305 Emissions 2016 | C80: 305-5 | D80: Reduction of GHG emissions | E80: Annual Report on Sustainability: Climate; ESG Performance Data Climate Report Freeport-McMoRan Inc. CDP - Climate Change 2023 (https://www.cdp.net/) | F80: We report to CDP Climate on our GHG emission reduction activities, as well as GHG emission trend data over time, compared to our base year of 2018, which was chosen to facilitate short-term target setting and represented a year of normal operations. We do not report aggregate emission reductions achieved as a direct result of reduction initiatives. | G80: SDG 12: Responsible Consumption and Production SDG 13: Climate Action SDG 14: Life Below Water SDG 15: Life on Land
A81: GRI 300 ENVIRONMENTAL | B81: 305 Emissions 2016 | C81: 305-6 | D81: Emissions of ozone-depleting substances (ODS) | E81: Annual Report on Sustainability: ESG Performance Data | F81: While we report our emissions of ozone-depleting substances, we do not report the substances included in the calculation, source of emission factors used, and the standards, methodologies, assumptions and/or calculation tools used. | G81: SDG 3: Good Health and Well-Being SDG 12: Responsible Consumption and Production SDG 13: Climate Action
A82: GRI 300 ENVIRONMENTAL | B82: 305 Emissions 2016 | C82: 305-7 | D82: Nitrogen oxides (NOX), sulfur oxides (SOX), and other significant air emissions | E82: Annual Report on Sustainability: ESG Performance Data | F82: While we report our other significant air emissions, we do not report the substances included in the calculation, source of emission factors used, and the standards, methodologies, assumptions and/or calculation tools used. | G82: SDG 3: Good Health and Well-Being SDG 12: Responsible Consumption and Production SDG 13: Climate Action SDG 14: Life Below Water SDG 15: Life on Land
A83: GRI 300 ENVIRONMENTAL | B83: 306 Waste 2020 | C83: 3-3 | D83: Management of material topics | E83: Annual Report on Sustainability: Our Approach; Letter to Stakeholders; Views from Our Corporate Responsibility Committee Chair; Business Conduct & Policies; Non-mineral Waste Management; Tailings Management; Water Stewardship; Community Grievance Mechanism Form 10-K: Part I, Risk Factors Tailings Management Documents; Assessing & Managing Impacts on fcx.com
A84: GRI 300 ENVIRONMENTAL | B84: 306 Waste 2020 | C84: 306-1 | D84: Waste generation and significant waste related impacts | E84: Annual Report on Sustainability: Tailings Management; Non-mineral Waste Management; ESG Performance Data Tailings Management Documents on fcx.com | G84: SDG 3: Good Health and Well-Being SDG 6: Clean Water and Sanitation SDG 12: Responsible Consumption and Production
A85: GRI 300 ENVIRONMENTAL | B85: 306 Waste 2020 | C85: 306-2 | D85: Management of significant waste related impacts | E85: Annual Report on Sustainability: Tailings Management; Non-mineral Waste Management; ESG Performance Data Tailings Management Documents on fcx.com | G85: SDG 3: Good Health and Well-Being SDG 6: Clean Water and Sanitation SDG 12: Responsible Consumption and Production SDG 13: Climate Action
A86: GRI 300 ENVIRONMENTAL | B86: 306 Waste and Effluents 2016 | C86: 306-3 | D86: Significant spills | E86: Annual Report on Sustainability: Performance Targets; Environmental Compliance; ESG Performance Data | G86: SDG 3: Good Health and Well-Being SDG 6: Clean Water and Sanitation SDG 12: Responsible Consumption and Production SDG 13: Climate Action SDG 14: Life Below Water SDG 15: Life on Land
A87: GRI 300 ENVIRONMENTAL | B87: 306 Waste 2020 | C87: 306-3 | D87: Waste generated | E87: Annual Report on Sustainability: Non-mineral Waste Management; ESG Performance Data | G87: SDG 3: Good Health and Well-Being SDG 6: Clean Water and Sanitation SDG 12: Responsible Consumption and Production
A88: GRI 300 ENVIRONMENTAL | B88: 306 Waste 2020 | C88: 306-4 | D88: Waste diverted from disposal | E88: Annual Report on Sustainability: Non-mineral Waste Management; ESG Performance Data | G88: SDG 12: Responsible Consumption and Production
A89: GRI 300 ENVIRONMENTAL | B89: 306 Waste 2020 | C89: 306-5 | D89: Waste directed to disposal | E89: Annual Report on Sustainability: Biodiversity; Tailings Management Tailings Management Documents on fcx.com
A90: G4 | B90: M&M: Tailings | C90: MM3 | D90: Total amounts of overburden, rock, tailings and sludges, and, their associated risks | E90: Annual Report on Sustainability: Tailings Management; Non-mineral Waste Management Tailings Management Documents on fcx.com Form 10-K: Part I, Operational Risks | G90: SDG 3: Good Health and Well-Being SDG 6: Clean Water and Sanitation SDG 11: Sustainable Cities and Communities SDG 12: Responsible Consumption and Production
A91: GRI 300 ENVIRONMENTAL | B91: 308 Supplier Environmental Assessment | C91: 3-3 | D91: Management of material topics | E91: Annual Report on Sustainability: Our Approach; Thriving Environments; Business Conduct & Policies; Responsible Value Chains FCX Environmental Policy
A92: GRI 300 ENVIRONMENTAL | B92: 308 Supplier Environmental Assessment | C92: 308-1 | D92: New suppliers that were screened using environmental criteria | E92: Annual Report on Sustainability: Business Conduct & Policies; Responsible Value Chains FCX's Environmental Policy | F92: We do screen new suppliers across a range of sustainability criteria, including environmental; we do not report on the percentage screened. | G92: SDG 12: Responsible Consumption and Production
A93: GRI 300 ENVIRONMENTAL | B93: 308 Supplier Environmental Assessment | C93: 308-2 | D93: Negative environmental impacts in the supply chain and actions taken | E93: For our minerals and metals supply chains, we report our due diligence tools and the number of suppliers flagged for a variety of risk factors, including environmental impact, and the corresponding risk review and actions taken. Annual Report on Sustainability: Responsible Value Chains | F93: We disclose the number suppliers assessed, the number of orange or red flags, and corresponding action taken in the OECD Report. We do not report the percentage of suppliers identified as having significant impacts or those terminated as a result, nor is this reporting inclusive of our entire supply chain.
A94: GRI 400 SOCIAL | B94: 401 Employment 2016 | C94: 3-3 | D94: Management of material topics | E94: Annual Report on Sustainability: Our Approach; Workforce
A95: GRI 400 SOCIAL | B95: 401 Employment 2016 | C95: 401-1 | D95: New employee hires and employee turnover | E95: Annual Report on Sustainability: Workforce; ESG Performance Data | G95: SDG 5: Gender Equality SDG 8: Decent Work and Economic Growth SDG 10: Reduced Inequalities
A96: GRI 400 SOCIAL | B96: 401 Employment 2016 | C96: 401-2 | D96: Benefits provided to full-time employees that are not provided to temporary or part-time employees | E96: Annual Report on Sustainability: Workforce; ESG Performance Data
A97: GRI 400 SOCIAL | B97: 401 Employment 2016 | C97: 401-3 | D97: Parental leave | F97: Parental leave benefits vary by region. We do not disclose participation or return rates.
A98: G4 | B98: M&M: Labor | C98: MM4 | D98: Number of strikes and lock-outs exceeding one week's duration, by country | E98: Annual Report on Sustainability: Our Approach; Workforce In 2023, there were no strikes or lock-outs at any of our operations. | G98: SDG 3: Good Health and Well-Being SDG 8: Decent Work and Economic Growth SDG 10: Reduced Inequalities
A99: GRI 400 SOCIAL | B99: 403 Occupational Health and Safety 2018 | C99: 3-3 | D99: Management of material topics | E99: Annual Report on Sustainability: Our Approach; Letter to Stakeholders; Views from Our Corporate Responsibility Committee Chair; Health, Safety & Well-being
A100: GRI 400 SOCIAL | B100: 403 Occupational Health and Safety 2018 | C100: 403-1 | D100: Occupational health and safety management system | E100: Annual Report on Sustainability: Health, Safety & Well-being Our Occupational Health and Safety Management System is voluntarily certified in accordance with the ISO 45001 Health and Safety Management System. | G100: SDG 3: Good Health and Well-Being SDG 8: Decent Work and Economic Growth
A101: GRI 400 SOCIAL | B101: 403 Occupational Health and Safety 2018 | C101: 403-2 | D101: Hazard identification, risk assessment, and incident investigation | E101: Annual Report on Sustainability: Health, Safety & Well-being; Our Strategy in Action: Responsible Production | G101: SDG 3: Good Health and Well-Being SDG 8: Decent Work and Economic Growth
A102: GRI 400 SOCIAL | B102: 403 Occupational Health and Safety 2018 | C102: 403-3 | D102: Occupational health services | E102: Annual Report on Sustainability: Health, Safety & Well-being; Our Strategy in Action: Responsible Production | G102: SDG 3: Good Health and Well-Being SDG 8: Decent Work and Economic Growth
A103: GRI 400 SOCIAL | B103: 403 Occupational Health and Safety 2018 | C103: 403-4 | D103: Worker participation, consultation, and communication on occupational health and safety | E103: Annual Report on Sustainability: Health, Safety & Well-being | F103: We report on our expectation that every member of our workforce engage in our health and safety program. We do not report on formal joint management-worker health and safety committees. | G103: SDG 3: Good Health and Well-Being SDG 8: Decent Work and Economic Growth
A104: GRI 400 SOCIAL | B104: 403 Occupational Health and Safety 2018 | C104: 403-5 | D104: Worker training on occupational health and safety | E104: Annual Report on Sustainability: Health, Safety & Well-being | G104: SDG 3: Good Health and Well-Being SDG 8: Decent Work and Economic Growth
A105: GRI 400 SOCIAL | B105: 403 Occupational Health and Safety 2018 | C105: 403-6 | D105: Promotion of worker health | E105: Annual Report on Sustainability: Health, Safety & Well-being | G105: SDG 3: Good Health and Well-Being SDG 8: Decent Work and Economic Growth
A106: GRI 400 SOCIAL | B106: 403 Occupational Health and Safety 2018 | C106: 403-7 | D106: Prevention and mitigation of occupational health and safety impacts directly linked by business relationships | E106: Annual Report on Sustainability: Health, Safety & Well-being | G106: SDG 3: Good Health and Well-Being SDG 8: Decent Work and Economic Growth
A107: GRI 400 SOCIAL | B107: 403 Occupational Health and Safety 2018 | C107: 403-8 | D107: Workers covered by an occupational health and safety management system | E107: Every member of our workforce is empowered to engage in our health and safety program, including our occupational health and safety management system. Annual Report on Sustainability: Health, Safety & Well-being | F107: Our occupational health and safety management system is ISO 45001 certified; we do not report coverage percentages as outlined by GRI.
A108: GRI 400 SOCIAL | B108: 403 Occupational Health and Safety 2018 | C108: 403-9 | D108: Work-related injuries | E108: Annual Report on Sustainability: Health, Safety & Well-being; ESG Performance Data | F108: FCX reports health and safety data based on Mine Safety and Health Administration (MSHA) reporting criteria, as such, scopes may vary from what is requested by GRI. Data include employees (full-time and part-time employees on a full-time equivalent basis) and contractors, where GRI requests employees and contractors to be reported separately. | G108: SDG 3: Good Health and Well-Being SDG 8: Decent Work and Economic Growth
A109: GRI 400 SOCIAL | B109: 403 Occupational Health and Safety 2018 | C109: 403-10 | D109: Work-related ill health | F109: We do not report this indicator at this time.
A110: GRI 400 SOCIAL | B110: 404 Training and Education 2016 | C110: 3-3 | D110: Management of material topics | E110: Annual Report on Sustainability: Our Approach; Workforce; Communities & Indigenous Peoples Communities & Indigenous Peoples on fcx.com
A111: GRI 400 SOCIAL | B111: 404 Training and Education 2016 | C111: 404-1 | D111: Average hours of training per year per employee | E111: Annual Report on Sustainability: Workforce> Recruiting, Retaining & Developing our Workforce FMJobs.com | F111: We describe various training and development opportunities available to our employees and the average hours trained; however, at this time we do not report the average of hours of training provided by gender. | G111: SDG 4: Quality Education SDG 8: Decent Work and Economic Growth
A112: GRI 400 SOCIAL | B112: 404 Training and Education 2016 | C112: 404-2 | D112: Programs for upgrading employee skills and transition assistance programs | E112: Annual Report on Sustainability: Workforce | F112: We describe various training and development opportunities available to our employees; however, at this time we do not describe transition assistance programs.
A113: GRI 400 SOCIAL | B113: 404 Training and Education 2016 | C113: 404-3 | D113: Percentage of employees receiving regular performance and career development reviews | E113: Annual Report on Sustainability: Workforce | F113: We describe career development opportunities; however we do not report the percentage of employees participating in formal reviews.
A114: GRI 400 SOCIAL | B114: 405 Diversity and Equal Opportunity 2016 | C114: 3-3 | D114: Management of material topics | E114: Annual Report on Sustainability: Our Approach; Workforce
A115: GRI 400 SOCIAL | B115: 405 Diversity and Equal Opportunity 2016 | C115: 405-1 | D115: Diversity of governance bodies and employees | E115: Annual Report on Sustainability: Our Approach; Robust Governance; Workforce Proxy Statement: Information About Director Nominees | F115: We provide several breakdowns of our workforce data by age, gender, and ethnicity; however, all breakdowns as requested by GRI are not provided for each employee category. | G115: SDG 5: Gender Equality SDG 8: Decent Work and Economic Growth
A116: GRI 400 SOCIAL | B116: 405 Diversity and Equal Opportunity 2016 | C116: 405-2 | D116: Ratio of basic salary and remuneration of women to men | E116: Annual Report on Sustainability: Workforce | F116: FCX reports the results of its pay equity analysis for females to males (globally) and non-white to white (U.S. only). This data is not reported by employee category or location. | G116: SDG 5: Gender Equality SDG 8: Decent Work and Economic Growth SDG 10: Reduced Inequalities
A117: GRI 400 SOCIAL | B117: 406 Non-discrimination 2016 | C117: 3-3 | D117: Management of material topics | E117: Annual Report on Sustainability: Our Approach; Business Conduct & Policies; Workforce Human Rights Policy
A118: GRI 400 SOCIAL | B118: 406 Non-discrimination 2016 | C118: 406-1 | D118: Incidents of discrimination and corrective actions taken | E118: Annual Report on Sustainability: Robust Governance; Workforce | F118: We report on our non-discrimination and grievance programs as well as the total number of grievances received through our Compliance Line. We do not report the total number or status of incidents of discrimination. | G118: SDG 5: Gender Equality SDG 8: Decent Work and Economic Growth SDG 16: Peace, Justice and Strong Institutions
A119: GRI 400 SOCIAL | B119: 407 Freedom of Association and Collective Bargaining 2016 | C119: 3-3 | D119: Management of material topics | E119: Annual Report on Sustainability: Our Approach; Robust Governance; Workforce Human Rights Policy Form 10-K
A120: GRI 400 SOCIAL | B120: 407 Freedom of Association and Collective Bargaining 2016 | C120: 407-1 | D120: Operations and suppliers in which the right to freedom of association and collective bargaining may be at risk | E120: We do not believe that the right to exercise freedom of association and collective bargaining is at significant risk at any of our operations and we work to embed our human rights policy and respect for people across our operations. Our grievance mechanisms enable workers - without fear of retaliation - to report if they believe this right is being violated. Annual Report on Sustainability: Workforce; ESG Performance Data | G120: SDG 8: Decent Work and Economic Growth
A121: GRI 400 SOCIAL | B121: 408 Child Labor 2016 | C121: 3-3 | D121: Management of material topics | E121: Annual Report on Sustainability: Our Approach; Responsible Value Chains; Human Rights Human Rights Policy Responsible Sourcing of Minerals Policy Human Rights on fcx.com
A122: GRI 400 SOCIAL | B122: 408 Child Labor 2016 | C122: 408-1 | D122: Operations and suppliers at significant risk for incidents of child labor | E122: Annual Report on Sustainability: Business Conduct & Policies; Human Rights; Responsible Value Chains Human Rights Policy Business Partner Code of Conduct Responsible Souring of Minerals Policy Human Rights on fcx.com UK Modern Slavery Act Statement | G122: SDG 8: Decent Work and Economic Growth SDG 16: Peace, Justice and Strong Institutions
A123: GRI 400 SOCIAL | B123: 409 Forced or Compulsory Labor 2016 | C123: 3-3 | D123: Management of material topics | E123: Annual Report on Sustainability: Our Approach; Human Rights; Responsible Value Chains Human Rights Policy Responsible Sourcing of Minerals Policy Human Rights on fcx.com
A124: GRI 400 SOCIAL | B124: 409 Forced or Compulsory Labor 2016 | C124: 409-1 | D124: Operations and suppliers at significant risk for incidents of forced or compulsory labor | E124: We prohibit forced, compulsory and child labor and human trafficking. We do not believe that any of our operations are at significant risk for incidents of forced or compulsory labor. Annual Report on Sustainability: Business Conduct & Policies; Human Rights; Responsible Value Chains; Workforce Human Rights Policy Business Partner Code of Conduct Responsible Souring of Minerals Policy Human Rights on fcx.com UK Modern Slavery Act Statement | G124: SDG 8: Decent Work and Economic Growth
A125: GRI 400 SOCIAL | B125: 410 Security Practices 2016 | C125: 3-3 | D125: Management of material topics | E125: Annual Report on Sustainability: Our Approach Human Rights Policy Voluntary Principles Report
A126: GRI 400 SOCIAL | B126: 410 Security Practices 2016 | C126: 410-1 | D126: Security personnel trained in human rights policies or procedures | E126: Security contractors are required to comply with the operations’ Human Rights Policies, including receiving human rights training and instructions to immediately notify the Company of any human rights related incidents or allegations. Voluntary Principles Report | F126: We report number of private security personnel who received human rights training by location in our Voluntary Principles Report, we do not report the percent of security personnel trained. | G126: SDG 16: Peace, Justice and Strong Institutions
A127: GRI 400 SOCIAL | B127: 411 Rights of Indigenous Peoples 2016 | C127: 3-3 | D127: Management of material topics | E127: Annual Report on Sustainability: Our Approach; Human Rights; Communities & Indigenous Peoples Social Performance Policy Human Rights Policy Land Use and Customary Rights at PT-FI on fcx.com
A128: GRI 400 SOCIAL | B128: 411 Rights of Indigenous Peoples 2016 | C128: 411-1 | D128: Incidents of violations involving rights of Indigenous Peoples | E128: Annual Report on Sustainability: Communities & Indigenous Peoples> Community Grievance Mechanism; Human Rights Human Rights, Assessing and Managing Impacts, Communities & Indigenous Peoples, Land Use and Customary Rights at PT-FI on fcx.com Human Rights Policy | F128: We report the number of gross human rights violations and disclose our programs and performance in our Voluntary Principles on Security and Human Rights Annual Report to the Plenary. We do not disaggregate violations based on number or status of violations involving Indigenous Peoples' rights. | G128: SDG 2: Zero Hunger SDG 10: Reduced Inequalities
A129: G4 | B129: M&M: Indigenous Peoples | C129: MM5 | D129: Total number of operations taking place in or adjacent to Indigenous Peoples' territories, and number and percentage of operations or sites where there are formal agreements with Indigenous Peoples' communities | E129: Annual Report on Sustainability: Communities & Indigenous Peoples Land Use and Customary Rights at PT-FI on fcx.com Voluntary Principles Report | F129: We disclose the groups with whom we engage on a routine or periodic basis for each region of our operations. We do not disclose the total number of operations in or adjacent to Indigenous Peoples' territories or the number of sites with formal agreements with Indigenous Peoples. | G129: SDG 1: No Poverty SDG 2: Zero Hunger SDG 3: Good Health and Well-Being SDG 10: Reduced Inequalities
A130: GRI 400 SOCIAL | B130: 413 Local Communities 2016 | C130: 3-3 | D130: Management of material topics | E130: Annual Report on Sustainability: Our Approach; Communities & Indigenous Peoples Social Performance Policy
A131: GRI 400 SOCIAL | B131: 413 Local Communities 2016 | C131: 413-1 | D131: Operations with local community engagement, impact assessments, and development programs | E131: All of our operations have a stakeholder engagement process in place, commensurate with the size and complexity of the operation. Annual Report on Sustainability: Our Approach; Stakeholder Engagement; Communities & Indigenous Peoples Assessing and Managing Impacts on fcx.com | G131: SDG 4: Quality Education SDG 8: Decent Work and Economic Growth SDG 10: Reduced Inequalities SDG 11: Sustainable Cities and Communities
A132: GRI 400 SOCIAL | B132: 413 Local Communities 2016 | C132: 413-2 | D132: Operations with significant actual and potential negative impacts on local communities | E132: To identify potential and actual negative impacts on our host communities we conduct due diligence on an ongoing basis. In all cases there are stakeholder engagement activities that are commensurate with the size and complexity of the operation. For all of our mining operations we conduct Human Rights Impact Assessments (HRIAs) using a third party and publish a summary of the results on our website. In addition our grievance mechanisms enable us to identify potential or actual impacts to communities. We follow UNGP guidelines for providing remedy where actual impacts are identified. Annual Report on Sustainability: Human Rights; Communities and Indigenous Peoples Human Rights: Due Diligence on fcx.com
A133: G4 | B133: M&M: Local Communities | C133: MM6 | D133: Number and description of significant disputes relating to land use, customary rights of local communities and Indigenous Peoples | E133: Annual Report on Sustainability: Communities & Indigenous Peoples> Community Grievance Mechanism; Our Approach with Indigenous Peoples; Land Use, Resettlement and Customary Rights; Cultural Heritage Communities & Indigenous Peoples, Land Use and Customary Rights at PT-FI and Community Grievance Mechanisms on fcx.com | F133: We disclose our approach to engaging with communities and Indigenous Peoples and the percentage of grievances received related to land access, land rights, and cultural heritage. We do not disclose the number of disputes. | G133: SDG 1: No Poverty SDG 2: Zero Hunger SDG 8: Decent Work and Economic Growth SDG 10: Reduced Inequalities SDG 11: Sustainable Cities and Communities
A134: G4 | B134: M&M: Local Communities | C134: MM7 | D134: The extent to which grievance mechanisms were used to resolve disputes relating to land use, customary rights of local communities and Indigenous Peoples, and the outcomes | E134: Annual Report on Sustainability: Communities & Indigenous Peoples> Community Grievance Mechanism; Our Approach with Indigenous Peoples; Land Use, Resettlement and Customary Rights; Cultural Heritage Communities & Indigenous Peoples, Land Use and Customary Rights at PT-FI and Community Grievance Mechanisms on fcx.com | G134: SDG 1: No Poverty SDG 2: Zero Hunger SDG 4: Quality Education SDG 8: Decent Work and Economic Growth SDG 10: Reduced Inequalities SDG 11: Sustainable Cities and Communities
A135: GRI 400 SOCIAL | B135: 414 Supplier Social Assessment 2016 | C135: 3-3 | D135: Management of material topics | E135: Annual Report on Sustainability: Our Approach; Business Conduct & Policies; Responsible Value Chains; Economic Contributions; Local Procurement Business Partner Code of Conduct Economic Impact on fcx.com
A136: GRI 400 SOCIAL | B136: 414 Supplier Social Assessment 2016 | C136: 414-1 | D136: New suppliers that were screened using social criteria | E136: Business Partner Code of Conduct Annual Report on Sustainability: Business Conduct & Policies; Responsible Value Chains; Human Rights UK MSA Statement | F136: We screen new suppliers across a range of sustainability criteria, including social aspects of sustainability. We do not report on the percentage screened. | G136: SDG 5: Gender Equality SDG 8: Decent Work and Economic Growth SDG 12: Responsible Consumption and Production SDG 16: Peace, Justice and Strong Institutions
A137: GRI 400 SOCIAL | B137: 414 Supplier Social Assessment 2016 | C137: 414-2 | D137: Negative social impacts in the supply chain and actions taken | E137: Annual Report on Sustainability: Business Conduct & Policies; Responsible Value Chains; Human Rights For our minerals and metals supply chains, we report our due diligence tools and the number of suppliers flagged for a variety of risk factors. | F137: We disclose the number suppliers assessed, the number of orange or red flags, and corresponding action taken. We do not report the percentage of suppliers identified as having significant impacts or those terminated as a result, nor is this reporting inclusive of our entire supply chain.
A138: G4 | B138: M&M Sector: Artisanal and Small-Scale Mining | C138: MM8 | D138: Number (and percentage) of company operating sites where artisanal and small-scale mining (ASM) takes place on, or adjacent to, the site; the associated risks and the actions taken to manage and mitigate these risks | E138: Annual Report on Sustainability: Illegal Artisanal Mining | F138: Illegal artisanal mining occurs at one site, PT-FI, and we describe our efforts to manage illegal artisanal mining there. We do not disclose the percent of operating sites where illegal artisanal mining occurs.
A139: G4 | B139: M&M Sector: Resettlement | C139: MM9 | D139: Sites where resettlements took place, the number of households resettled in each, and how their livelihoods were affected in the process | E139: We are committed to respecting the human rights of community members and, when unavoidable, conducting community resettlement activities in alignment with international best practice. This commitment is reflected in our Human Rights Policy and Social Performance Management System. We did not have any community resettlement activities in 2023.
A140: G4 | B140: M&M Sector: Closure Planning | C140: MM10 | D140: Number and percentage of operations with closure plans | E140: Annual Report on Sustainability: Mine Closure & Reclamation Form 10-K: Risk Factors | G140: SDG 14: Life Below Water SDG 15: Life on Land
A142: In most instances, the key sustainability topics identified and described in the Stakeholder Engagement and Materiality sections of our Sustainability Report align with the GRI Standards Indicators reported above. On occasion, we have chosen to report on GRI Standards indicators that may not be of high importance to internal or external stakeholders because our reporting systems historically have captured the information, which is used by certain groups, such as sustainability analysts. Data presented in this section include the primary operations of Freeport-McMoRan’s mining subsidiaries: Freeport Minerals Company (FMC) and PT Freeport Indonesia (PT-FI) for the period January 1, 2023 to December 31, 2023, unless otherwise stated. This index also highlights alignment to the UN Sustainable Development Goals.

Sheet ICMM
A1: DISCLOSURE of THIRD-PARTY VALIDATION of INTERNATIONAL COUNCIL of MINING and METALS (ICMM) PRINCIPLES and PERFORMANCE EXPECTATIONS
A3: Websites and links can be found in the references tab.
A4: PRINCIPLE | B4: PRINCIPLE DESCRIPTION | C4: PERFORMANCE EXPECTATION | D4: DESCRIPTION | E4: APPLICABILITY | F4: FCX RESPONSE | G4: MINING | S4: PROCESSING
G5: El Abra | H5: Bagdad | I5: Cerro Verde | J5: Chino/Cobre | K5: Climax | L5: Henderson | M5: Miami | N5: Morenci | O5: Grasberg | P5: Safford | Q5: Sierrita | R5: Tyrone | S5: Atlantic Copper | T5: El Paso | U5: Fort Madison | V5: Rotterdam | W5: Stowmarket
A6: PRINCIPLE 1: ETHICAL BUSINESS | B6: Apply ethical business practices and sound systems of corporate governance and transparency to support sustainable development. | C6: 1.1 | D6: Establish systems to maintain compliance with applicable law. | E6: Corporate and Asset Level | F6: FCX is committed to the highest level of ethical and legal conduct in all of our business activities. Acting ethically involves more than simply complying with laws and regulations; it involves recognition that our decisions affect others. By keeping this in mind, we aspire to earn the respect, trust and confidence of our stakeholders. • Form 10-K • Information can be found in our 2023 Annual Report on Sustainability: Robust Governance > Business Conduct & Policies | G6: Meets | H6: Meets | I6: Meets | J6: Meets | K6: Meets | L6: Meets | M6: Meets | N6: Meets | O6: Meets | P6: Meets | Q6: Meets | R6: Meets | S6: Meets | T6: Meets | U6: Meets | V6: Meets | W6: Meets
A7: PRINCIPLE 1: ETHICAL BUSINESS | B7: Apply ethical business practices and sound systems of corporate governance and transparency to support sustainable development. | C7: 1.2 | D7: Implement policies and practices to prevent bribery, corruption and to publicly disclose facilitation payments. | E7: Corporate and Asset Level | F7: FCX has zero tolerance for corruption of any kind. In addition to employees, FCX holds business partners to this same standard. FCX does not obtain a business advantage through bribery, improper payments, kickbacks or any other illegal means. No employee or business partner may offer, pay, solicit or accept bribes in any form, including facilitation payments. • Principles of Business Conduct (PBC) • Business Partner Code of Conduct (BPCC) • Anti-Corruption Policy • Information can be found in our 2023 Annual Report on Sustainability: Robust Governance > Business Conduct & Policies, Responsible Value Chains | G7: Meets | H7: Meets | I7: Meets | J7: Meets | K7: Meets | L7: Meets | M7: Meets | N7: Meets | O7: Meets | P7: Meets | Q7: Meets | R7: Meets | S7: Meets | T7: Meets | U7: Meets | V7: Meets | W7: Meets
A8: PRINCIPLE 1: ETHICAL BUSINESS | B8: Apply ethical business practices and sound systems of corporate governance and transparency to support sustainable development. | C8: 1.3 | D8: Implement policies and standards consistent with the ICMM policy framework. | E8: Corporate Level | F8: To facilitate implementation of our policy commitments and objectives, we utilize a combination of audit and assessment programs along with an annual program for site-level third-party assurance of our sustainability framework—including the implementation of our commitments under the ICMM Mining with Principles Framework and the Copper Mark. We report and track our progress in our Annual Report on Sustainability as well as other external disclosures including the Voluntary Principles on Security and Human Rights (VPs) Report to the Plenary, the UK Modern Slavery Act Statement, and site summary reports published by the Copper Mark available at coppermark.org. • VPs Report to the Plenary • UK Modern Slavery Act Statement• Information can be found in our 2023 Annual Report on Sustainability: Robust Governance, Responsible Value Chains | G8: Meets | H8: Meets | I8: Meets | J8: Meets | K8: Meets | L8: Meets | M8: Meets | N8: Meets | O8: Meets | P8: Meets | Q8: Meets | R8: Meets | S8: Meets | T8: Meets | U8: Meets | V8: Meets | W8: Meets
A9: PRINCIPLE 1: ETHICAL BUSINESS | B9: Apply ethical business practices and sound systems of corporate governance and transparency to support sustainable development. | C9: 1.4 | D9: Assign accountability for sustainability performance at the Board and/or Executive Committee level. | E9: Corporate Level | F9: The Corporate Responsibility Committee (CRC), on behalf of the Board, oversees FCX’s environmental and social policies and implementation programs and related risks. The CRC reviews the effectiveness of FCX’s strategies, programs, and policy implementation with respect to health and safety, responsible production frameworks, climate, tailings management and stewardship, water stewardship, biodiversity, nature and land management, waste management, human rights, stakeholder relations, social performance and Indigenous Peoples, responsible sourcing, and political activity and spending practices. During 2023, the CRC had four regularly scheduled meetings. Additionally, each of the Audit, Governance and Compensation Committees oversee key ESG matters. The Audit Committee oversees our global compliance program and corporate compliance procedures and our information technology and cybersecurity processes and procedures. Additionally, tax matters are included within the Audit Committee’s financial oversight responsibilities. The Governance Committee maintains our Corporate Governance Guidelines and oversees our corporate governance practices and procedures. The Compensation Committee oversees our executive compensation program and human capital management policies, programs, practices and strategies, including those relating to workforce recruitment, retention and development, pay equity and inclusion and diversity. Our CEO has ultimate responsibility for our ESG performance, with active oversight from the Board. FCX’s cross-functional Sustainability Leadership Team (SLT) includes members of the management team tasked with defining the sustainability strategy and implementing our sustainability policies, systems and programs across the organization to achieve integrated decision-making for responsible production and performance. The SLT is sponsored by FCX’s Chief Administrative Officer and is led by the Chief Sustainability Officer, with active participation from our five business unit presidents and senior leadership from functional groups including health and safety, security, supply chain, human resources, sales, legal, compliance, sustainability and finance. In 2023, the SLT met nine times and members of the SLT regularly reported to executive leadership, including the Chairman and CEO and our President. Examples of these matters include target setting and performance, external commitments and deliberation on ICMM Council matters, including industry-leading commitments. In addition, members of the SLT regularly report to the relevant Board committees on key environmental and social matters and periodically report to the full Board. Executive officers are held accountable for FCX’s ESG performance in part through FCX’s performance-based annual incentive program (AIP) via pre-determined metrics aligned with our key commitments and priorities. In 2023, ESG metrics collectively accounted for 25% of the AIP (15% safety and 10% sustainability), with the sustainability scorecard including performance metrics associated with the Copper Mark and Molybdenum Mark, climate, human rights, tailings management and workforce priorities. • 2024 Proxy Statement: ESG & Sustainability - Governance • CRC Charter • Information can be found in our 2023 Annual Report on Sustainability: Our Approach; Letter to Stakeholders; Views from our CRC Chair; Governance | G9: Meets | H9: Meets | I9: Meets | J9: Meets | K9: Meets | L9: Meets | M9: Meets | N9: Meets | O9: Meets | P9: Meets | Q9: Meets | R9: Meets | S9: Meets | T9: Meets | U9: Meets | V9: Meets | W9: Meets
A10: PRINCIPLE 1: ETHICAL BUSINESS | B10: Apply ethical business practices and sound systems of corporate governance and transparency to support sustainable development. | C10: 1.5 | D10: Disclose the value and beneficiaries of financial and in-kind political contributions whether directly or through an intermediary. | E10: Corporate Level | F10: FCX recognizes that public policy decisions can significantly affect our operations, future business opportunities, employees, shareholders and the communities in which FCX operates. For this reason, FCX exercises its right and responsibility to participate in public policy matters by following public matters that are important to FCX and interacting, where appropriate, with elected and appointed government officials, regulators and their staff. FCX is committed to the highest level of ethical and legal conduct and transparency regarding its political activity and spending practices. This commitment also includes rigorous compliance with applicable laws and regulations. • Information can be found in FCX’s CRC Charter, Anti-Corruption Policy and Political Activity and Spending Practices on our website at fcx.com | G10: Meets | H10: Meets | I10: Meets | J10: Meets | K10: Meets | L10: Meets | M10: Meets | N10: Meets | O10: Meets | P10: Meets | Q10: Meets | R10: Meets | S10: Meets | T10: Meets | U10: Meets | V10: Meets | W10: Meets
A11: PRINCIPLE 2: DECISION MAKING | B11: Integrate sustainable development in corporate strategy and decision-making processes. | C11: 2.1 | D11: Integrate sustainable development principles into corporate strategy and decision-making processes relating to investments and in the design, operation and closure of facilities. | E11: Corporate Level | F11: FCX’s cross-functional SLT includes members of the management team tasked with defining the sustainability strategy and implementing sustainability policies, systems and programs across the organization to achieve integrated decision-making for responsible production and performance. The SLT evolved FCX’s sustainability strategy, formalized its integration throughout the company and clarified the ambition: Accelerate the Future, Responsibly. FCX integrates its voluntary commitments, policies and practices into the risk register process, which drives action both at site and project level. Regular measurement and reporting support FCX’s understanding of the company’s current performance, including any gaps, and the actions to take to improve. FCX seeks to plan and operate its mines in a manner that considers post-mining land use well in advance of mine closure. Likewise, when designing new projects or expanding existing ones, FCX plans for how the land can be reclaimed once the mine closes. FCX’s philosophy of responsible production continues when it closes mining and processing sites through to reclamation. FCX strives to work in partnership with our host communities and Indigenous Peoples to earn and maintain their trust and deliver shared value. We not only seek to avoid, minimize and mitigate adverse impacts from our operations, but we also aim to provide long-lasting benefits and increase resilience and well-being that can help communities thrive beyond the life of our mines. • Information can be found in our 2023 Annual Report on Sustainability: Our Approach; Communities & Indigenous Peoples; Thriving Environments > Mine Closure and Reclamation | G11: Meets | H11: Meets | I11: Meets | J11: Meets | K11: Meets | L11: Meets | M11: Meets | N11: Meets | O11: Meets | P11: Meets | Q11: Meets | R11: Meets | S11: Meets | T11: Meets | U11: Meets | V11: Meets | W11: Meets
A12: PRINCIPLE 2: DECISION MAKING | B12: Integrate sustainable development in corporate strategy and decision-making processes. | C12: 2.2 | D12: Support the adoption of responsible physical and psychological health and safety, environmental, human rights and labour policies and practices by joint venture partners, suppliers and contractors, based on risk. | E12: Corporate and Asset Level | F12: At each FCX operation, we aim to be a preferred employer, neighbor, business partner and supplier. We are committed to responsibly managing our social impacts on people, which includes focusing on the health, safety and security of our workforce and host communities and respecting the rights of people who may be impacted by FCX’s business. Various programs to address psychological safety are currently under evaluation. One of the ways we are working to support psychological safety is by training our frontline leaders on emotional triggers and conflict resolution. The importance of psychological safety is also incorporated into new hire orientation. FCX recognizes that mining impacts the natural environment. We are committed to conducting our work in a manner that minimizes adverse impacts on the environment and supports protection of the natural environment and ecosystems through responsible environmental stewardship, strong management systems and continuous improvement. Effective environmental protection and stewardship are essential to the long-term viability of our business, including maintaining the necessary support from host communities and governments. FCX’s BPCC and compliance screening processes represent the foundation of FCX’s responsible sourcing program for all suppliers globally. Based on the PBC, FCX’s BPCC sets forth expectations for business partners in areas such as safety, human rights, anti-corruption, community and environment. FCX mandates human rights standards through its supplier contracts. • Information can be found in our 2023 Annual Report on Sustainability: Robust Governance > Business Conduct & Policies, Responsible Value Chains; Our Approach; Empowered People & Resilient Communities; Thriving Environments | G12: Meets | H12: Meets | I12: Meets | J12: Meets | K12: Meets | L12: Meets | M12: Meets | N12: Meets | O12: Meets | P12: Meets | Q12: Meets | R12: Meets | S12: Meets | T12: Meets | U12: Partially meets | V12: Partially meets | W12: Partially meets
A13: PRINCIPLE 3: HUMAN RIGHTS | B13: Respect human rights and the interests, cultures, customs and values of employees and communities affected by our activities. | C13: 3.1 | D13: Support the UN Guiding Principles on Business and Human Rights by developing a policy commitment to respect human rights, undertaking human rights due diligence and providing for or cooperating in processes to enable the remediation of adverse human rights impacts that members have caused or contributed to. | E13: Corporate and Asset Level | F13: FCX is dedicated to the recognition, respect and promotion of human rights wherever it does business. Respect is a core value that guides how FCX does business. We are committed to respecting the rights of all people, including our employees, business partners, community members and others who potentially may be impacted by our business activities. We take this obligation seriously in all aspects of our business, and we expect the same of our business partners. We also recognize that human rights are overarching and that they connect to every aspect of our business. As such, we aim to promote human rights through proactive engagement with host governments and communities and by educating our stakeholders, including training our employees and contractors. As FCX seeks to further embed respect for human rights across our organizational activities, it has various due diligence processes that help to identify and assess which human rights topics are most salient at the site-level so that the company can manage and integrate these risks into ongoing operational work. We use our risk register process to identify risks to people at our existing operations. We also have a risk identification process for our new or growth projects to address potential and actual impacts on rights-holders. We implement and refine our approach to human rights through ongoing stakeholder engagement, grievance management and the findings from our human rights impact assessments (HRIAs). FCX respects internationally recognized human rights, including the rights under the International Bill of Human Rights, and is committed to implementing the United Nations Guiding Principles on Business and Human Rights (UNGPs). We work toward continuous improvement in establishing greater institutional awareness and deeper understanding of what human rights are and how they impact every role within FCX. We also are committed to complying with the UK Modern Slavery Act, aimed at minimizing the risk of slavery and human trafficking throughout our business and supply chain. Our most recent UK Modern Slavery Act Statement is available on our website at fcx.com. • VPs Report to the Plenary • UK Modern Slavery Act Statement • Information can be found in our 2023 Annual Report on Sustainability: Robust Governance> Responsible Value Chains; Empowered People & Resilient Communities; and on the Robust Governance > Human Rights > Embedding Respect page on fcx.com. | G13: Meets | H13: Meets | I13: Meets | J13: Meets | K13: Meets | L13: Meets | M13: Meets | N13: Meets | O13: Meets | P13: Meets | Q13: Meets | R13: Meets | S13: Meets | T13: Meets | U13: Meets | V13: Meets | W13: Meets
A14: PRINCIPLE 3: HUMAN RIGHTS | B14: Respect human rights and the interests, cultures, customs and values of employees and communities affected by our activities. | C14: 3.2 | D14: Avoid the involuntary physical or economic displacement of families and communities. Where this is not possible apply the mitigation hierarchy and implement actions or remedies that address residual adverse effects to restore or improve livelihoods and standards of living of displaced people. | E14: Corporate and Asset Level | F14: In all cases, we seek to avoid involuntary displacement of people, whether physical or economic, and when unavoidable, we are committed to conducting community resettlement activities in alignment with international best practice. This requires careful planning and implementation, including information disclosure, consultation, and informed participation of affected people to minimize impacts through appropriate mitigation measures. This commitment is reflected in our Social Performance Policy and Human Rights Policy available on our website. We have not had any involuntary resettlement activities since 2016 when FCX sold its interest in the Tenke Fungurume mine in the Democratic Republic of Congo. When resettlement is unavoidable, we develop a resettlement action plan, which can help to mitigate the adverse impacts of physical displacement, and a livelihood restoration plan, when applicable. We do this in line with host country laws and regulations, IFC Performance Standard 5: Land Acquisition & Involuntary Resettlement in addition to the UN Guiding Principles on Business and Human Rights. | G14: Meets | H14: Meets | I14: Meets | J14: Meets | K14: Meets | L14: Meets | M14: Meets | N14: Meets | O14: Meets | P14: Meets | Q14: Meets | R14: Meets | S14: Not applicable | T14: Not applicable | U14: Not applicable | V14: Not applicable | W14: Not applicable
A15: PRINCIPLE 3: HUMAN RIGHTS | B15: Respect human rights and the interests, cultures, customs and values of employees and communities affected by our activities. | C15: 3.3 | D15: Implement, based on risk, a human rights and security approach consistent with the Voluntary Principles on Security and Human Rights. | E15: Corporate and Asset Level | F15: We are committed to respecting internationally recognized human rights as set out in the Voluntary Principles on Security and Human Rights (VPs). The VPs serve as guidelines for our security and human rights programs, including for interactions with host government police, military personnel and private security contractors. We focus our implementation primarily on Indonesia and Peru, which represent our higher-risk operating environments in terms of security and human rights. The VPs serve as a key component of our broader human rights program, which includes implementation of the UNGPs. Not all human rights issues are security issues, and not all security issues are human rights issues—it is at the nexus of human rights and security where our implementation of the VPs resides. We have remained an active participant in the Voluntary Principles Initiative since it was first established in 2000. • VPs Report to the Plenary • Information can be found in our 2023 Annual Report on Sustainability: Robust Governance > Responsible Value Chains; and on the Robust Governance > Human Rights > Security & Human Rights page our website at fcx.com. | G15: Meets | H15: Meets | I15: Meets | J15: Meets | K15: Meets | L15: Meets | M15: Meets | N15: Meets | O15: Meets | P15: Meets | Q15: Meets | R15: Meets | S15: Meets | T15: Meets | U15: Meets | V15: Meets | W15: Meets
A16: PRINCIPLE 3: HUMAN RIGHTS | B16: Respect human rights and the interests, cultures, customs and values of employees and communities affected by our activities. | C16: 3.4 | D16: Respect the rights of workers by: not employing child or forced labour; avoiding human trafficking; not assigning hazardous/dangerous work to those under 18; eliminating harassment and discrimination; respecting freedom of association and collective bargaining and; providing a mechanism to address workers grievances. | E16: Corporate and Asset Level | F16: Our BPCC and compliance screening processes are the foundation of our responsible sourcing program for goods and services. We are committed to operating in a manner consistent with the UNGC Ten Principles, including Labour Principles 3, 4, 5 and 6. • PBC • Inclusion & Diversity Policy • Social Performance Policy • Human Rights Policy • Responsible Sourcing of Minerals Policy • BPCC • UK Modern Slavery Act Statement • Information can be found in our 2023 Annual Report on Sustainability: Our Approach: Responsible Value Chains; Robust Governance > Human Rights; Empowered People & Resilient Communities > Workforce | G16: Partially meets | H16: Meets | I16: Meets | J16: Meets | K16: Meets | L16: Meets | M16: Partially meets | N16: Meets | O16: Meets | P16: Meets | Q16: Meets | R16: Meets | S16: Meets | T16: Meets | U16: Meets | V16: Meets | W16: Meets
A17: PRINCIPLE 3: HUMAN RIGHTS | B17: Respect human rights and the interests, cultures, customs and values of employees and communities affected by our activities. | C17: 3.5 | D17: Equitably remunerate employees with wages that equal or exceed legal requirements or represent a competitive wage within that job market (whichever is higher) and assign regular and overtime working hours within legally required limits. | E17: Corporate and Asset Level | F17: We focus on attracting and retaining talented people by offering quality employment with fair and equitable compensation and benefits, as well as with opportunities for professional development and advancement. We are committed to respecting the rights of our workforce, including paying fair and equal wages for equal work. Our approach to compensation and benefits is market-based, competitive and informed by annual benchmarking and analysis. This includes equal pay for equal work and compensation levels supporting the acquisition of the goods and services necessary for an average-size family to meet their basic needs in the geographic locations where we operate—often referred to as a living wage. We also develop schedules that keep regular and overtime hours within legally required limits. In 2023, we conducted our living wage assessment for both full-time and part-time employees using living wage benchmark rates provided by BSR, a global sustainability nonprofit. Benchmark rates were provided for each of FCX’s locations globally, including operating sites, office locations, remediation and discontinued operations, and smaller processing locations. BSR’s living wage benchmark rates exceeded the minimum wages in all locations where we employ people. Again this year, compensation for all applicable employees was reviewed and meets BSR's living wage benchmarks for each respective location. In 2022, we completed a pilot living wage assessment of on-site contractors, with input and guidance from BSR, with a view to extending our living wage commitment to our on-site contractors in the future. We continue to work with BSR to evaluate next steps. • PBC • Working Hours Policy • Information can be found in our 2023 Annual Report on Sustainability: Empowered People & Resilient Communities > Workforce | G17: Meets | H17: Meets | I17: Meets | J17: Meets | K17: Meets | L17: Meets | M17: Meets | N17: Meets | O17: Meets | P17: Meets | Q17: Meets | R17: Meets | S17: Meets | T17: Meets | U17: Meets | V17: Meets | W17: Meets
A18: PRINCIPLE 3: HUMAN RIGHTS | B18: Respect human rights and the interests, cultures, customs and values of employees and communities affected by our activities. | C18: 3.6 | D18: Respect the rights, interests, aspirations, culture and natural resource-based livelihoods of Indigenous Peoples in project design, development and operation; apply the mitigation hierarchy to address adverse impacts and; deliver sustainable benefits for Indigenous Peoples. | E18: Corporate and Asset Level | F18: FCX is steadfast in its commitment to acknowledge, respect and engage collaboratively with Indigenous Peoples. Through our Building Trust approach, we strive to understand the values and cultural needs of each group of Indigenous Peoples; develop and maintain ongoing relationships; support effective, ongoing engagement; and create opportunities for social benefit, shared value creation and long-term resilience. We are also committed to adhering to the ICMM Position Statement on Indigenous Peoples and Mining, and we are dedicated to pursuing free prior and informed consent (FPIC) for new projects and material expansions of existing projects where significant impacts are likely to occur. • Human Rights Policy • Social Performance Policy • Information can be found in our 2023 Annual Report on Sustainability: Empowered People & Resilient Communities > Communities & Indigenous Peoples | G18: Meets | H18: Meets | I18: Meets | J18: Meets | K18: Meets | L18: Meets | M18: Meets | N18: Meets | O18: Meets | P18: Meets | Q18: Meets | R18: Meets | S18: Not applicable | T18: Not applicable | U18: Not applicable | V18: Not applicable | W18: Not applicable
A19: PRINCIPLE 3: HUMAN RIGHTS | B19: Respect human rights and the interests, cultures, customs and values of employees and communities affected by our activities. | C19: 3.7 | D19: Work to obtain the free, prior and informed consent of Indigenous Peoples where significant adverse impacts are likely to occur, as a result of relocation, disturbance of lands and territories or of critical cultural heritage, and capture the outcomes of engagement and consent processes in agreements. | E19: Corporate and Asset Level | F19: Our approach aims to respect the social, economic and cultural rights of Indigenous Peoples, including supporting their effective representation and participation in engagements with our company. We are committed to adhering to the ICMM Position Statement on Indigenous Peoples and Mining, and we are dedicated to pursuing FPIC for new projects and material expansions of existing projects where significant impacts are likely to occur. Through ongoing engagement, cultural promotion and preservation projects, as well as training and development programs, FCX seeks to address needs while being sensitive to cultures and customs of Indigenous Peoples. • Social Performance Policy • Information can be found in our 2023 Annual Report on Sustainability: Empowered People & Resilient Communities > Communities & Indigenous Peoples | G19: Meets | H19: Meets | I19: Not applicable | J19: Meets | K19: Not applicable | L19: Not applicable | M19: Meets | N19: Meets | O19: Meets | P19: Meets | Q19: Meets | R19: Meets | S19: Not applicable | T19: Not applicable | U19: Not applicable | V19: Not applicable | W19: Not applicable
A20: PRINCIPLE 3: HUMAN RIGHTS | B20: Respect human rights and the interests, cultures, customs and values of employees and communities affected by our activities. | C20: 3.8 | D20: Implement policies and practices to respect the rights and interests of women that reflect gender-informed approaches to work practices and job design, and that protect against all forms of discrimination and harassment, and behaviours that adversely impact on women’s successful participation in the workplace. | E20: Corporate and Asset Level | F20: Gender diversity continues to be an important focus for FCX. We are proactively working to attract and retain qualified women to work at FCX, and we have been working to promote an inclusive culture, to support well-being initiatives, and to conduct compensation reviews to identify and address possible pay gaps. We have implemented policies and practices to respect the rights and interests of women that reflect gender-informed approaches to work practices and job design. We continuously seek opportunities to further eliminate potential barriers to women in our workforce. • Information can be found in our 2023 Annual Report on Sustainability: Empowered People & Resilient Communities > Inclusion & Diversity > Gender Diversity; Robust Governance > Business Conduct & Policies | G20: Meets | H20: Meets | I20: Meets | J20: Meets | K20: Meets | L20: Meets | M20: Meets | N20: Meets | O20: Meets | P20: Meets | Q20: Meets | R20: Meets | S20: Meets | T20: Meets | U20: Meets | V20: Meets | W20: Meets
A21: PRINCIPLE 3: HUMAN RIGHTS | B21: Respect human rights and the interests, cultures, customs and values of employees and communities affected by our activities. | C21: 3.9 | D21: Implement policies and practices to respect the rights and interests of all workers and improve workforce representation in the workplace so it is more inclusive. | E21: Corporate and Asset Level | F21: As a global organization that operates in diverse parts of the world, we recognize the importance of inclusion and diversity as a company priority. FCX’s Inclusion and Diversity Policy is applicable to our global workforce and we have a cross-functional inclusion and diversity leadership team, which helps guide the direction and implementation of our programs. Because inclusion and diversity differ across cultures, regional teams and dedicated site leaders are tasked with identifying and addressing local challenges and opportunities unique to each operation. Our inclusion and diversity program is currently prioritizing four focus areas: (1) awareness and education, (2) eliminating barriers, (3) supporting employees to achieve their full potential, and (4) increasing diverse candidate pools. We have implemented practices to respect the rights and interests of all workers and improve workforce representation in the workplace so it is more inclusive. We continuously seek opportunities to further eliminate potential barriers to improving representation in our workforce. • Inclusion & Diversity Policy • Information can be found in our 2023 Annual Report on Sustainability: Empowered People & Resilient Communities > Inclusion & Diversity; Robust Governance > Business Conduct & Policies | G21: Meets | H21: Conformance required beginning June 2024 | S21: Meets | T21: Meets | U21: Conformance required beginning June 2024
A22: PRINCIPLE 4: RISK MANAGEMENT | B22: Implement effective risk-management strategies and systems based on sound science and which account for stakeholder perceptions of risks. | C22: 4.1 | D22: Assess environmental and social risks and opportunities of new projects and of significant changes to existing operations in consultation with interested and affected stakeholders, and publicly disclose assessment results. | E22: Corporate and Asset Level | F22: We employ a variety of baselining and risk management tools to identify and evaluate the potential sustainability-related impacts of our operations. Together, these tools help us characterize the current social, economic and environmental conditions and provide a baseline against which we can measure our performance over time. We perform Environmental and Social Impact Assessments, which identify potentially affected stakeholders and potential impacts from the outset of new projects. We integrate human rights impacts into these assessments to be better informed about impacts to people from growth projects. Additionally, as part of the internal risk review process, the Project Development Sustainability Review considers sustainability issues during the evaluation, and implementation of, potential expansion and development projects. The Project Development Sustainability Review process enables us to identify, prioritize and proactively manage potential risks before a project begins and throughout its development. The process complements the risk register process and serves as a key input of the risk register once a project is operational, enhancing the integration of sustainability into decision making across the company. The Project Development Sustainability Review process is applied during the early stages of mine expansion and project development, particularly during scoping, prefeasibility and feasibility stages so that risks may be adequately addressed early and continuously throughout. The process also supports preparation for future closure of operations. Since its inception in 2011, we have undertaken reviews and implemented actions for 39 projects. Key focus areas identified at different project stages have included: access to water, energy and materials, potential impacts to hydrology, air quality, biodiversity, human rights, community receptivity, economic impacts, and land acquisition and resettlement. • Information can be found in our 2023 Annual Report on Sustainability: Our Approach > Our Strategy in Action: Responsible Production; Empowered People & Resilient Communities | G22: Meets | H22: Meets | I22: Meets | J22: Meets | K22: Meets | L22: Meets | M22: Meets | N22: Meets | O22: Meets | P22: Meets | Q22: Meets | R22: Meets | S22: Meets | T22: Meets | U22: Meets | V22: Meets | W22: Meets
A23: PRINCIPLE 4: RISK MANAGEMENT | B23: Implement effective risk-management strategies and systems based on sound science and which account for stakeholder perceptions of risks. | C23: 4.2 | D23: Undertake risk-based due diligence on conflict and human rights that aligns with the OECD Due Diligence Guidance on Conflict-Affected and High-Risk Areas, when operating in, or sourcing from, a conflict-affected or high-risk area. | E23: Corporate and Asset Level | F23: FCX is committed to sourcing, producing and distributing metals and minerals responsibly across our entire value chain. While all of our suppliers (goods and services and minerals and metals) undergo the same initial screening process, we maintain a specialized process specifically for suppliers of minerals and metals. This process is in alignment with our Responsible Sourcing of Minerals Policy, which commits us to producing and sourcing minerals and metals responsibly, including respecting human rights; preventing bribery, fraud and corruption; and implementing the OECD Guidance. We have been implementing the policy across our copper smelting, refining and semi-fabrication and molybdenum roasting operations since it was established. In 2023, we expanded the program to include other minerals and metals determined to be in scope at our Stowmarket ferromolybdenum plant. Our policy and implementation of the OECD Guidance is also a requirement of the ICMM Mining Principles Framework, Copper Mark, Molybdenum Mark, Responsible Steel and the London Metal Exchange (LME) Policy on Responsible Sourcing of LME-Listed Brands. The Board's CRC receives an annual update on our responsible sourcing of minerals program and at the management-level, the SLT oversees and receives regular updates on our performance. FCX has established a Responsible Sourcing of Minerals & Metals Standard Operating Procedure, which defines the process, roles and responsibilities across our organization. Implementation of this procedure is supported by our Responsible Sourcing Working Group and dedicated committees made up of individuals from FCX’s business units and corporate office. The committees meet periodically to review outcomes of the source review process. • Responsible Sourcing of Minerals Policy • Information can be found in our 2023 Annual Report on Sustainability: Our Approach > Responsible Value Chains and Responsible Sourcing of Minerals & Metals | G23: Meets | H23: Meets | I23: Meets | J23: Meets | K23: Meets | L23: Meets | M23: Meets | N23: Meets | O23: Meets | P23: Meets | Q23: Meets | R23: Meets | S23: Meets | T23: Meets | U23: Meets | V23: Meets | W23: Meets
A24: PRINCIPLE 4: RISK MANAGEMENT | B24: Implement effective risk-management strategies and systems based on sound science and which account for stakeholder perceptions of risks. | C24: 4.3 | D24: Implement risk-based controls to avoid/prevent, minimise, mitigate and/or remedy health, safety and environmental impacts to workers, local communities, cultural heritage and the natural environment, based upon a recognised international standard or management system. | E24: Corporate and Asset Level | F24: We drive responsible production practices throughout our operations by identifying the commitments and the corresponding responsible production frameworks that we believe will move the industry forward and help to meaningfully advance our operations and our supply chains. These commitments include our strategic focus areas and related ambitions and performance targets, as well as commitments such as the Copper Mark, UNGPs, the VPs and Task Force on Climate-related Financial Disclosures, among others. Being a responsible producer also means purposefully working toward achieving the SDGs within our communities and value chain. Ongoing stakeholder engagement is fundamental to informing our policies and processes as well as the voluntary commitments to which we subscribe. • Information can be found in our 2023 Annual Report on Sustainability: Our Approach; Empowered People & Resilient Communities; Thriving Environments | G24: Meets | H24: Meets | I24: Meets | J24: Meets | K24: Meets | L24: Meets | M24: Meets | N24: Meets | O24: Meets | P24: Meets | Q24: Meets | R24: Meets | S24: Meets | T24: Meets | U24: Meets | V24: Meets | W24: Meets
A25: PRINCIPLE 4: RISK MANAGEMENT | B25: Implement effective risk-management strategies and systems based on sound science and which account for stakeholder perceptions of risks. | C25: 4.4 | D25: Develop, maintain and test emergency response plans. Where risks to external stakeholders are significant, this should be in collaboration with potentially affected stakeholders and consistent with established industry good practice. | E25: Corporate and Asset Level | F25: All FCX sites are required to have a crisis management plan in place to effectively respond and support the safety of all people who could potentially be impacted by a crisis event at or near one of our operations. These plans guide our operational approach to preparing for, responding to, and recovering from potential emergencies or crises. Our crisis management guidelines set the minimum level of direction for crisis preparedness, response and recovery activities with the overarching goal of minimizing the impact a crisis may have on our workforce and our host communities. Building from these guidelines, each site is expected to develop, document and test their site-specific plans. We continued our efforts to incorporate Global Industry Standard on Tailings Management (the Tailings Standard) requirements into our crisis management guidelines so that our crisis response plans are consistent, aligned and informed by stakeholders. We met the August 2023 Tailing Standard conformance timeline for our Morenci TSFs, including successfully conducting a tabletop exercise with external emergency management agencies and community stakeholders. We continue to work towards meeting the Tailings Standard conformance timeline across our other sites. During the year, the crisis management teams at our sites were provided updated pocket reference books meant to refresh team members on their expected assignments in the event of a crisis and to reinforce performance and training objectives. We also established a crisis management collaboration team who meets quarterly to share best practices across our sites and to provide support and learnings. Finally, we established and implemented a corporate off-site recovery plan and trained senior leaders in the event a crisis occurs that has an impact beyond our boundaries. PT-FI’s Grasberg operations in Indonesia have a mature and robust crisis management program. In early 2023, PT-FI’s emergency response team responded to flooding and landslides which caused damage to infrastructure near the milling complex. In an effort to improve our process to address potential future flood incidents at the milling complex, a standard operating procedure for flood and landslide response was developed and a joint exercise was held to test the established protocols. Additionally, the emergency response team at PT-FI’s underground mining operations developed simplified underground emergency guidelines, conducted six exercises and provided more than 12,000 hours of employee training. • Information can be found in our 2023 Annual Report on Sustainability: Empowered People & Resilient Communities > Health, Safety & Well-being | G25: Meets | H25: Meets | I25: Meets | J25: Meets | K25: Meets | L25: Meets | M25: Meets | N25: Meets | O25: Meets | P25: Meets | Q25: Meets | R25: Meets | S25: Meets | T25: Meets | U25: Meets | V25: Meets | W25: Meets
A26: PRINCIPLE 5: HEALTH AND SAFETY | B26: Pursue continual improvement in health and safety performance with the ultimate goal of zero harm. | C26: 5.1 | D26: Implement practices aimed at continually improving workplace health and safety, and monitor performance for the elimination of workplace fatalities, serious injuries and prevention of occupational diseases, based upon a recognised international standard or management system. | E26: Corporate and Asset Level | F26: Safety is a core company value and is foundational to our sustainability approach. Our highest priority is the health, safety and well-being of our employees, contractors, suppliers and the communities where we operate. We believe that health and safety considerations are integral to, and fundamental for, all other functions in our organization, and we understand the health and safety of our workforce is critical to our operational efficiency and long-term success. Our objective is to achieve zero workplace fatalities and to decrease injuries and occupational illnesses. As part of our commitment to providing a healthy and safe workplace, we strive to provide the training, tools and resources needed so our workforce can identify risks and consistently apply effective controls. We share information and key learnings about potential fatal events, high-risk incidents, and best practices throughout the company, and we engage with industry peers and professional organizations to share best practices and continuously improve our health and safety program. Our framework for managing risks and compliance obligations is our Occupational Health and Safety Management System, which is certified by a third-party at the site-level in accordance with the ISO 45001 Health and Safety Management System. • Safety & Health Policy • Information can be found in our 2023 Annual Report on Sustainability: Empowered People & Resilient Communities > Health, Safety & Well-being; Performance Data | G26: Meets | H26: Meets | I26: Meets | J26: Meets | K26: Meets | L26: Meets | M26: Meets | N26: Meets | O26: Meets | P26: Meets | Q26: Meets | R26: Meets | S26: Meets | T26: Meets | U26: Meets | V26: Meets | W26: Meets
A27: PRINCIPLE 5: HEALTH AND SAFETY | B27: Pursue continual improvement in health and safety performance with the ultimate goal of zero harm. | C27: 5.2 | D27: Provide workers with training in accordance with their responsibilities for health and safety, and implement health surveillance and risk-based monitoring programmes based on occupational exposures. | E27: Corporate and Asset Level | F27: Safety is a core company value and is foundational to our sustainability approach. Our highest priority is the health, safety and well-being of our employees, contractors, suppliers and the communities where we operate. We believe that health and safety considerations are integral to, and fundamental for all other functions in our organization, and we understand the health and safety of our workforce is critical to our operational efficiency and long-term success. Our objective is to achieve zero workplace fatalities and to decrease injuries and occupational illnesses. As part of our commitment to providing a healthy and safe workplace, we strive to provide the training, tools and resources needed so our workforce can identify risks and consistently apply effective controls. We share information and key learnings about potential fatal events, high-risk incidents, and best practices throughout the company, and we engage with industry peers and professional organizations to share best practices and continuously improve our health and safety program. Our global health and safety strategy, “Safe Production Matters,” is focused on fatality prevention, eliminating systemic root causes of incidents and continuous improvement through robust management systems, which are supported by leaders empowering our teams to work safely. We further seek to prevent fatalities and high-risk incidents by leveraging technology to support safe work practices in the field and data analytics to identify opportunities for improvement. • Safety & Health Policy • Information can be found in our 2023 Annual Report on Sustainability: Empowered People & Resilient Communities > Health, Safety & Well-being; Performance Data | G27: Meets | H27: Meets | I27: Meets | J27: Meets | K27: Meets | L27: Meets | M27: Meets | N27: Meets | O27: Meets | P27: Meets | Q27: Meets | R27: Meets | S27: Meets | T27: Meets | U27: Meets | V27: Meets | W27: Meets
A28: PRINCIPLE 6: ENVIRONMENTAL PERFORMANCE | B28: Pursue continual improvement in environmental performance issues, such as water stewardship, energy use and climate change. | C28: 6.1 | D28: Plan and design for closure in consultation with relevant authorities and stakeholders, implement measures to address closure-related environmental and social aspects, and make financial provision to enable agreed closure and post-closure commitments to be realised. | E28: Corporate and Asset Level | F28: We seek to plan and operate our mines in a manner that considers post-mining land use well in advance of mine closure. Likewise, when designing new projects or expanding existing ones, we plan for how the land can be reclaimed once the mine closes. Our philosophy of responsible production continues when we close our mining and processing sites through to reclamation. FCX strives to work in partnership with our host communities (which in many cases include Indigenous Peoples) to define and deliver shared value, throughout the mine life cycle. We not only seek to avoid, minimize and mitigate negative impacts from our operations, but also aim to provide long-lasting benefits to our neighbors so people can thrive beyond the life of our mines. At each of our operations, we have mine closure and reclamation plans with site-specific environmental measures designed to minimize long-term impacts, promote ecosystem reestablishment and protect the watersheds where we operate. To support future anticipated closure and reclamation costs, each operating mine site has asset retirement obligations aligned with approved closure plans. Closure plans are periodically updated to incorporate new learnings and additional disturbances associated with new development and expansion projects. Asset retirement obligations are estimated and accounted for in accordance with GAAP in the U.S. and are audited by an independent accounting firm. • Environmental Policy • Social Performance Policy • Information can be found in our 2023 Annual Report on Sustainability: Thriving Environments > Mine Closure & Reclamation | G28: Meets | H28: Meets | I28: Meets | J28: Meets | K28: Meets | L28: Meets | M28: Meets | N28: Meets | O28: Meets | P28: Meets | Q28: Meets | R28: Meets | S28: Meets | T28: Meets | U28: Meets | V28: Meets | W28: Meets
A29: PRINCIPLE 6: ENVIRONMENTAL PERFORMANCE | B29: Pursue continual improvement in environmenal performance issues, such as water stewardship, energy use and climate change. | C29: 6.2 | D29: Implement water stewardship practices that provide for strong and transparent water governance, effective and efficient management of water at operations, and collaboration with stakeholders at a catchment level to achieve responsible and sustainable water use. | E29: Corporate and Asset Level | F29: FCX’s water stewardship program focuses on securing reliable, long-term water supplies while maximizing water use efficiency within our operations. On the supply side, we seek to identify opportunities to shift to more sustainable water sources, such as recycled, reused, renewable and lower-quality water. On the use side, we are working to identify best practices, scalable levers and technological innovations in order to maintain our high water use efficiency rates and reduce our freshwater usage over the long term. We review our water usage and consumption patterns regularly in order to understand our water balances and identify efficiency opportunities. Globally, our objective is to identify, manage and mitigate both our current and future water-related risks to secure the necessary water resources vital to support our operations over the long term, while also promoting long-term water security for our host communities and ecosystems. We are dedicated to continuously improving our water stewardship program and recognize the importance of working collaboratively with our stakeholders, including providing education, opportunities to adopt new technologies, and balancing responsible production and societal needs and expectations. • Environmental Policy • Information can be found in our 2023 Annual Report on Sustainability: Thriving Environments > Water Stewardship | G29: Meets | H29: Meets | I29: Meets | J29: Meets | K29: Meets | L29: Meets | M29: Meets | N29: Meets | O29: Meets | P29: Meets | Q29: Meets | R29: Meets | S29: Meets | T29: Meets | U29: Meets | V29: Meets | W29: Meets
A30: PRINCIPLE 6: ENVIRONMENTAL PERFORMANCE | B30: Pursue continual improvement in environmenal performance issues, such as water stewardship, energy use and climate change. | C30: 6.3 | D30: Design, construct, operate, monitor and decommission tailings disposal/storage facilities using comprehensive, risk-based management and governance practices in line with internationally recognised good practice, to minimise the risk of catastrophic failure. | E30: Corporate and Asset Level | F30: FCX has comprehensive measures in place to ensure our facilities are designed, built, operated, closed and monitored to minimize risk to our workforce, host communities and the environment. These measures include substantial internal and external engineering expertise, levee construction and river management, incorporating the latest technological advances (including remote sensing) and corporate and independent third-party oversight. Although there is some overlap among the categories, our safeguards generally fall within four categories: (1) engineering practices and safe designs, (2) adherence to construction and operational parameters through monitoring and use of technology, (3) multi-tiered oversight, and (4) adherence to practices grounded in continuous improvement and learning from past experiences, including industry failures and best practices. We remain focused on the safe execution of our tailings management programs by maintaining robust, multi-tiered governance, which includes appropriately qualified personnel with clearly defined roles, responsibilities and accountabilities. Our Board and executive management are firmly committed to providing the necessary financial and technical resources to maintain the safety and integrity of our tailings facilities globally, with a focus on risk management and continuous improvement. FCX’s Tailings Management Policy outlines our commitment to manage our tailings responsibly and effectively across our sites globally, and is intended to be implemented in conjunction with our Environmental, Human Rights and Social Performance policies and associated management systems. The policy also includes our commitment to implement the Tailings Standard at our applicable tailings storage facilities (TSFs) in the Americas. • Environmental Policy • Tailings Management Policy • Information can be found in our 2023 Annual Report on Sustainability: Thriving Environments > Tailings Management; and the Site-Specific Tailings Management document on fcx.com | G30: Not applicable | H30: Partially meets | I30: Partially meets | J30: Partially meets | K30: Partially meets | L30: Partially meets | M30: Meets | N30: Meets | O30: Meets | P30: Not applicable | Q30: Partially meets | R30: Partially meets | S30: Not applicable | T30: Not applicable | U30: Not applicable | V30: Not applicable | W30: Not applicable
A31: PRINCIPLE 6: ENVIRONMENTAL PERFORMANCE | B31: Pursue continual improvement in environmenal performance issues, such as water stewardship, energy use and climate change. | C31: 6.4 | D31: Apply the mitigation hierarchy to prevent pollution, manage releases and waste, and address potential impacts on human health and the environment. | E31: Corporate and Asset Level | F31: Our Environmental Policy serves as the foundation for our protection of the natural environment in the regions where we live and work. In addition to complying with laws and regulations and implementing management strategies based on verifiable data and sound science, we plan and conduct our operations in a manner that seeks to minimize adverse environmental effects, with a particular focus on climate, water, biodiversity, tailings and non-mineral waste management. We review and plan for the environmental impacts of our activities throughout the entire mining life cycle, from early-stage studies through mine closure. Our active mining and mineral processing operations and technology centers maintain environmental management systems (EMS) that are certified to the ISO 14001:2015 standard by independent auditors. As part of our EMS, our workforce is trained on site-specific subject areas and annually on environmental issues and is supported by environmental professionals working in the field. Site management teams identify, manage and mitigate environmental risks through our risk register process and the use of environmental critical control systems designed to prevent environmental incidents at our operations. Critical controls are focused on the elimination of unplanned releases and prevention or minimization of impacts to water and other natural resources. At the corporate level, subject matter experts train, develop and support our site teams, routinely conduct site visits, and in some cases, directly manage a group of site-based experts. Collectively, they are responsible for building technical expertise, ensuring consistency in our environmental programs and sharing best practices. To support this effort, we provide annual training for our employees on critical environmental compliance topics, including air, water, waste and biodiversity. Our Environmental Policy states our commitment to contribute to the conservation of nature and biodiversity, implement the mitigation hierarchy to assess risks and impacts to nature, and commit not to explore or mine at any UNESCO World Heritage Sites. By applying the mitigation hierarchy, we aim to manage risks and potential impacts with the long-term ambition of No Net Loss for new mines and major expansion projects at existing mines. In 2023, we began applying the approach to our first major expansion project since committing to the mitigation hierarchy in 2021. We recognize the mitigation hierarchy is most effective when implemented during the earliest phases of project planning to help maximize opportunities for avoidance and minimize impacts. We have integrated the hierarchy into our existing development process for new projects and trained our environmental teams to routinely apply it to all projects at operating sites that may disturb natural habitats. • Environmental Policy • Information can be found in our 2023 Annual Report on Sustainability: Thriving Environments > Biodiversity | G31: Meets | H31: Meets | I31: Meets | J31: Meets | K31: Meets | L31: Meets | M31: Meets | N31: Meets | O31: Meets | P31: Meets | Q31: Meets | R31: Meets | S31: Meets | T31: Meets | U31: Meets | V31: Meets | W31: Meets
A32: PRINCIPLE 6: ENVIRONMENTAL PERFORMANCE | B32: Pursue continual improvement in environmenal performance issues, such as water stewardship, energy use and climate change. | C32: 6.5 | D32: Implement measures to improve energy efficiency and contribute to a low-carbon future, and report the outcomes based on internationally recognised protocols for measuring CO2 equivalent (GHG) emissions. | E32: Corporate and Asset Level | F32: As one of the world’s largest copper producers, we understand our critical role in the energy transition. We are dedicated to supplying the global economy with responsibly produced copper which includes operating in a manner that manages and mitigates our greenhouse gas (GHG) emissions and other climate-related risks and impacts. FCX is committed to implementing the requirements outlined in the ICMM Climate Change Position Statement and Performance Expectations for energy and climate change. In addition, our commitment to the Copper Mark requires that we develop and achieve targets over time and report our progress at a site level. Operational-level data is available in our Annual Report on Sustainability. We are advancing important initiatives to reduce our GHG emissions, improve energy efficiency, evaluate and integrate the use of lower carbon and renewable energy and enhance our resilience to future climate-related risks. Multiple GHG emissions reduction initiatives either already in process or under evaluation across our global business. In Fall of 2023, we published our updated climate report, which outlines substantial progress in advancing our climate strategy and commitments. • 2022 Climate Report • Information can be found in our 2023 Annual Report on Sustainability: Climate; Performance Data | G32: Meets | H32: Meets | I32: Meets | J32: Meets | K32: Meets | L32: Meets | M32: Meets | N32: Meets | O32: Meets | P32: Meets | Q32: Meets | R32: Meets | S32: Meets | T32: Meets | U32: Meets | V32: Meets | W32: Meets
A33: PRINCIPLE 7: CONSERVATION OF BIODIVERSITY | B33: Contribute to the conservation of biodiversity and integrated approaches to land-use planning. | C33: 7.1 | D33: Neither explore nor develop new mines in World Heritage sites, respect legally designated protected areas, and design and operate any new operations or changes to existing operations to be compatible with the value for which such areas were designated. | E33: Corporate and Asset Level | F33: FCX is committed to operating in a manner that respects legally designated protected areas, including a commitment to no mining or exploring in UNESCO World Heritage sites, which is included in our Environmental Policy. Our proven and probable reserves located near endangered species habitats do not affect those habitats. The endangered species habitats near Morenci, Chino, and Climax reserves are located on federal lands managed by the U.S. Forest Service; we do not conduct activities within the habitat. Cerro Verde’s reserves qualify due to an endangered bat species that is known to occur and forage in the general region of the operations and we actively seek to protect the species. Grasberg’s reserves qualify due to the district’s proximity to Lorentz National Park, however, we have not and will not conduct any mining or exploration activities in Lorentz National Park, which is a UNESCO World Heritage Site. We maintain significant programs at Grasberg’s operations to protect biodiversity in the area. •Environmental Policy • Biodiversity Management at FCX • Information can be found in our 2023 Annual Report on Sustainability: Thriving Environments > Biodiversity; 2023 SASB Standards | G33: Meets | H33: Meets | I33: Meets | J33: Meets | K33: Meets | L33: Meets | M33: Meets | N33: Meets | O33: Meets | P33: Meets | Q33: Meets | R33: Meets | S33: Not applicable | T33: Not applicable | U33: Not applicable | V33: Not applicable | W33: Not applicable
A34: PRINCIPLE 7: CONSERVATION OF BIODIVERSITY | B34: Contribute to the conservation of biodiversity and integrated approaches to land-use planning. | C34: 7.2 | D34: Assess and address risks and impacts to biodiversity and ecosystem services by implementing the mitigation hierarchy, with the ambition of achieving no-net-loss of biodiversity. | E34: Corporate and Asset Level | F34: FCX implements a variety of programs and strategies at its operations that seek to proactively identify and mitigate biodiversity risks while promoting conservation opportunities in collaboration with government agencies and other voluntary opportunities. In 2023, we began applying the approach to our first major expansion project since committing to the mitigation hierarchy in 2021. We recognize the mitigation hierarchy is most effective when implemented during the earliest phases of project planning to help maximize opportunities for avoidance and minimize impacts. We have integrated the hierarchy into our existing development process for new projects and trained our environmental teams to routinely apply it to all projects at operating sites that may disturb natural habitats. • Environmental Policy • Biodiversity Management at FCX • Information can be found in our 2023 Annual Report on Sustainability: Thriving Environments > Biodiversity | G34: Meets | H34: Meets | I34: Meets | J34: Meets | K34: Meets | L34: Meets | M34: Meets | N34: Meets | O34: Meets | P34: Meets | Q34: Meets | R34: Meets | S34: Meets | T34: Meets | U34: Meets | V34: Meets | W34: Meets
A35: PRINCIPLE 8: RESPONSIBLE PRODUCTION | B35: Facilitate and support the knowledge-base and systems for responsible design, use, re-use, recycling and disposal of products containing metals and minerals. | C35: 8.1 | D35: In project design, operation and de-commissioning, implement cost-effective measures for the recovery, re-use or recycling of energy, natural resources, and materials. | E35: Corporate and Asset Level | F35: FCX produces substantially more mining and mineral processing wastes, such as tailings, waste rock, overburden and slag, than non-mining waste. Responsible management of all types of waste are critical to complying with environmental regulations, maintaining community and environmental health, and social acceptance of our operations. FCX is committed to reducing our environmental impact, which includes the effective management of our mining and mineral processing waste (such as tailings, overburden and slag, waste rock) as well as non-mining waste (such as recycled material and landfilled waste). The volume of mining and mineral processing waste we generate varies depending on site-specific mine plans. In addition to responsibly managing our mining and mineral processing waste, we continuously evaluate opportunities to reduce the quantity of non-mineral waste generated at our operations. We seek to apply the standard protocol of reduce, reuse, or recycle wherever possible and implement robust practices to identify, categorize, store and manage non-mining wastes. Through our asset recovery programs, we divert certain materials from the landfill, and we strive to increase recycling and reuse of those materials in our operations. Furthermore, we evaluate our hazardous waste streams and, when possible, substitute materials with lower toxicity into our processes. • 2022 Climate Report • Information can be found in our 2023 Annual Report on Sustainability: Non-Mineral Waste Management; Our Approach > Our Strategy in Action: Responsible Production | G35: Meets | H35: Meets | I35: Meets | J35: Meets | K35: Meets | L35: Meets | M35: Meets | N35: Meets | O35: Meets | P35: Meets | Q35: Meets | R35: Meets | S35: Meets | T35: Meets | U35: Meets | V35: Meets | W35: Meets
A36: PRINCIPLE 8: RESPONSIBLE PRODUCTION | B36: Facilitate and support the knowledge-base and systems for responsible design, use, re-use, recycling and disposal of products containing metals and minerals. | C36: 8.2 | D36: Assess the hazards of the products of mining according to UN Globally Harmonised System of Hazard Classification and Labelling or equivalent relevant regulatory systems and communicate through safety data sheets and labelling as appropriate. | E36: Corporate and Asset Level | F36: Our framework for managing risks and compliance obligations our Occupational Health and Safety Management System, which is certified in accordance with the ISO 45001 Health and Safety Management System and covers handling and use of hazardous materials on site, including maintenance of safety data sheets. • Safety & Health Policy • Information can be found in our 2023 Annual Report on Sustainability: Empowered People & Resilient Communities > Health, Safety & Well-being | G36: Meets | H36: Meets | I36: Meets | J36: Meets | K36: Meets | L36: Meets | M36: Meets | N36: Meets | O36: Meets | P36: Meets | Q36: Meets | R36: Meets | S36: Meets | T36: Meets | U36: Meets | V36: Meets | W36: Meets
A37: PRINCIPLE 9: SOCIAL PERFORMANCE | B37: Pursue continual improvement in social performance and contribute to the social, economic and institutional development of host countries and communities. | C37: 9.1 | D37: Implement inclusive approaches with local communities to identify their development priorities and support activities that contribute to their lasting social and economic wellbeing, in partnership with government, civil society and development agencies, as appropriate. | E37: Corporate and Asset Level | F37: Proactive, ongoing engagements and constructive dialogue are foundational to our approach. This is how we understand actual, potential and perceived impacts on our host communities, build trust, and mutually identify the most relevant social investments and development priorities to address our impacts and support enhanced resilience. We also actively work through engagement and capacity-building activities to support host communities in maximizing the social and economic benefits of our operations. We aim to help build resilience and well-being in the host communities where we operate, in part by contributing time and financial resources. In order to maximize the value of these resources, we have initiated work to quantify the impact of our social investments, which will help inform our ongoing social investment strategy and inform dialogue with stakeholders about value created. • Social Performance Policy • Information can be found in our 2023 Annual Report on Sustainability: Our Approach > Stakeholder Engagement; Empowered People & Resilient Communities > Communities & Indigenous Peoples; Economic Contributions | G37: Meets | H37: Meets | I37: Meets | J37: Meets | K37: Meets | L37: Meets | M37: Meets | N37: Meets | O37: Meets | P37: Meets | Q37: Meets | R37: Meets | S37: Meets | T37: Meets | U37: Meets | V37: Meets | W37: Meets
A38: PRINCIPLE 9: SOCIAL PERFORMANCE | B38: Pursue continual improvement in social performance and contribute to the social, economic and institutional development of host countries and communities. | C38: 9.2 | D38: Enable access by local enterprises to procurement and contracting opportunities across the project life-cycle, both directly and by encouraging larger contractors and suppliers, and also by supporting initiatives to enhance economic opportunities for local communities. | E38: Corporate and Asset Level | F38: Purchasing goods and services from local suppliers provides a significant direct and indirect benefit to our local communities. Our investment in local communities helps to support the economic vitality of small and medium size enterprises and local entrepreneurship. When we purchase locally, we provide the stimulus for community development and the potential for capacity building. We continue to prioritize greater transparency in our local procurement spending, with a focus on expanding opportunities for local suppliers, where feasible. We have implemented standard operating procedures and/or plans emphasizing local procurement across our operations and include this information in our ongoing training with our site procurement teams. In addition, both Cerro Verde and El Abra provide reduced payment terms for qualifying small- and medium-sized local businesses. In 2023, we continued our engagement with the Mining Local Procurement Reporting Mechanism (LPRM), which is an initiative that seeks to develop, through disclosures, a set of common standards agreed by both host countries and mining companies for what constitutes local procurement. FCX has met the LPRM disclosure requirements, which require disclosure of local procurement spending by site and additional information for existing and potential suppliers, which is available on the Suppliers page of our website. • Information can be found in our 2023 Annual Report on Sustainability: Robust Governance > Responsible Value Chains; Empowered People & Resilient Communities > Economic Contributions; Performance Data • LPRM disclosure on the Suppliers page of fcx.com | G38: Meets | H38: Meets | I38: Meets | J38: Meets | K38: Meets | L38: Meets | M38: Meets | N38: Meets | O38: Meets | P38: Meets | Q38: Meets | R38: Meets | S38: Meets | T38: Meets | U38: Meets | V38: Meets | W38: Meets
A39: PRINCIPLE 9: SOCIAL PERFORMANCE | B39: Pursue continual improvement in social performance and contribute to the social, economic and institutional development of host countries and communities. | C39: 9.3 | D39: Conduct stakeholder engagement based upon an analysis of the local context and provide local stakeholders with access to effective mechanisms for seeking resolution of grievances related to the company and its activities. | E39: Corporate and Asset Level | F39: FCX’s approach to stakeholder engagement is characterized by transparency, collaboration and meaningful dialogue, with the primary goal of fostering mutual understanding, trust and cooperation. We recognize the interests and concerns of our various stakeholders can change over time, which underscores the need for ongoing and proactive engagement to learn about these changing needs and expectations. We believe effective stakeholder engagement can help reduce our sustainability-related risks by identifying them early and enabling us to work in partnership to address them, ultimately supporting our efforts to make positive contributions to society. For these reasons, we seek to maintain ongoing, constructive and proactive stakeholder engagement programs at both the corporate and site level throughout the year. We have a broad range of stakeholders with whom we engage, including shareholders, employees, host communities and Indigenous Peoples, customers and suppliers, industry associations, regulators and policymakers, host governments, and nongovernmental organizations. To support constructive engagement and resolution of potential issues and adverse impacts, we maintain a site-level grievance mechanism where community members, including Indigenous Peoples, can register their complaints. Our community grievance mechanism serves as an early warning system by tracking trends and patterns in grievance types so they can be addressed in their earliest stages, ideally prior to escalation. We also maintain grievance mechanisms for employees, members of our supply chain and others. • Social Performance Policy • Human Rights Policy • Information can be found in our 2023 Annual Report on Sustainability: Our Approach > Stakeholder Engagement; Robust Governance > Human Rights; Empowered People & Resilient Communities > Communities & Indigenous Peoples and Economic Contributions | G39: Meets | H39: Meets | I39: Meets | J39: Meets | K39: Meets | L39: Meets | M39: Meets | N39: Meets | O39: Meets | P39: Meets | Q39: Meets | R39: Meets | S39: Meets | T39: Meets | U39: Meets | V39: Meets | W39: Partially meets
A40: PRINCIPLE 9: SOCIAL PERFORMANCE | B40: Pursue continual improvement in social performance and contribute to the social, economic and institutional development of host countries and communities. | C40: 9.4 | D40: Collaborate with government, where appropriate, to support improvements in environmental and social practices of local Artisanal and Small-scale Mining (ASM). | E40: Corporate and Asset Level | F40: The only site where we encounter artisanal miners is at PT-FI’s Grasberg operations in Central Papua, Indonesia. At Grasberg, illegal artisanal miners seek economic opportunity by panning for unrecovered gold from our milling operations in the controlled riverine tailings system. PT-FI utilizes a cross-functional management plan to help mitigate the potential social, security, safety, environmental and operational risks associated with illegal artisanal mining. The aim of the plan is to reduce the number of illegal artisanal mining panners within the Grasberg operating area and related disruptions to operations. continued efforts include educational campaigns, monitoring the environment for mercury use, strengthening check points, increasing unmanned aerial systems patrols and focusing on joint patrols with third-party security personnel. Joint patrols, which include representatives from our workforce, local police and private security personnel, monitor the area occupied by panners and when issues are identified, such as social, environmental, safety or security issues, the patrols inform the cross-functional team. The cross functional team reviews drone surveillance filmed by PT-FI’s aviation group and coordinates with the joint patrols, which play a key role in socialization of educational campaigns and problem solving within the illegally occupied area. To integrate illegal artisanal mining issues into PT-FI’s planning and decision making, the cross-functional team meets regularly to update leadership. PT-FI cannot address illegal artisanal mining on its own. A multi-faceted approach including government cooperation, security risk management, stakeholder engagement and socioeconomic development for alternative livelihoods is essential. PT-FI’s artisanal mining management plan includes regional and national objectives to help build strategic partnerships for a multi-stakeholder artisanal mining strategy. • Information can be found in our 2023 Annual Report on Sustainability: Robust Governance > Human Rights > Illegal Artisanal Mining | G40: Not applicable | H40: Not applicable | I40: Not applicable | J40: Not applicable | K40: Not applicable | L40: Not applicable | M40: Not applicable | N40: Not applicable | O40: Meets | P40: Not applicable | Q40: Not applicable | R40: Not applicable | S40: Not applicable | T40: Not applicable | U40: Not applicable | V40: Not applicable | W40: Not applicable
A41: PRINCIPLE 10: STAKEHOLDER ENGAGEMENT | B41: Proactively engage key stakeholders on sustainable development challenges and opportunities in an open and transparent manner. Effectively report and independently verify progress and performance. | C41: 10.1 | D41: Identify and engage with key corporate-level external stakeholders on sustainable development issues in an open and transparent manner | E41: Corporate Level | F41: We regularly seek feedback and input on a range of topics from our host communities and other stakeholders affected by our operations or projects through our various engagement channels. The interests and concerns of our stakeholders can change over time; therefore, ongoing and proactive engagement to learn about changing needs and expectations is necessary. All of our active mining sites have long-standing local community engagement and/or development programs. We engage with stakeholders through Community Partnership Panels in the U.S., community engagement dialogue in South America and Manyar smelter project, and Community Liaison Officers in Indonesia. All three models focus on collaborative, proactive, transparent communications and meaningful dialogue, and all include local leaders and citizens who represent a broad range of stakeholder groups in each community. In addition, our operations frequently engage with stakeholders through situation or topic-specific meetings, presentations, community affairs office hours, and other community outreach and engagement efforts. Through our collaborative engagements, we identify relevant community programs and projects, some of which are featured in this report. In 2023, we held approximately 4,000 formal community engagement meetings through our various models, building upon our long-standing relationships. • Information can be found in our 2023 Annual Report on Sustainability: Our Approach > Stakeholder Engagement | G41: Meets | H41: Meets | I41: Meets | J41: Meets | K41: Meets | L41: Meets | M41: Meets | N41: Meets | O41: Meets | P41: Meets | Q41: Meets | R41: Meets | S41: Meets | T41: Meets | U41: Meets | V41: Meets | W41: Meets
A42: PRINCIPLE 10: STAKEHOLDER ENGAGEMENT | B42: Proactively engage key stakeholders on sustainable development challenges and opportunities in an open and transparent manner. Effectively report and independently verify progress and performance. | C42: 10.2 | D42: Publicly support the implementation of the Extractive Industries Transparency Initiative (EITI) and compile information on all material payments, at the appropriate levels of government, by country and by project. | E42: Corporate and Asset Level | F42: We have endorsed and committed to support the EITI since 2008. We maintain significant mining operations in Indonesia and Peru, both of which have implemented EITI, and we actively support and participate in associated in-country processes as part of EITI. We also aim to support governments’ ambitions to achieve contract transparency. In addition to our country-level EITI commitments and regulatory reporting obligations, our practice is to provide transparency by voluntarily reporting cash payments to governments in all significant jurisdictions where we conduct business. Our support includes direct financial contributions as well as contributions through ICMM. • Information can be found in our 2023 Annual Report on Sustainability: Empowered People & Resilient Communities > Economic Contributions; Performance Data | G42: Meets | H42: Meets | I42: Meets | J42: Meets | K42: Meets | L42: Meets | M42: Meets | N42: Meets | O42: Meets | P42: Meets | Q42: Meets | R42: Meets | S42: Meets | T42: Meets | U42: Meets | V42: Meets | W42: Meets
A43: PRINCIPLE 10: STAKEHOLDER ENGAGEMENT | B43: Proactively engage key stakeholders on sustainable development challenges and opportunities in an open and transparent manner. Effectively report and independently verify progress and performance. | C43: 10.3 | D43: Report annually on economic, social and environmental performance at the corporate level using the GRI Sustainability Reporting Standards. | E43: Corporate Level | F43: Our 2023 Annual Report on Sustainability have been prepared in reference to the GRI Standards and the G4 Mining and Metals Sector Supplement. We have reported under GRI guidelines and standards since 2005. • Information can be found in the 2023 Annual Report on Sustainability >Performance Data • GRI Content Index tab in the ESG Performance Data file on fcx.com | G43: Meets | H43: Meets | I43: Meets | J43: Meets | K43: Meets | L43: Meets | M43: Meets | N43: Meets | O43: Meets | P43: Meets | Q43: Meets | R43: Meets | S43: Meets | T43: Meets | U43: Meets | V43: Meets | W43: Meets
A44: PRINCIPLE 10: STAKEHOLDER ENGAGEMENT | B44: Proactively engage key stakeholders on sustainable development challenges and opportunities in an open and transparent manner. Effectively report and independently verify progress and performance. | C44: 10.4 | D44: Each year, conduct independent assurance of sustainability performance following the ICMM guidance on assuring and verifying membership requirements. | E44: Corporate Level | F44: Our annual reports on sustainability have been independently verified since 2005. Limited assurance of this report and reasonable assurance of our Scope 1 and 2 emissions was obtained from Ernst & Young LLP. External reasonable-level assurance reviews occur at each of our active mining and metals processing operations every three years for purposes of maintaining the Copper Mark and/or Molybdenum Mark and confirming each site is upholding ICMM Performance Expectations. Certain of our larger mining operations also undergo limited-level assurance more frequently to support our disclosures and overall responsible production performance. • Information can be found in our 2023 Annual Report on Sustainability and on the External Assurance webpage of fcx.com | G44: Meets | H44: Meets | I44: Meets | J44: Meets | K44: Meets | L44: Meets | M44: Meets | N44: Meets | O44: Meets | P44: Meets | Q44: Meets | R44: Meets | S44: Meets | T44: Meets | U44: Meets | V44: Meets | W44: Meets

Sheet ICMM S&E Framework
A1: INTERNATIONAL COUNCIL OF MINING AND METALS (ICMM) Social and Economic Reporting
A4: Websites and links can be found in the references tab.
A5: Focus Area | B5: Core Indicator | C5: Overview | D5: FCX RESPONSE
A6: Tax | B6: 1. Country-by-country reporting of business activities, revenues, profit and tax | C6: Financial, economic, and tax-related information for each jurisdiction in which a member operates | D6: FCX’s global tax strategy seeks to balance the economic considerations of our host governments and stakeholders with our business objectives. In jurisdictions where we conduct business, we advocate for the development and implementation of fair and predictable tax laws on issues that are important to our business and the industry. • FCX 2023 Form 10-K, Items 7 and 7A. Consolidated Results, Income Taxes • Cash Payments to Governments tab (this workbook) • Information can be found in our 2023 Annual Report on Sustainability: People > Economic Contributions
A7: Employment | B7: 2. Workforce composition | C7: Information on workforce split across different regions, equality areas and permanent/contractor | D7: FCX believes our people are the foundation of our success and a competitive advantage. A key to our success is the ability to recruit, retain, develop and advance talented employees with diverse perspectives. • Employee Demographics table on the Workforce tab (this workbook) • Information can be found in our 2023 Annual Report on Sustainability: People > Workforce
A8: PRINCIPLE 3: HUMAN RIGHTS | B8: 3. Pay Equality | C8: Ratio of the basic salary and remuneration by employee categories/regions by equality areas | D8: We are committed to respecting the rights of our workforce, including paying fair and equal wages. Our approach to compensation and benefits is market-based, competitive and informed by annual benchmarking and analysis. • Employee Pay Equity Analysis table on the Remuneration tab (this workbook) • Information can be found in our 2023 Annual Report on Sustainability: People > Workforce > Fair & Equal Remuneration
A9: PRINCIPLE 3: HUMAN RIGHTS | B9: 4. Wage Level | C9: Ratios of entry level wages vs local living wage and CEO compensation to median employee compensation | D9: In 2023, we conducted our living wage assessment for both full-time and part-time employees using living wage benchmark rates provided by BSR, a global sustainability nonprofit. • Information can be found in our 2023 Annual Report on Sustainability: People > Workforce > Fair & Equal Remuneration • 2024 Proxy Statement: CEO Pay Ratio
A10: Workforce Development | B10: 5. Training Provided | C10: Overview of training provided including average hours of training per employee (disaggregated per gender and ethnicity), average spend on training and percentage of employees receiving training provided per category | D10: We focus on attracting and retaining talented people by offering quality employment with fair and equitable compensation and benefits, as well as with opportunities for professional development and advancement. • Information can be found in our 2023 Annual Report on Sustainability: People > Workforce > Recruiting, Retaining & Developing our Workforce
A11: Procurement | B11: 6. Local Procurement | C11: Percentage of the procurement spend that is spent on suppliers local to operations (disaggregated per gender and ethnicity) | D11: Globally, we seek to train and encourage buyers and contract administrators to provide opportunities to local and diverse suppliers when possible and in alignment with our business needs. • Procurement - by site tab (this workbook)
A12: Education & Skills | B12: 7. Education and Skills Support | C12: Overview of the range of education and skills programs deployed outside of workforce, spanning number and types of programs, spend and beneficiaries (disaggregated per gender and ethnicity) | D12: One of our primary goals is to work with local communities and Indigenous Peoples in the areas where we operate to contribute to well-being and build resilience over time to enable communities to thrive during the life of our mines and beyond. Partnering with communities to increase resilience means supporting their ability to better anticipate, navigate and successfully adapt to unforeseeable or disruptive events or conditions, such as impacts from climate change, changes in employment types and opportunities, or eventual post-mining transitions. This includes creating opportunities, activities and skills that increase community-level capacity to maximize the economic opportunities created by mining. • Community Investments tab (this workbook) • Information can be found in our 2023 Annual Report on Sustainability: People > Communities & Indigenous Peoples
A13: Capacity and Institutions | B13: 8. Capacity and Institution support | C13: Overview of the range of capacity and institution programs deployed, spanning number and types of programs, spend and beneficiaries (disaggregated per gender and ethnicity)

Sheet SASB
A1: 2023 SASB STANDARDS
A4: Visit FCX's 2023 Annual Report on Sustainability for our most recent SASB disclosures.
A6: 2023 Annual Report on Sustainability
